Workbook

Sheet 2020
A2: القابل للشحن | C2: =Table1[[#Totals],[الوزن الفعلى]] -> 168.9395614 | D2: =TODAY() -> 2020-04-05 | O2: رصيد أول المدة | Q2: اضافة | S2: صرف | U2: الرصيد | W2: اضافة | Y2: منصرف | AA2: الرصيد | AC2: اضافة | AE2: منصرف | AG2: الرصيد | AI2: اضافة | AK2: منصرف | AM2: الرصيد | AO2: اضافة | AQ2: منصرف | AS2: الرصيد | AU2: اضافة | AW2: منصرف | AY2: الرصيد | BA2: اضافة | BC2: منصرف | BE2: الرصيد | BG2: اضافة | BI2: منصرف | BK2: الرصيد | BM2: اضافة | BO2: منصرف | BQ2: الرصيد | BS2: اضافة | BU2: منصرف | BW2: الرصيد | BY2: اضافة | CA2: منصرف | CC2: الرصيد | CE2: اضافة | CG2: منصرف | CI2: الرصيد | CK2: اضافة | CM2: منصرف | CO2: الرصيد | CQ2: اضافة | CS2: منصرف | CU2: الرصيد | CW2: اضافة | CY2: منصرف | DA2: الرصيد | DC2: اضافة | DE2: منصرف | DG2: الرصيد | DI2: اضافة | DK2: منصرف | DM2: الرصيد | DO2: اضافة | DQ2: منصرف | DS2: الرصيد | DU2: اضافة | DW2: منصرف | DY2: الرصيد | EA2: اضافة | EC2: منصرف | EE2: الرصيد | EG2: اضافة | EI2: منصرف | EK2: الرصيد | EM2: اضافة | EO2: منصرف | EQ2: الرصيد | ES2: اضافة | EU2: منصرف | EW2: الرصيد | EY2: اضافة | FA2: منصرف | FC2: الرصيد | FE2: اضافة | FG2: منصرف | FI2: الرصيد | FK2: اضافة | FM2: منصرف | FO2: الرصيد | FQ2: اضافة | FS2: منصرف | FU2: الرصيد | FW2: اضافة | FY2: منصرف | GA2: الرصيد | GC2: اضافة | GE2: منصرف | GG2: الرصيد | GI2: اضافة | GK2: منصرف | GM2: الرصيد | GO2: اضافة | GQ2: منصرف | GS2: الرصيد | GU2: اجمالى الوارد | GW2: اجمالى المنصرف | GY2: اجمالى الرصيد
O3: من شهر مارس 2020 | Q3: 1 | W3: 2 | AC3: 3 | AI3: 4 | AO3: 5 | AU3: 6 | BA3: 7 | BG3: 8 | BM3: 9 | BS3: 10 | BY3: 11 | CE3: 12 | CK3: 13 | CQ3: 14 | CW3: 15 | DC3: 16 | DI3: 17 | DO3: 18 | DU3: 19 | EA3: 20 | EG3: 21 | EM3: 22 | ES3: 23 | EY3: 24 | FE3: 25 | FK3: 26 | FQ3: 27 | FW3: 28 | GC3: 29 | GI3: 30 | GO3: 31 | GU3: اجماليات الشهر ( أكتوبر)
A4: مسئول البيع | B4: اســـــــــــــــــم العـــــــــميل | C4: اسم الصنف | D4: طول | E4: عرض | F4: ارتفاع | G4: امر التشغيل | H4: وزن الوحدة | I4: الكمية | J4: الوزن الفعلى | K4: عدد البالتات | L4: تاريخ إنتاج المنتج | M4: تاريخ شحن المنتج | N4: تاريخ دخول المنتج المخزن | O4: كمية | P4: وزن | Q4: كمية4 | R4: وزن5 | S4: كمية7 | T4: وزن8 | U4: كمية9 | V4: وزن10 | W4: كمية5 | X4: وزن6 | Y4: كمية8 | Z4: وزن9 | AA4: كمية10 | AB4: وزن11 | AC4: كمية6 | AD4: وزن7 | AE4: كمية92 | AF4: وزن103 | AG4: كمية11 | AH4: وزن12 | AI4: كمية74 | AJ4: وزن85 | AK4: كمية106 | AL4: وزن117 | AM4: كمية12 | AN4: وزن13 | AO4: كمية68 | AP4: وزن79 | AQ4: كمية910 | AR4: وزن1011 | AS4: كمية9102 | AT4: وزن10113 | AU4: كمية714 | AV4: وزن815 | AW4: كمية1016 | AX4: وزن1117 | AY4: كمية1218 | AZ4: وزن1319 | BA4: كمية820 | BB4: وزن921 | BC4: كمية1122 | BD4: وزن1223 | BE4: كمية13 | BF4: وزن14 | BG4: كمية724 | BH4: وزن825 | BI4: كمية1026 | BJ4: وزن1127 | BK4: كمية1228 | BL4: وزن1329 | BM4: كمية830 | BN4: وزن931 | BO4: كمية1132 | BP4: وزن1233 | BQ4: كمية1334 | BR4: وزن1435 | BS4: كمية936 | BT4: وزن1037 | BU4: كمية1238 | BV4: وزن1339 | BW4: كمية14 | BX4: وزن15 | BY4: كمية640 | BZ4: وزن741 | CA4: كمية942 | CB4: وزن1043 | CC4: كمية1144 | CD4: وزن1245 | CE4: كمية746 | CF4: وزن847 | CG4: كمية1048 | CH4: وزن1149 | CI4: كمية1250 | CJ4: وزن1351 | CK4: كمية852 | CL4: وزن953 | CM4: كمية1154 | CN4: وزن1255 | CO4: كمية1356 | CP4: وزن1457 | CQ4: كمية758 | CR4: وزن859 | CS4: كمية1060 | CT4: وزن1161 | CU4: كمية1262 | CV4: وزن1363 | CW4: كمية864 | CX4: وزن965 | CY4: كمية1166 | CZ4: وزن1267 | DA4: كمية1368 | DB4: وزن1469 | DC4: كمية970 | DD4: وزن1071 | DE4: كمية1272 | DF4: وزن1373 | DG4: كمية1474 | DH4: وزن1575 | DI4: كمية876 | DJ4: وزن977 | DK4: كمية1178 | DL4: وزن1279 | DM4: كمية1380 | DN4: وزن1481 | DO4: كمية982 | DP4: وزن1083 | DQ4: كمية1284 | DR4: وزن1385 | DS4: كمية1486 | DT4: وزن1587 | DU4: كمية1088 | DV4: وزن1189 | DW4: كمية1390 | DX4: وزن1491 | DY4: كمية15 | DZ4: وزن16 | EA4: كمية692 | EB4: وزن793 | EC4: كمية994 | ED4: وزن1095 | EE4: كمية1196 | EF4: وزن1297 | EG4: كمية798 | EH4: وزن899 | EI4: كمية0 | EJ4: وزن1 | EK4: كمية12102 | EL4: وزن13103 | EM4: كمية8104 | EN4: وزن9105 | EO4: كمية11106 | EP4: وزن122 | EQ4: كمية13108 | ER4: وزن14109 | ES4: كمية7110 | ET4: وزن8111 | EU4: كمية10112 | EV4: وزن11113 | EW4: كمية124 | EX4: وزن13115 | EY4: كمية8116 | EZ4: وزن9117 | FA4: كمية118 | FB4: وزن2 | FC4: كمية1312 | FD4: وزن14121 | FE4: كمية9122 | FF4: وزن10123 | FG4: كمية1212 | FH4: وزن13125 | FI4: كمية14126 | FJ4: وزن15127 | FK4: كمية8128 | FL4: وزن9129 | FM4: كمية11130 | FN4: وزن12131 | FO4: كمية13132 | FP4: وزن14133 | FQ4: كمية9134 | FR4: وزن10135 | FS4: كمية1213 | FT4: وزن13137 | FU4: كمية14138 | FV4: وزن15139 | FW4: كمية10140 | FX4: وزن11141 | FY4: كمية13142 | FZ4: وزن14143 | GA4: كمية1514 | GB4: وزن16145 | GC4: كمية7146 | GD4: وزن8147 | GE4: كمية10148 | GF4: وزن11149 | GG4: كمية12150 | GH4: وزن13151 | GI4: كمية8152 | GJ4: وزن9153 | GK4: كمية11154 | GL4: وزن12155 | GM4: كمية13156 | GN4: وزن14157 | GO4: كمية8153 | GP4: وزن9154 | GQ4: كمية11155 | GR4: وزن12156 | GS4: كمية13157 | GT4: وزن14158 | GU4: كمية9158 | GV4: وزن3 | GW4: كمية12160 | GX4: وزن13161 | GY4: كمية14162 | GZ4: وزن132 | HA4: معادلة
A5: عملاء إدارة | B5: بروكتر وجامبل مصر | C5: ص فيرى 500 مل كود 91239024 | D5: 288 | E5: 223 | F5: 208 | G5: 201879 | H5: 0.279 | I5: ='2020'!$GY5 -> 1500 | J5: =('2020'!$I5*H5)/1000 -> 0.4185 | K5: 2 | L5: 2020-03-15 | M5: 2020-03-16 | N5: 2020-03-17 | O5: 1500 | GU5: ='2020'!$Q5+'2020'!$W5+'2020'!$AC5+'2020'!$AI5+'2020'!$AO5+'2020'!$AU5+'2020'!$BA5+'2020'!$BG5+'2020'!$BM5+'2020'!$BS5+'2020'!$BY5+'2020'!$CE5+'2020'!$CK5+'2020'!$CQ5+'2020'!$CW5+'2020'!$DC5+'2020'!$DI5+'2020'!$DO5+'2020'!$DU5+'2020'!$EA5+'2020'!$EG5+'2020'!$EM5+'2020'!$ES5+'2020'!$EY5+'2020'!$FE5+'2020'!$FK5+'2020'!$FQ5+'2020'!$FW5+'2020'!$GC5+'2020'!$GI5+'2020'!$GO5 -> 0 | GW5: ='2020'!$S5+'2020'!$Y5+'2020'!$AE5+'2020'!$AK5+'2020'!$AQ5+'2020'!$AW5+'2020'!$BC5+'2020'!$BI5+'2020'!$BO5+'2020'!$BU5+'2020'!$CA5+'2020'!$CG5+'2020'!$CM5+'2020'!$CS5+'2020'!$CY5+'2020'!$DE5+'2020'!$DK5+'2020'!$DQ5+'2020'!$DW5+'2020'!$EC5+'2020'!$EI5+'2020'!$EO5+'2020'!$EU5+'2020'!$FA5+'2020'!$FG5+'2020'!$FM5+'2020'!$FS5+'2020'!$FY5+'2020'!$GE5+'2020'!$GK5+'2020'!$GQ5 -> 0 | GY5: ='2020'!$O5+'2020'!$GU5-GW5 -> 1500 | GZ5: =('2020'!$GY5*'2020'!$H5)/1000 -> 0.4185 | HA5: =$G5=$D$3 -> FALSE
A6: عملاء إدارة | B6: بروكتر وجامبل مصر | C6: ص فيرى ا لتركود 039 | D6: 378 | E6: 216 | F6: 301 | G6: 201876 | H6: 0.5132 | I6: ='2020'!$GY6 -> 750 | J6: =('2020'!$I6*H6)/1000 -> 0.3849 | K6: 1 | L6: 2020-03-15 | M6: 2020-03-16 | N6: 2020-03-16 | O6: 750 | GU6: ='2020'!$Q6+'2020'!$W6+'2020'!$AC6+'2020'!$AI6+'2020'!$AO6+'2020'!$AU6+'2020'!$BA6+'2020'!$BG6+'2020'!$BM6+'2020'!$BS6+'2020'!$BY6+'2020'!$CE6+'2020'!$CK6+'2020'!$CQ6+'2020'!$CW6+'2020'!$DC6+'2020'!$DI6+'2020'!$DO6+'2020'!$DU6+'2020'!$EA6+'2020'!$EG6+'2020'!$EM6+'2020'!$ES6+'2020'!$EY6+'2020'!$FE6+'2020'!$FK6+'2020'!$FQ6+'2020'!$FW6+'2020'!$GC6+'2020'!$GI6+'2020'!$GO6 -> 0 | GW6: ='2020'!$S6+'2020'!$Y6+'2020'!$AE6+'2020'!$AK6+'2020'!$AQ6+'2020'!$AW6+'2020'!$BC6+'2020'!$BI6+'2020'!$BO6+'2020'!$BU6+'2020'!$CA6+'2020'!$CG6+'2020'!$CM6+'2020'!$CS6+'2020'!$CY6+'2020'!$DE6+'2020'!$DK6+'2020'!$DQ6+'2020'!$DW6+'2020'!$EC6+'2020'!$EI6+'2020'!$EO6+'2020'!$EU6+'2020'!$FA6+'2020'!$FG6+'2020'!$FM6+'2020'!$FS6+'2020'!$FY6+'2020'!$GE6+'2020'!$GK6+'2020'!$GQ6 -> 0 | GY6: ='2020'!$O6+'2020'!$GU6-GW6 -> 750 | GZ6: =('2020'!$GY6*'2020'!$H6)/1000 -> 0.3849 | HA6: =$G6=$D$3 -> FALSE
A7: عملاء إدارة | B7: بروكتر وجامبل مصر | C7: شيت ميكرو | D7: 1000 | E7: 700 | F7: 0 | G7: 201997 | H7: 0.259 | I7: ='2020'!$GY7 -> 20800 | J7: =('2020'!$I7*H7)/1000 -> 5.3872 | K7: 10 | L7: 2020-03-24 | M7: 2020-04-02 | N7: 2020-03-26 | O7: 20800 | GU7: ='2020'!$Q7+'2020'!$W7+'2020'!$AC7+'2020'!$AI7+'2020'!$AO7+'2020'!$AU7+'2020'!$BA7+'2020'!$BG7+'2020'!$BM7+'2020'!$BS7+'2020'!$BY7+'2020'!$CE7+'2020'!$CK7+'2020'!$CQ7+'2020'!$CW7+'2020'!$DC7+'2020'!$DI7+'2020'!$DO7+'2020'!$DU7+'2020'!$EA7+'2020'!$EG7+'2020'!$EM7+'2020'!$ES7+'2020'!$EY7+'2020'!$FE7+'2020'!$FK7+'2020'!$FQ7+'2020'!$FW7+'2020'!$GC7+'2020'!$GI7+'2020'!$GO7 -> 0 | GW7: ='2020'!$S7+'2020'!$Y7+'2020'!$AE7+'2020'!$AK7+'2020'!$AQ7+'2020'!$AW7+'2020'!$BC7+'2020'!$BI7+'2020'!$BO7+'2020'!$BU7+'2020'!$CA7+'2020'!$CG7+'2020'!$CM7+'2020'!$CS7+'2020'!$CY7+'2020'!$DE7+'2020'!$DK7+'2020'!$DQ7+'2020'!$DW7+'2020'!$EC7+'2020'!$EI7+'2020'!$EO7+'2020'!$EU7+'2020'!$FA7+'2020'!$FG7+'2020'!$FM7+'2020'!$FS7+'2020'!$FY7+'2020'!$GE7+'2020'!$GK7+'2020'!$GQ7 -> 0 | GY7: ='2020'!$O7+'2020'!$GU7-GW7 -> 20800 | GZ7: =('2020'!$GY7*'2020'!$H7)/1000 -> 5.3872 | HA7: =$G7=$D$3 -> FALSE
A8: محمد جمال | B8: اسكندرية للكيماويات - ادكو | C8: ص ماكسيل ديف معطر 475مل | D8: 223 | E8: 221 | F8: 296 | G8: 201944 | H8: 0.3578 | I8: ='2020'!$GY8 -> 3240 | J8: =('2020'!$I8*H8)/1000 -> 1.159272 | K8: . | L8: 2020-03-19 | M8: 2020-03-20 | N8: 2020-03-31 | O8: 3240 | GU8: ='2020'!$Q8+'2020'!$W8+'2020'!$AC8+'2020'!$AI8+'2020'!$AO8+'2020'!$AU8+'2020'!$BA8+'2020'!$BG8+'2020'!$BM8+'2020'!$BS8+'2020'!$BY8+'2020'!$CE8+'2020'!$CK8+'2020'!$CQ8+'2020'!$CW8+'2020'!$DC8+'2020'!$DI8+'2020'!$DO8+'2020'!$DU8+'2020'!$EA8+'2020'!$EG8+'2020'!$EM8+'2020'!$ES8+'2020'!$EY8+'2020'!$FE8+'2020'!$FK8+'2020'!$FQ8+'2020'!$FW8+'2020'!$GC8+'2020'!$GI8+'2020'!$GO8 -> 0 | GW8: ='2020'!$S8+'2020'!$Y8+'2020'!$AE8+'2020'!$AK8+'2020'!$AQ8+'2020'!$AW8+'2020'!$BC8+'2020'!$BI8+'2020'!$BO8+'2020'!$BU8+'2020'!$CA8+'2020'!$CG8+'2020'!$CM8+'2020'!$CS8+'2020'!$CY8+'2020'!$DE8+'2020'!$DK8+'2020'!$DQ8+'2020'!$DW8+'2020'!$EC8+'2020'!$EI8+'2020'!$EO8+'2020'!$EU8+'2020'!$FA8+'2020'!$FG8+'2020'!$FM8+'2020'!$FS8+'2020'!$FY8+'2020'!$GE8+'2020'!$GK8+'2020'!$GQ8 -> 0 | GY8: ='2020'!$O8+'2020'!$GU8-GW8 -> 3240 | GZ8: =('2020'!$GY8*'2020'!$H8)/1000 -> 1.159272 | HA8: =$G8=$D$3 -> FALSE
A9: محمد جمال | B9: الاستثمارات الصناعية - ايكو | C9: ص مسحوق ليدر عالى الرغوة220 جم | D9: 261 | E9: 184 | F9: 146 | G9: 202057 | H9: 0.1497 | I9: ='2020'!$GY9 -> 27000 | J9: =('2020'!$I9*H9)/1000 -> 4.0419 | K9: 14 | L9: 2020-03-30 | M9: 2020-04-01 | N9: 2020-03-31 | O9: 27000 | GU9: ='2020'!$Q9+'2020'!$W9+'2020'!$AC9+'2020'!$AI9+'2020'!$AO9+'2020'!$AU9+'2020'!$BA9+'2020'!$BG9+'2020'!$BM9+'2020'!$BS9+'2020'!$BY9+'2020'!$CE9+'2020'!$CK9+'2020'!$CQ9+'2020'!$CW9+'2020'!$DC9+'2020'!$DI9+'2020'!$DO9+'2020'!$DU9+'2020'!$EA9+'2020'!$EG9+'2020'!$EM9+'2020'!$ES9+'2020'!$EY9+'2020'!$FE9+'2020'!$FK9+'2020'!$FQ9+'2020'!$FW9+'2020'!$GC9+'2020'!$GI9+'2020'!$GO9 -> 0 | GW9: ='2020'!$S9+'2020'!$Y9+'2020'!$AE9+'2020'!$AK9+'2020'!$AQ9+'2020'!$AW9+'2020'!$BC9+'2020'!$BI9+'2020'!$BO9+'2020'!$BU9+'2020'!$CA9+'2020'!$CG9+'2020'!$CM9+'2020'!$CS9+'2020'!$CY9+'2020'!$DE9+'2020'!$DK9+'2020'!$DQ9+'2020'!$DW9+'2020'!$EC9+'2020'!$EI9+'2020'!$EO9+'2020'!$EU9+'2020'!$FA9+'2020'!$FG9+'2020'!$FM9+'2020'!$FS9+'2020'!$FY9+'2020'!$GE9+'2020'!$GK9+'2020'!$GQ9 -> 0 | GY9: ='2020'!$O9+'2020'!$GU9-GW9 -> 27000 | GZ9: =('2020'!$GY9*'2020'!$H9)/1000 -> 4.0419 | HA9: =$G9=$D$3 -> FALSE
A10: محمد جمال | B10: العربى للتجارة | C10: ص مروحة حائط 18r- كود 038 | D10: 520 | E10: 200 | F10: 520 | G10: 194635 | H10: 0.8325 | I10: ='2020'!$GY10 -> 480 | J10: =('2020'!$I10*H10)/1000 -> 0.3996 | K10: 2 | L10: 2019-10-10 | M10: 2019-10-21 | N10: 2020-01-15 | O10: 480 | GU10: ='2020'!$Q10+'2020'!$W10+'2020'!$AC10+'2020'!$AI10+'2020'!$AO10+'2020'!$AU10+'2020'!$BA10+'2020'!$BG10+'2020'!$BM10+'2020'!$BS10+'2020'!$BY10+'2020'!$CE10+'2020'!$CK10+'2020'!$CQ10+'2020'!$CW10+'2020'!$DC10+'2020'!$DI10+'2020'!$DO10+'2020'!$DU10+'2020'!$EA10+'2020'!$EG10+'2020'!$EM10+'2020'!$ES10+'2020'!$EY10+'2020'!$FE10+'2020'!$FK10+'2020'!$FQ10+'2020'!$FW10+'2020'!$GC10+'2020'!$GI10+'2020'!$GO10 -> 0 | GW10: ='2020'!$S10+'2020'!$Y10+'2020'!$AE10+'2020'!$AK10+'2020'!$AQ10+'2020'!$AW10+'2020'!$BC10+'2020'!$BI10+'2020'!$BO10+'2020'!$BU10+'2020'!$CA10+'2020'!$CG10+'2020'!$CM10+'2020'!$CS10+'2020'!$CY10+'2020'!$DE10+'2020'!$DK10+'2020'!$DQ10+'2020'!$DW10+'2020'!$EC10+'2020'!$EI10+'2020'!$EO10+'2020'!$EU10+'2020'!$FA10+'2020'!$FG10+'2020'!$FM10+'2020'!$FS10+'2020'!$FY10+'2020'!$GE10+'2020'!$GK10+'2020'!$GQ10 -> 0 | GY10: ='2020'!$O10+'2020'!$GU10-GW10 -> 480 | GZ10: =('2020'!$GY10*'2020'!$H10)/1000 -> 0.3996 | HA10: =$G10=$D$3 -> FALSE
A11: محمد جمال | B11: العربى للتجارة | C11: ص مروحة حائط twf18 كود 090 | D11: 520 | E11: 200 | F11: 520 | G11: 201462 | H11: 0.8366 | I11: ='2020'!$GY11 -> 1970 | J11: =('2020'!$I11*H11)/1000 -> 1.648102 | K11: 8 | L11: 2020-02-09 | M11: 2020-02-22 | N11: 2020-02-23 | O11: 1970 | GU11: ='2020'!$Q11+'2020'!$W11+'2020'!$AC11+'2020'!$AI11+'2020'!$AO11+'2020'!$AU11+'2020'!$BA11+'2020'!$BG11+'2020'!$BM11+'2020'!$BS11+'2020'!$BY11+'2020'!$CE11+'2020'!$CK11+'2020'!$CQ11+'2020'!$CW11+'2020'!$DC11+'2020'!$DI11+'2020'!$DO11+'2020'!$DU11+'2020'!$EA11+'2020'!$EG11+'2020'!$EM11+'2020'!$ES11+'2020'!$EY11+'2020'!$FE11+'2020'!$FK11+'2020'!$FQ11+'2020'!$FW11+'2020'!$GC11+'2020'!$GI11+'2020'!$GO11 -> 0 | GW11: ='2020'!$S11+'2020'!$Y11+'2020'!$AE11+'2020'!$AK11+'2020'!$AQ11+'2020'!$AW11+'2020'!$BC11+'2020'!$BI11+'2020'!$BO11+'2020'!$BU11+'2020'!$CA11+'2020'!$CG11+'2020'!$CM11+'2020'!$CS11+'2020'!$CY11+'2020'!$DE11+'2020'!$DK11+'2020'!$DQ11+'2020'!$DW11+'2020'!$EC11+'2020'!$EI11+'2020'!$EO11+'2020'!$EU11+'2020'!$FA11+'2020'!$FG11+'2020'!$FM11+'2020'!$FS11+'2020'!$FY11+'2020'!$GE11+'2020'!$GK11+'2020'!$GQ11 -> 0 | GY11: ='2020'!$O11+'2020'!$GU11-GW11 -> 1970 | GZ11: =('2020'!$GY11*'2020'!$H11)/1000 -> 1.648102 | HA11: =$G11=$D$3 -> FALSE
A12: محمد جمال | B12: العربى للتجارة | C12: ص مروحة حائط twf18 كود 090 | D12: 520 | E12: 200 | F12: 520 | G12: 201224 | H12: 0.8397 | I12: ='2020'!$GY12 -> 240 | J12: =('2020'!$I12*H12)/1000 -> 0.201528 | K12: 1 | L12: 2020-01-20 | M12: 2020-01-23 | N12: 2020-01-22 | O12: 240 | GU12: ='2020'!$Q12+'2020'!$W12+'2020'!$AC12+'2020'!$AI12+'2020'!$AO12+'2020'!$AU12+'2020'!$BA12+'2020'!$BG12+'2020'!$BM12+'2020'!$BS12+'2020'!$BY12+'2020'!$CE12+'2020'!$CK12+'2020'!$CQ12+'2020'!$CW12+'2020'!$DC12+'2020'!$DI12+'2020'!$DO12+'2020'!$DU12+'2020'!$EA12+'2020'!$EG12+'2020'!$EM12+'2020'!$ES12+'2020'!$EY12+'2020'!$FE12+'2020'!$FK12+'2020'!$FQ12+'2020'!$FW12+'2020'!$GC12+'2020'!$GI12+'2020'!$GO12 -> 0 | GW12: ='2020'!$S12+'2020'!$Y12+'2020'!$AE12+'2020'!$AK12+'2020'!$AQ12+'2020'!$AW12+'2020'!$BC12+'2020'!$BI12+'2020'!$BO12+'2020'!$BU12+'2020'!$CA12+'2020'!$CG12+'2020'!$CM12+'2020'!$CS12+'2020'!$CY12+'2020'!$DE12+'2020'!$DK12+'2020'!$DQ12+'2020'!$DW12+'2020'!$EC12+'2020'!$EI12+'2020'!$EO12+'2020'!$EU12+'2020'!$FA12+'2020'!$FG12+'2020'!$FM12+'2020'!$FS12+'2020'!$FY12+'2020'!$GE12+'2020'!$GK12+'2020'!$GQ12 -> 0 | GY12: ='2020'!$O12+'2020'!$GU12-GW12 -> 240 | GZ12: =('2020'!$GY12*'2020'!$H12)/1000 -> 0.201528 | HA12: FALSE
A13: محمد جمال | B13: العربى للتجارة | C13: ص مروحة ستاند - M 111 - EFS - كود 905187 | D13: 1172 | E13: 310 | F13: 460 | G13: 201942 | H13: 1.672 | I13: ='2020'!$GY13 -> 92 | J13: =('2020'!$I13*H13)/1000 -> 0.153824 | K13: 1 | L13: 2020-03-18 | M13: 2020-03-25 | N13: 2020-03-24 | O13: 92 | GU13: ='2020'!$Q13+'2020'!$W13+'2020'!$AC13+'2020'!$AI13+'2020'!$AO13+'2020'!$AU13+'2020'!$BA13+'2020'!$BG13+'2020'!$BM13+'2020'!$BS13+'2020'!$BY13+'2020'!$CE13+'2020'!$CK13+'2020'!$CQ13+'2020'!$CW13+'2020'!$DC13+'2020'!$DI13+'2020'!$DO13+'2020'!$DU13+'2020'!$EA13+'2020'!$EG13+'2020'!$EM13+'2020'!$ES13+'2020'!$EY13+'2020'!$FE13+'2020'!$FK13+'2020'!$FQ13+'2020'!$FW13+'2020'!$GC13+'2020'!$GI13+'2020'!$GO13 -> 0 | GW13: ='2020'!$S13+'2020'!$Y13+'2020'!$AE13+'2020'!$AK13+'2020'!$AQ13+'2020'!$AW13+'2020'!$BC13+'2020'!$BI13+'2020'!$BO13+'2020'!$BU13+'2020'!$CA13+'2020'!$CG13+'2020'!$CM13+'2020'!$CS13+'2020'!$CY13+'2020'!$DE13+'2020'!$DK13+'2020'!$DQ13+'2020'!$DW13+'2020'!$EC13+'2020'!$EI13+'2020'!$EO13+'2020'!$EU13+'2020'!$FA13+'2020'!$FG13+'2020'!$FM13+'2020'!$FS13+'2020'!$FY13+'2020'!$GE13+'2020'!$GK13+'2020'!$GQ13 -> 0 | GY13: ='2020'!$O13+'2020'!$GU13-GW13 -> 92 | GZ13: =('2020'!$GY13*'2020'!$H13)/1000 -> 0.153824 | HA13: FALSE
A14: محمد جمال | B14: العربى للتجارة | C14: ص مروحة 18 كود 245 | D14: 520 | E14: 200 | F14: 520 | G14: 201868 | H14: 0.8366 | I14: ='2020'!$GY14 -> 1253 | J14: =('2020'!$I14*H14)/1000 -> 1.0482598 | K14: 5 | L14: 2020-03-15 | M14: 2020-03-19 | N14: 2020-03-19 | O14: 1253 | GU14: ='2020'!$Q14+'2020'!$W14+'2020'!$AC14+'2020'!$AI14+'2020'!$AO14+'2020'!$AU14+'2020'!$BA14+'2020'!$BG14+'2020'!$BM14+'2020'!$BS14+'2020'!$BY14+'2020'!$CE14+'2020'!$CK14+'2020'!$CQ14+'2020'!$CW14+'2020'!$DC14+'2020'!$DI14+'2020'!$DO14+'2020'!$DU14+'2020'!$EA14+'2020'!$EG14+'2020'!$EM14+'2020'!$ES14+'2020'!$EY14+'2020'!$FE14+'2020'!$FK14+'2020'!$FQ14+'2020'!$FW14+'2020'!$GC14+'2020'!$GI14+'2020'!$GO14 -> 0 | GW14: ='2020'!$S14+'2020'!$Y14+'2020'!$AE14+'2020'!$AK14+'2020'!$AQ14+'2020'!$AW14+'2020'!$BC14+'2020'!$BI14+'2020'!$BO14+'2020'!$BU14+'2020'!$CA14+'2020'!$CG14+'2020'!$CM14+'2020'!$CS14+'2020'!$CY14+'2020'!$DE14+'2020'!$DK14+'2020'!$DQ14+'2020'!$DW14+'2020'!$EC14+'2020'!$EI14+'2020'!$EO14+'2020'!$EU14+'2020'!$FA14+'2020'!$FG14+'2020'!$FM14+'2020'!$FS14+'2020'!$FY14+'2020'!$GE14+'2020'!$GK14+'2020'!$GQ14 -> 0 | GY14: ='2020'!$O14+'2020'!$GU14-GW14 -> 1253 | GZ14: =('2020'!$GY14*'2020'!$H14)/1000 -> 1.0482598 | HA14: FALSE
A15: محمد جمال | B15: العربي للصناعات الهندسية | C15: VH - 1230S قاعدة بدون طباعة | D15: 879 | E15: 550 | F15: 120 | G15: 201543 | H15: 0.7072 | I15: ='2020'!$GY15 -> 75 | J15: =('2020'!$I15*H15)/1000 -> 0.05304 | K15: 1 | L15: 2020-02-12 | M15: 2020-03-09 | N15: 2020-02-24 | O15: 75 | GU15: ='2020'!$Q15+'2020'!$W15+'2020'!$AC15+'2020'!$AI15+'2020'!$AO15+'2020'!$AU15+'2020'!$BA15+'2020'!$BG15+'2020'!$BM15+'2020'!$BS15+'2020'!$BY15+'2020'!$CE15+'2020'!$CK15+'2020'!$CQ15+'2020'!$CW15+'2020'!$DC15+'2020'!$DI15+'2020'!$DO15+'2020'!$DU15+'2020'!$EA15+'2020'!$EG15+'2020'!$EM15+'2020'!$ES15+'2020'!$EY15+'2020'!$FE15+'2020'!$FK15+'2020'!$FQ15+'2020'!$FW15+'2020'!$GC15+'2020'!$GI15+'2020'!$GO15 -> 0 | GW15: ='2020'!$S15+'2020'!$Y15+'2020'!$AE15+'2020'!$AK15+'2020'!$AQ15+'2020'!$AW15+'2020'!$BC15+'2020'!$BI15+'2020'!$BO15+'2020'!$BU15+'2020'!$CA15+'2020'!$CG15+'2020'!$CM15+'2020'!$CS15+'2020'!$CY15+'2020'!$DE15+'2020'!$DK15+'2020'!$DQ15+'2020'!$DW15+'2020'!$EC15+'2020'!$EI15+'2020'!$EO15+'2020'!$EU15+'2020'!$FA15+'2020'!$FG15+'2020'!$FM15+'2020'!$FS15+'2020'!$FY15+'2020'!$GE15+'2020'!$GK15+'2020'!$GQ15 -> 0 | GY15: ='2020'!$O15+'2020'!$GU15-GW15 -> 75 | GZ15: =('2020'!$GY15*'2020'!$H15)/1000 -> 0.05304 | HA15: FALSE
A16: محمد جمال | B16: العربي للصناعات الهندسية | C16: قميص غسالة كود VH8460s | D16: 588 | E16: 568 | F16: 938 | G16: 201862 | H16: 2.195 | I16: ='2020'!$GY16 -> 3724 | J16: =('2020'!$I16*H16)/1000 -> 8.17418 | K16: 30 | L16: 2020-03-11 | M16: 2020-03-27 | N16: 2020-03-25 | O16: 3724 | GU16: ='2020'!$Q16+'2020'!$W16+'2020'!$AC16+'2020'!$AI16+'2020'!$AO16+'2020'!$AU16+'2020'!$BA16+'2020'!$BG16+'2020'!$BM16+'2020'!$BS16+'2020'!$BY16+'2020'!$CE16+'2020'!$CK16+'2020'!$CQ16+'2020'!$CW16+'2020'!$DC16+'2020'!$DI16+'2020'!$DO16+'2020'!$DU16+'2020'!$EA16+'2020'!$EG16+'2020'!$EM16+'2020'!$ES16+'2020'!$EY16+'2020'!$FE16+'2020'!$FK16+'2020'!$FQ16+'2020'!$FW16+'2020'!$GC16+'2020'!$GI16+'2020'!$GO16 -> 0 | GW16: ='2020'!$S16+'2020'!$Y16+'2020'!$AE16+'2020'!$AK16+'2020'!$AQ16+'2020'!$AW16+'2020'!$BC16+'2020'!$BI16+'2020'!$BO16+'2020'!$BU16+'2020'!$CA16+'2020'!$CG16+'2020'!$CM16+'2020'!$CS16+'2020'!$CY16+'2020'!$DE16+'2020'!$DK16+'2020'!$DQ16+'2020'!$DW16+'2020'!$EC16+'2020'!$EI16+'2020'!$EO16+'2020'!$EU16+'2020'!$FA16+'2020'!$FG16+'2020'!$FM16+'2020'!$FS16+'2020'!$FY16+'2020'!$GE16+'2020'!$GK16+'2020'!$GQ16 -> 0 | GY16: ='2020'!$O16+'2020'!$GU16-GW16 -> 3724 | GZ16: =('2020'!$GY16*'2020'!$H16)/1000 -> 8.17418 | HA16: FALSE
A17: محمد جمال | B17: العربي للصناعات الهندسية | C17: قميص غسالة كود VH1210S | D17: 885 | E17: 570 | F17: 1030 | G17: 201693 | H17: 3.0614 | I17: ='2020'!$GY17 -> 714 | J17: =('2020'!$I17*H17)/1000 -> 2.1858396 | K17: 5 | L17: 2020-02-20 | M17: 2020-03-01 | N17: 2020-03-04 | O17: 714 | GU17: ='2020'!$Q17+'2020'!$W17+'2020'!$AC17+'2020'!$AI17+'2020'!$AO17+'2020'!$AU17+'2020'!$BA17+'2020'!$BG17+'2020'!$BM17+'2020'!$BS17+'2020'!$BY17+'2020'!$CE17+'2020'!$CK17+'2020'!$CQ17+'2020'!$CW17+'2020'!$DC17+'2020'!$DI17+'2020'!$DO17+'2020'!$DU17+'2020'!$EA17+'2020'!$EG17+'2020'!$EM17+'2020'!$ES17+'2020'!$EY17+'2020'!$FE17+'2020'!$FK17+'2020'!$FQ17+'2020'!$FW17+'2020'!$GC17+'2020'!$GI17+'2020'!$GO17 -> 0 | GW17: ='2020'!$S17+'2020'!$Y17+'2020'!$AE17+'2020'!$AK17+'2020'!$AQ17+'2020'!$AW17+'2020'!$BC17+'2020'!$BI17+'2020'!$BO17+'2020'!$BU17+'2020'!$CA17+'2020'!$CG17+'2020'!$CM17+'2020'!$CS17+'2020'!$CY17+'2020'!$DE17+'2020'!$DK17+'2020'!$DQ17+'2020'!$DW17+'2020'!$EC17+'2020'!$EI17+'2020'!$EO17+'2020'!$EU17+'2020'!$FA17+'2020'!$FG17+'2020'!$FM17+'2020'!$FS17+'2020'!$FY17+'2020'!$GE17+'2020'!$GK17+'2020'!$GQ17 -> 0 | GY17: ='2020'!$O17+'2020'!$GU17-GW17 -> 714 | GZ17: =('2020'!$GY17*'2020'!$H17)/1000 -> 2.1858396 | HA17: FALSE
A18: محمد جمال | B18: العربى لصناعة التبريد والتكييف | C18: ASPAKC E 757 - JBRZ | D18: 903 | E18: 383 | F18: 611 | G18: 201787 | H18: 1.5278 | I18: ='2020'!$GY18 -> 2275 | J18: =('2020'!$I18*H18)/1000 -> 3.475745 | K18: 12 | L18: 2020-03-08 | M18: 2020-03-22 | N18: 2020-03-22 | O18: 2275 | GU18: ='2020'!$Q18+'2020'!$W18+'2020'!$AC18+'2020'!$AI18+'2020'!$AO18+'2020'!$AU18+'2020'!$BA18+'2020'!$BG18+'2020'!$BM18+'2020'!$BS18+'2020'!$BY18+'2020'!$CE18+'2020'!$CK18+'2020'!$CQ18+'2020'!$CW18+'2020'!$DC18+'2020'!$DI18+'2020'!$DO18+'2020'!$DU18+'2020'!$EA18+'2020'!$EG18+'2020'!$EM18+'2020'!$ES18+'2020'!$EY18+'2020'!$FE18+'2020'!$FK18+'2020'!$FQ18+'2020'!$FW18+'2020'!$GC18+'2020'!$GI18+'2020'!$GO18 -> 0 | GW18: ='2020'!$S18+'2020'!$Y18+'2020'!$AE18+'2020'!$AK18+'2020'!$AQ18+'2020'!$AW18+'2020'!$BC18+'2020'!$BI18+'2020'!$BO18+'2020'!$BU18+'2020'!$CA18+'2020'!$CG18+'2020'!$CM18+'2020'!$CS18+'2020'!$CY18+'2020'!$DE18+'2020'!$DK18+'2020'!$DQ18+'2020'!$DW18+'2020'!$EC18+'2020'!$EI18+'2020'!$EO18+'2020'!$EU18+'2020'!$FA18+'2020'!$FG18+'2020'!$FM18+'2020'!$FS18+'2020'!$FY18+'2020'!$GE18+'2020'!$GK18+'2020'!$GQ18 -> 0 | GY18: ='2020'!$O18+'2020'!$GU18-GW18 -> 2275 | GZ18: =('2020'!$GY18*'2020'!$H18)/1000 -> 3.475745 | HA18: FALSE
A19: محمد جمال | B19: العربى لصناعة التبريد والتكييف | C19: ص تكييف ASPAKC - E 763 - JBRZ | D19: 1000 | E19: 345 | F19: 291 | G19: 201133 | H19: 0.9293 | I19: ='2020'!$GY19 -> 580 | J19: =('2020'!$I19*H19)/1000 -> 0.538994 | K19: 2 | L19: 2020-01-13 | M19: 2020-02-05 | N19: 2020-01-23 | O19: 580 | GU19: ='2020'!$Q19+'2020'!$W19+'2020'!$AC19+'2020'!$AI19+'2020'!$AO19+'2020'!$AU19+'2020'!$BA19+'2020'!$BG19+'2020'!$BM19+'2020'!$BS19+'2020'!$BY19+'2020'!$CE19+'2020'!$CK19+'2020'!$CQ19+'2020'!$CW19+'2020'!$DC19+'2020'!$DI19+'2020'!$DO19+'2020'!$DU19+'2020'!$EA19+'2020'!$EG19+'2020'!$EM19+'2020'!$ES19+'2020'!$EY19+'2020'!$FE19+'2020'!$FK19+'2020'!$FQ19+'2020'!$FW19+'2020'!$GC19+'2020'!$GI19+'2020'!$GO19 -> 0 | GW19: ='2020'!$S19+'2020'!$Y19+'2020'!$AE19+'2020'!$AK19+'2020'!$AQ19+'2020'!$AW19+'2020'!$BC19+'2020'!$BI19+'2020'!$BO19+'2020'!$BU19+'2020'!$CA19+'2020'!$CG19+'2020'!$CM19+'2020'!$CS19+'2020'!$CY19+'2020'!$DE19+'2020'!$DK19+'2020'!$DQ19+'2020'!$DW19+'2020'!$EC19+'2020'!$EI19+'2020'!$EO19+'2020'!$EU19+'2020'!$FA19+'2020'!$FG19+'2020'!$FM19+'2020'!$FS19+'2020'!$FY19+'2020'!$GE19+'2020'!$GK19+'2020'!$GQ19 -> 0 | GY19: ='2020'!$O19+'2020'!$GU19-GW19 -> 580 | GZ19: =('2020'!$GY19*'2020'!$H19)/1000 -> 0.538994 | HA19: FALSE
A20: محمد جمال | B20: العربى لصناعة التبريد والتكييف | C20: ص تكييف ASPAKC - E 766 - JBRZ | D20: 1024 | E20: 425 | F20: 864 | G20: 201785 | H20: 2.3117 | I20: ='2020'!$GY20 -> 983 | J20: =('2020'!$I20*H20)/1000 -> 2.2724011 | K20: 7 | L20: 2020-03-08 | M20: 2020-03-22 | N20: 2020-03-22 | O20: 983 | GU20: ='2020'!$Q20+'2020'!$W20+'2020'!$AC20+'2020'!$AI20+'2020'!$AO20+'2020'!$AU20+'2020'!$BA20+'2020'!$BG20+'2020'!$BM20+'2020'!$BS20+'2020'!$BY20+'2020'!$CE20+'2020'!$CK20+'2020'!$CQ20+'2020'!$CW20+'2020'!$DC20+'2020'!$DI20+'2020'!$DO20+'2020'!$DU20+'2020'!$EA20+'2020'!$EG20+'2020'!$EM20+'2020'!$ES20+'2020'!$EY20+'2020'!$FE20+'2020'!$FK20+'2020'!$FQ20+'2020'!$FW20+'2020'!$GC20+'2020'!$GI20+'2020'!$GO20 -> 0 | GW20: ='2020'!$S20+'2020'!$Y20+'2020'!$AE20+'2020'!$AK20+'2020'!$AQ20+'2020'!$AW20+'2020'!$BC20+'2020'!$BI20+'2020'!$BO20+'2020'!$BU20+'2020'!$CA20+'2020'!$CG20+'2020'!$CM20+'2020'!$CS20+'2020'!$CY20+'2020'!$DE20+'2020'!$DK20+'2020'!$DQ20+'2020'!$DW20+'2020'!$EC20+'2020'!$EI20+'2020'!$EO20+'2020'!$EU20+'2020'!$FA20+'2020'!$FG20+'2020'!$FM20+'2020'!$FS20+'2020'!$FY20+'2020'!$GE20+'2020'!$GK20+'2020'!$GQ20 -> 0 | GY20: ='2020'!$O20+'2020'!$GU20-GW20 -> 983 | GZ20: =('2020'!$GY20*'2020'!$H20)/1000 -> 2.2724011 | HA20: =$G20=$D$3 -> FALSE
A21: محمد جمال | B21: العربى لصناعة التبريد والتكييف | C21: ASPAKC - E 757 - JBRZ | D21: 903 | E21: 383 | F21: 611 | G21: 201134 | H21: 1.5245 | I21: ='2020'!$GY21 -> 109 | J21: =('2020'!$I21*H21)/1000 -> 0.1661705 | K21: 1 | L21: 2020-01-13 | M21: 2020-02-05 | N21: 2020-01-22 | O21: 109 | GU21: ='2020'!$Q21+'2020'!$W21+'2020'!$AC21+'2020'!$AI21+'2020'!$AO21+'2020'!$AU21+'2020'!$BA21+'2020'!$BG21+'2020'!$BM21+'2020'!$BS21+'2020'!$BY21+'2020'!$CE21+'2020'!$CK21+'2020'!$CQ21+'2020'!$CW21+'2020'!$DC21+'2020'!$DI21+'2020'!$DO21+'2020'!$DU21+'2020'!$EA21+'2020'!$EG21+'2020'!$EM21+'2020'!$ES21+'2020'!$EY21+'2020'!$FE21+'2020'!$FK21+'2020'!$FQ21+'2020'!$FW21+'2020'!$GC21+'2020'!$GI21+'2020'!$GO21 -> 0 | GW21: ='2020'!$S21+'2020'!$Y21+'2020'!$AE21+'2020'!$AK21+'2020'!$AQ21+'2020'!$AW21+'2020'!$BC21+'2020'!$BI21+'2020'!$BO21+'2020'!$BU21+'2020'!$CA21+'2020'!$CG21+'2020'!$CM21+'2020'!$CS21+'2020'!$CY21+'2020'!$DE21+'2020'!$DK21+'2020'!$DQ21+'2020'!$DW21+'2020'!$EC21+'2020'!$EI21+'2020'!$EO21+'2020'!$EU21+'2020'!$FA21+'2020'!$FG21+'2020'!$FM21+'2020'!$FS21+'2020'!$FY21+'2020'!$GE21+'2020'!$GK21+'2020'!$GQ21 -> 0 | GY21: ='2020'!$O21+'2020'!$GU21-GW21 -> 109 | GZ21: =('2020'!$GY21*'2020'!$H21)/1000 -> 0.1661705 | HA21: =$G21=$D$3 -> FALSE
A22: محمد جمال | B22: يونيون اير | C22: هيكل يونيون اير كود 086 | D22: 330 | E22: 245 | F22: 860 | G22: 195131 | H22: 0.8125 | I22: ='2020'!$GY22 -> 128 | J22: =('2020'!$I22*H22)/1000 -> 0.104 | K22: 1 | L22: 2019-11-21 | M22: 2019-11-26 | N22: 2020-03-03 | O22: 128 | GU22: ='2020'!$Q22+'2020'!$W22+'2020'!$AC22+'2020'!$AI22+'2020'!$AO22+'2020'!$AU22+'2020'!$BA22+'2020'!$BG22+'2020'!$BM22+'2020'!$BS22+'2020'!$BY22+'2020'!$CE22+'2020'!$CK22+'2020'!$CQ22+'2020'!$CW22+'2020'!$DC22+'2020'!$DI22+'2020'!$DO22+'2020'!$DU22+'2020'!$EA22+'2020'!$EG22+'2020'!$EM22+'2020'!$ES22+'2020'!$EY22+'2020'!$FE22+'2020'!$FK22+'2020'!$FQ22+'2020'!$FW22+'2020'!$GC22+'2020'!$GI22+'2020'!$GO22 -> 0 | GW22: ='2020'!$S22+'2020'!$Y22+'2020'!$AE22+'2020'!$AK22+'2020'!$AQ22+'2020'!$AW22+'2020'!$BC22+'2020'!$BI22+'2020'!$BO22+'2020'!$BU22+'2020'!$CA22+'2020'!$CG22+'2020'!$CM22+'2020'!$CS22+'2020'!$CY22+'2020'!$DE22+'2020'!$DK22+'2020'!$DQ22+'2020'!$DW22+'2020'!$EC22+'2020'!$EI22+'2020'!$EO22+'2020'!$EU22+'2020'!$FA22+'2020'!$FG22+'2020'!$FM22+'2020'!$FS22+'2020'!$FY22+'2020'!$GE22+'2020'!$GK22+'2020'!$GQ22 -> 0 | GY22: ='2020'!$O22+'2020'!$GU22-GW22 -> 128 | GZ22: =('2020'!$GY22*'2020'!$H22)/1000 -> 0.104 | HA22: =$G22=$D$3 -> FALSE
A23: محمد جمال | B23: يونيون اير | C23: ص بدون طباعة كود 025 | D23: 690 | E23: 660 | F23: 450 | G23: 192658 | H23: 2.2042 | I23: ='2020'!$GY23 -> 355 | J23: =('2020'!$I23*H23)/1000 -> 0.782491 | K23: 3 | L23: 2019-04-25 | M23: 2019-04-28 | N23: 2020-03-01 | O23: 355 | GU23: ='2020'!$Q23+'2020'!$W23+'2020'!$AC23+'2020'!$AI23+'2020'!$AO23+'2020'!$AU23+'2020'!$BA23+'2020'!$BG23+'2020'!$BM23+'2020'!$BS23+'2020'!$BY23+'2020'!$CE23+'2020'!$CK23+'2020'!$CQ23+'2020'!$CW23+'2020'!$DC23+'2020'!$DI23+'2020'!$DO23+'2020'!$DU23+'2020'!$EA23+'2020'!$EG23+'2020'!$EM23+'2020'!$ES23+'2020'!$EY23+'2020'!$FE23+'2020'!$FK23+'2020'!$FQ23+'2020'!$FW23+'2020'!$GC23+'2020'!$GI23+'2020'!$GO23 -> 0 | GW23: ='2020'!$S23+'2020'!$Y23+'2020'!$AE23+'2020'!$AK23+'2020'!$AQ23+'2020'!$AW23+'2020'!$BC23+'2020'!$BI23+'2020'!$BO23+'2020'!$BU23+'2020'!$CA23+'2020'!$CG23+'2020'!$CM23+'2020'!$CS23+'2020'!$CY23+'2020'!$DE23+'2020'!$DK23+'2020'!$DQ23+'2020'!$DW23+'2020'!$EC23+'2020'!$EI23+'2020'!$EO23+'2020'!$EU23+'2020'!$FA23+'2020'!$FG23+'2020'!$FM23+'2020'!$FS23+'2020'!$FY23+'2020'!$GE23+'2020'!$GK23+'2020'!$GQ23 -> 0 | GY23: ='2020'!$O23+'2020'!$GU23-GW23 -> 355 | GZ23: =('2020'!$GY23*'2020'!$H23)/1000 -> 0.782491 | HA23: =$G23=$D$3 -> FALSE
A24: محمد جمال | B24: يونيون اير | C24: ص مطبوع كود 009 | D24: 745 | E24: 745 | F24: 350 | G24: 192446 | H24: 2.4246 | I24: ='2020'!$GY24 -> 107 | J24: =('2020'!$I24*H24)/1000 -> 0.2594322 | K24: 1 | L24: 2019-04-15 | M24: 2019-04-18 | N24: 2020-03-01 | O24: 107 | GU24: ='2020'!$Q24+'2020'!$W24+'2020'!$AC24+'2020'!$AI24+'2020'!$AO24+'2020'!$AU24+'2020'!$BA24+'2020'!$BG24+'2020'!$BM24+'2020'!$BS24+'2020'!$BY24+'2020'!$CE24+'2020'!$CK24+'2020'!$CQ24+'2020'!$CW24+'2020'!$DC24+'2020'!$DI24+'2020'!$DO24+'2020'!$DU24+'2020'!$EA24+'2020'!$EG24+'2020'!$EM24+'2020'!$ES24+'2020'!$EY24+'2020'!$FE24+'2020'!$FK24+'2020'!$FQ24+'2020'!$FW24+'2020'!$GC24+'2020'!$GI24+'2020'!$GO24 -> 0 | GW24: ='2020'!$S24+'2020'!$Y24+'2020'!$AE24+'2020'!$AK24+'2020'!$AQ24+'2020'!$AW24+'2020'!$BC24+'2020'!$BI24+'2020'!$BO24+'2020'!$BU24+'2020'!$CA24+'2020'!$CG24+'2020'!$CM24+'2020'!$CS24+'2020'!$CY24+'2020'!$DE24+'2020'!$DK24+'2020'!$DQ24+'2020'!$DW24+'2020'!$EC24+'2020'!$EI24+'2020'!$EO24+'2020'!$EU24+'2020'!$FA24+'2020'!$FG24+'2020'!$FM24+'2020'!$FS24+'2020'!$FY24+'2020'!$GE24+'2020'!$GK24+'2020'!$GQ24 -> 0 | GY24: ='2020'!$O24+'2020'!$GU24-GW24 -> 107 | GZ24: =('2020'!$GY24*'2020'!$H24)/1000 -> 0.2594322 | HA24: FALSE
A25: محمد جمال | B25: يونيون اير | C25: ص بدون طباعة كود 067 | D25: 950 | E25: 550 | F25: 550 | G25: 195441 | H25: 2.6227 | I25: ='2020'!$GY25 -> 210 | J25: =('2020'!$I25*H25)/1000 -> 0.550767 | K25: 2 | L25: 2019-12-17 | M25: 2019-12-20 | N25: 2020-03-01 | O25: 210 | GU25: ='2020'!$Q25+'2020'!$W25+'2020'!$AC25+'2020'!$AI25+'2020'!$AO25+'2020'!$AU25+'2020'!$BA25+'2020'!$BG25+'2020'!$BM25+'2020'!$BS25+'2020'!$BY25+'2020'!$CE25+'2020'!$CK25+'2020'!$CQ25+'2020'!$CW25+'2020'!$DC25+'2020'!$DI25+'2020'!$DO25+'2020'!$DU25+'2020'!$EA25+'2020'!$EG25+'2020'!$EM25+'2020'!$ES25+'2020'!$EY25+'2020'!$FE25+'2020'!$FK25+'2020'!$FQ25+'2020'!$FW25+'2020'!$GC25+'2020'!$GI25+'2020'!$GO25 -> 0 | GW25: ='2020'!$S25+'2020'!$Y25+'2020'!$AE25+'2020'!$AK25+'2020'!$AQ25+'2020'!$AW25+'2020'!$BC25+'2020'!$BI25+'2020'!$BO25+'2020'!$BU25+'2020'!$CA25+'2020'!$CG25+'2020'!$CM25+'2020'!$CS25+'2020'!$CY25+'2020'!$DE25+'2020'!$DK25+'2020'!$DQ25+'2020'!$DW25+'2020'!$EC25+'2020'!$EI25+'2020'!$EO25+'2020'!$EU25+'2020'!$FA25+'2020'!$FG25+'2020'!$FM25+'2020'!$FS25+'2020'!$FY25+'2020'!$GE25+'2020'!$GK25+'2020'!$GQ25 -> 0 | GY25: ='2020'!$O25+'2020'!$GU25-GW25 -> 210 | GZ25: =('2020'!$GY25*'2020'!$H25)/1000 -> 0.550767 | HA25: FALSE
A26: محمد جمال | B26: يونيون اير | C26: ص مطبوع ديب فريز كود 013 | D26: 1005 | E26: 810 | F26: 875 | G26: 201835 | H26: 3.6772 | I26: ='2020'!$GY26 -> 37 | J26: =('2020'!$I26*H26)/1000 -> 0.1360564 | K26: 1 | L26: 2020-03-10 | M26: 2020-03-12 | N26: 2020-03-11 | O26: 37 | GU26: ='2020'!$Q26+'2020'!$W26+'2020'!$AC26+'2020'!$AI26+'2020'!$AO26+'2020'!$AU26+'2020'!$BA26+'2020'!$BG26+'2020'!$BM26+'2020'!$BS26+'2020'!$BY26+'2020'!$CE26+'2020'!$CK26+'2020'!$CQ26+'2020'!$CW26+'2020'!$DC26+'2020'!$DI26+'2020'!$DO26+'2020'!$DU26+'2020'!$EA26+'2020'!$EG26+'2020'!$EM26+'2020'!$ES26+'2020'!$EY26+'2020'!$FE26+'2020'!$FK26+'2020'!$FQ26+'2020'!$FW26+'2020'!$GC26+'2020'!$GI26+'2020'!$GO26 -> 0 | GW26: ='2020'!$S26+'2020'!$Y26+'2020'!$AE26+'2020'!$AK26+'2020'!$AQ26+'2020'!$AW26+'2020'!$BC26+'2020'!$BI26+'2020'!$BO26+'2020'!$BU26+'2020'!$CA26+'2020'!$CG26+'2020'!$CM26+'2020'!$CS26+'2020'!$CY26+'2020'!$DE26+'2020'!$DK26+'2020'!$DQ26+'2020'!$DW26+'2020'!$EC26+'2020'!$EI26+'2020'!$EO26+'2020'!$EU26+'2020'!$FA26+'2020'!$FG26+'2020'!$FM26+'2020'!$FS26+'2020'!$FY26+'2020'!$GE26+'2020'!$GK26+'2020'!$GQ26 -> 0 | GY26: ='2020'!$O26+'2020'!$GU26-GW26 -> 37 | GZ26: =('2020'!$GY26*'2020'!$H26)/1000 -> 0.1360564 | HA26: =$G26=$D$3 -> FALSE
A27: محمد جمال | B27: يونيون اير | C27: ص بوتجاز 60×60 كود 069 | D27: 680 | E27: 650 | F27: 830 | G27: 194616 | H27: 2.2012 | I27: ='2020'!$GY27 -> 85 | J27: =('2020'!$I27*H27)/1000 -> 0.187102 | K27: 1 | L27: 2019-10-09 | M27: 2019-10-13 | N27: 2020-03-01 | O27: 85 | GU27: ='2020'!$Q27+'2020'!$W27+'2020'!$AC27+'2020'!$AI27+'2020'!$AO27+'2020'!$AU27+'2020'!$BA27+'2020'!$BG27+'2020'!$BM27+'2020'!$BS27+'2020'!$BY27+'2020'!$CE27+'2020'!$CK27+'2020'!$CQ27+'2020'!$CW27+'2020'!$DC27+'2020'!$DI27+'2020'!$DO27+'2020'!$DU27+'2020'!$EA27+'2020'!$EG27+'2020'!$EM27+'2020'!$ES27+'2020'!$EY27+'2020'!$FE27+'2020'!$FK27+'2020'!$FQ27+'2020'!$FW27+'2020'!$GC27+'2020'!$GI27+'2020'!$GO27 -> 0 | GW27: ='2020'!$S27+'2020'!$Y27+'2020'!$AE27+'2020'!$AK27+'2020'!$AQ27+'2020'!$AW27+'2020'!$BC27+'2020'!$BI27+'2020'!$BO27+'2020'!$BU27+'2020'!$CA27+'2020'!$CG27+'2020'!$CM27+'2020'!$CS27+'2020'!$CY27+'2020'!$DE27+'2020'!$DK27+'2020'!$DQ27+'2020'!$DW27+'2020'!$EC27+'2020'!$EI27+'2020'!$EO27+'2020'!$EU27+'2020'!$FA27+'2020'!$FG27+'2020'!$FM27+'2020'!$FS27+'2020'!$FY27+'2020'!$GE27+'2020'!$GK27+'2020'!$GQ27 -> 0 | GY27: ='2020'!$O27+'2020'!$GU27-GW27 -> 85 | GZ27: =('2020'!$GY27*'2020'!$H27)/1000 -> 0.187102 | HA27: FALSE
A28: محمد جمال | B28: مصر للبتريد والتكييف ميراكو | C28: مطبوع ميراكو كاريير 1051 | D28: 1070 | E28: 510 | F28: 857 | G28: 201802 | H28: 4.4331 | I28: ='2020'!$GY28 -> 120 | J28: =('2020'!$I28*H28)/1000 -> 0.531972 | K28: 2 | L28: 2020-03-09 | M28: 2020-03-28 | N28: 2020-03-31 | O28: 120 | GU28: ='2020'!$Q28+'2020'!$W28+'2020'!$AC28+'2020'!$AI28+'2020'!$AO28+'2020'!$AU28+'2020'!$BA28+'2020'!$BG28+'2020'!$BM28+'2020'!$BS28+'2020'!$BY28+'2020'!$CE28+'2020'!$CK28+'2020'!$CQ28+'2020'!$CW28+'2020'!$DC28+'2020'!$DI28+'2020'!$DO28+'2020'!$DU28+'2020'!$EA28+'2020'!$EG28+'2020'!$EM28+'2020'!$ES28+'2020'!$EY28+'2020'!$FE28+'2020'!$FK28+'2020'!$FQ28+'2020'!$FW28+'2020'!$GC28+'2020'!$GI28+'2020'!$GO28 -> 0 | GW28: ='2020'!$S28+'2020'!$Y28+'2020'!$AE28+'2020'!$AK28+'2020'!$AQ28+'2020'!$AW28+'2020'!$BC28+'2020'!$BI28+'2020'!$BO28+'2020'!$BU28+'2020'!$CA28+'2020'!$CG28+'2020'!$CM28+'2020'!$CS28+'2020'!$CY28+'2020'!$DE28+'2020'!$DK28+'2020'!$DQ28+'2020'!$DW28+'2020'!$EC28+'2020'!$EI28+'2020'!$EO28+'2020'!$EU28+'2020'!$FA28+'2020'!$FG28+'2020'!$FM28+'2020'!$FS28+'2020'!$FY28+'2020'!$GE28+'2020'!$GK28+'2020'!$GQ28 -> 0 | GY28: ='2020'!$O28+'2020'!$GU28-GW28 -> 120 | GZ28: =('2020'!$GY28*'2020'!$H28)/1000 -> 0.531972 | HA28: =$G28=$D$3 -> FALSE
A29: محمد جمال | B29: كيلوجز تولارام نودلز مصر | C29: طبوع كيلوجز نودلز 70 جم * 40 عبوة نكهة سجق شرقى كود 144 | D29: 317 | E29: 207 | F29: 239 | G29: 201519 | H29: 0.234 | I29: ='2020'!$GY29 -> 1700 | J29: =('2020'!$I29*H29)/1000 -> 0.3978 | K29: 1 | L29: 2020-02-13 | M29: 2020-02-13 | N29: 2020-02-17 | O29: 1700 | GU29: ='2020'!$Q29+'2020'!$W29+'2020'!$AC29+'2020'!$AI29+'2020'!$AO29+'2020'!$AU29+'2020'!$BA29+'2020'!$BG29+'2020'!$BM29+'2020'!$BS29+'2020'!$BY29+'2020'!$CE29+'2020'!$CK29+'2020'!$CQ29+'2020'!$CW29+'2020'!$DC29+'2020'!$DI29+'2020'!$DO29+'2020'!$DU29+'2020'!$EA29+'2020'!$EG29+'2020'!$EM29+'2020'!$ES29+'2020'!$EY29+'2020'!$FE29+'2020'!$FK29+'2020'!$FQ29+'2020'!$FW29+'2020'!$GC29+'2020'!$GI29+'2020'!$GO29 -> 0 | GW29: ='2020'!$S29+'2020'!$Y29+'2020'!$AE29+'2020'!$AK29+'2020'!$AQ29+'2020'!$AW29+'2020'!$BC29+'2020'!$BI29+'2020'!$BO29+'2020'!$BU29+'2020'!$CA29+'2020'!$CG29+'2020'!$CM29+'2020'!$CS29+'2020'!$CY29+'2020'!$DE29+'2020'!$DK29+'2020'!$DQ29+'2020'!$DW29+'2020'!$EC29+'2020'!$EI29+'2020'!$EO29+'2020'!$EU29+'2020'!$FA29+'2020'!$FG29+'2020'!$FM29+'2020'!$FS29+'2020'!$FY29+'2020'!$GE29+'2020'!$GK29+'2020'!$GQ29 -> 0 | GY29: ='2020'!$O29+'2020'!$GU29-GW29 -> 1700 | GZ29: =('2020'!$GY29*'2020'!$H29)/1000 -> 0.3978 | HA29: =$G29=$D$3 -> FALSE
A30: محمد جمال | B30: سوق دوت كوم للتجارة الالكترونية | C30: كود B 0 - ص مطبوع سوق دوت كوم امازون | D30: 335 | E30: 227 | F30: 294 | G30: 202004 | H30: 0.2897 | I30: ='2020'!$GY30 -> 8100 | J30: =('2020'!$I30*H30)/1000 -> 2.34657 | K30: 9 | L30: 2020-03-25 | M30: 2020-03-30 | N30: 2020-03-31 | O30: 8100 | GU30: ='2020'!$Q30+'2020'!$W30+'2020'!$AC30+'2020'!$AI30+'2020'!$AO30+'2020'!$AU30+'2020'!$BA30+'2020'!$BG30+'2020'!$BM30+'2020'!$BS30+'2020'!$BY30+'2020'!$CE30+'2020'!$CK30+'2020'!$CQ30+'2020'!$CW30+'2020'!$DC30+'2020'!$DI30+'2020'!$DO30+'2020'!$DU30+'2020'!$EA30+'2020'!$EG30+'2020'!$EM30+'2020'!$ES30+'2020'!$EY30+'2020'!$FE30+'2020'!$FK30+'2020'!$FQ30+'2020'!$FW30+'2020'!$GC30+'2020'!$GI30+'2020'!$GO30 -> 0 | GW30: ='2020'!$S30+'2020'!$Y30+'2020'!$AE30+'2020'!$AK30+'2020'!$AQ30+'2020'!$AW30+'2020'!$BC30+'2020'!$BI30+'2020'!$BO30+'2020'!$BU30+'2020'!$CA30+'2020'!$CG30+'2020'!$CM30+'2020'!$CS30+'2020'!$CY30+'2020'!$DE30+'2020'!$DK30+'2020'!$DQ30+'2020'!$DW30+'2020'!$EC30+'2020'!$EI30+'2020'!$EO30+'2020'!$EU30+'2020'!$FA30+'2020'!$FG30+'2020'!$FM30+'2020'!$FS30+'2020'!$FY30+'2020'!$GE30+'2020'!$GK30+'2020'!$GQ30 -> 0 | GY30: ='2020'!$O30+'2020'!$GU30-GW30 -> 8100 | GZ30: =('2020'!$GY30*'2020'!$H30)/1000 -> 2.34657 | HA30: =$G30=$D$3 -> FALSE
A31: محمد جمال | B31: سوق دوت كوم للتجارة الالكترونية | C31: كود B 1 - ص مطبوع سوق دوت كوم امازون | D31: 397 | E31: 397 | F31: 229 | G31: 201731 | H31: 0.4852 | I31: ='2020'!$GY31 -> 1700 | J31: =('2020'!$I31*H31)/1000 -> 0.82484 | K31: . | L31: 2020-03-02 | M31: 2020-03-10 | N31: 2020-03-28 | O31: 1700 | GU31: ='2020'!$Q31+'2020'!$W31+'2020'!$AC31+'2020'!$AI31+'2020'!$AO31+'2020'!$AU31+'2020'!$BA31+'2020'!$BG31+'2020'!$BM31+'2020'!$BS31+'2020'!$BY31+'2020'!$CE31+'2020'!$CK31+'2020'!$CQ31+'2020'!$CW31+'2020'!$DC31+'2020'!$DI31+'2020'!$DO31+'2020'!$DU31+'2020'!$EA31+'2020'!$EG31+'2020'!$EM31+'2020'!$ES31+'2020'!$EY31+'2020'!$FE31+'2020'!$FK31+'2020'!$FQ31+'2020'!$FW31+'2020'!$GC31+'2020'!$GI31+'2020'!$GO31 -> 0 | GW31: ='2020'!$S31+'2020'!$Y31+'2020'!$AE31+'2020'!$AK31+'2020'!$AQ31+'2020'!$AW31+'2020'!$BC31+'2020'!$BI31+'2020'!$BO31+'2020'!$BU31+'2020'!$CA31+'2020'!$CG31+'2020'!$CM31+'2020'!$CS31+'2020'!$CY31+'2020'!$DE31+'2020'!$DK31+'2020'!$DQ31+'2020'!$DW31+'2020'!$EC31+'2020'!$EI31+'2020'!$EO31+'2020'!$EU31+'2020'!$FA31+'2020'!$FG31+'2020'!$FM31+'2020'!$FS31+'2020'!$FY31+'2020'!$GE31+'2020'!$GK31+'2020'!$GQ31 -> 0 | GY31: ='2020'!$O31+'2020'!$GU31-GW31 -> 1700 | GZ31: =('2020'!$GY31*'2020'!$H31)/1000 -> 0.82484 | HA31: =$G31=$D$3 -> FALSE
A32: محمد جمال | B32: س . كليوباترا | C32: ص 40 * 40 - ارضيات - بنى - B فرز اول | D32: 405 | E32: 80 | F32: 405 | G32: 201022 | H32: 0.2078 | I32: ='2020'!$GY32 -> 450 | J32: =('2020'!$I32*H32)/1000 -> 0.09351 | K32: 1 | L32: 2020-01-02 | M32: 2020-01-08 | N32: 2020-01-05 | O32: 450 | GU32: ='2020'!$Q32+'2020'!$W32+'2020'!$AC32+'2020'!$AI32+'2020'!$AO32+'2020'!$AU32+'2020'!$BA32+'2020'!$BG32+'2020'!$BM32+'2020'!$BS32+'2020'!$BY32+'2020'!$CE32+'2020'!$CK32+'2020'!$CQ32+'2020'!$CW32+'2020'!$DC32+'2020'!$DI32+'2020'!$DO32+'2020'!$DU32+'2020'!$EA32+'2020'!$EG32+'2020'!$EM32+'2020'!$ES32+'2020'!$EY32+'2020'!$FE32+'2020'!$FK32+'2020'!$FQ32+'2020'!$FW32+'2020'!$GC32+'2020'!$GI32+'2020'!$GO32 -> 0 | GW32: ='2020'!$S32+'2020'!$Y32+'2020'!$AE32+'2020'!$AK32+'2020'!$AQ32+'2020'!$AW32+'2020'!$BC32+'2020'!$BI32+'2020'!$BO32+'2020'!$BU32+'2020'!$CA32+'2020'!$CG32+'2020'!$CM32+'2020'!$CS32+'2020'!$CY32+'2020'!$DE32+'2020'!$DK32+'2020'!$DQ32+'2020'!$DW32+'2020'!$EC32+'2020'!$EI32+'2020'!$EO32+'2020'!$EU32+'2020'!$FA32+'2020'!$FG32+'2020'!$FM32+'2020'!$FS32+'2020'!$FY32+'2020'!$GE32+'2020'!$GK32+'2020'!$GQ32 -> 0 | GY32: ='2020'!$O32+'2020'!$GU32-GW32 -> 450 | GZ32: =('2020'!$GY32*'2020'!$H32)/1000 -> 0.09351 | HA32: =$G32=$D$3 -> FALSE
A33: محمد جمال | B33: س . كليوباترا | C33: ص 40 * 40 - ارضيات - بنى - B فرز اول | D33: 405 | E33: 80 | F33: 405 | G33: 201902 | H33: 0.2078 | I33: ='2020'!$GY33 -> 1200 | J33: =('2020'!$I33*H33)/1000 -> 0.24936 | K33: 1 | L33: 2020-03-17 | M33: 2020-03-23 | N33: 2020-03-18 | O33: 1200 | GU33: ='2020'!$Q33+'2020'!$W33+'2020'!$AC33+'2020'!$AI33+'2020'!$AO33+'2020'!$AU33+'2020'!$BA33+'2020'!$BG33+'2020'!$BM33+'2020'!$BS33+'2020'!$BY33+'2020'!$CE33+'2020'!$CK33+'2020'!$CQ33+'2020'!$CW33+'2020'!$DC33+'2020'!$DI33+'2020'!$DO33+'2020'!$DU33+'2020'!$EA33+'2020'!$EG33+'2020'!$EM33+'2020'!$ES33+'2020'!$EY33+'2020'!$FE33+'2020'!$FK33+'2020'!$FQ33+'2020'!$FW33+'2020'!$GC33+'2020'!$GI33+'2020'!$GO33 -> 0 | GW33: ='2020'!$S33+'2020'!$Y33+'2020'!$AE33+'2020'!$AK33+'2020'!$AQ33+'2020'!$AW33+'2020'!$BC33+'2020'!$BI33+'2020'!$BO33+'2020'!$BU33+'2020'!$CA33+'2020'!$CG33+'2020'!$CM33+'2020'!$CS33+'2020'!$CY33+'2020'!$DE33+'2020'!$DK33+'2020'!$DQ33+'2020'!$DW33+'2020'!$EC33+'2020'!$EI33+'2020'!$EO33+'2020'!$EU33+'2020'!$FA33+'2020'!$FG33+'2020'!$FM33+'2020'!$FS33+'2020'!$FY33+'2020'!$GE33+'2020'!$GK33+'2020'!$GQ33 -> 0 | GY33: ='2020'!$O33+'2020'!$GU33-GW33 -> 1200 | GZ33: =('2020'!$GY33*'2020'!$H33)/1000 -> 0.24936 | HA33: =$G33=$D$3 -> FALSE
A34: محمد جمال | B34: سيراميكا فينيسيا | C34: ص هيكل 50 * 50 - 6 بلاطة ارضيات مزجج - B فرز اول | D34: 506 | E34: 508 | F34: 66 | G34: 202058 | H34: 0.2454 | I34: ='2020'!$GY34 -> 8400 | J34: =('2020'!$I34*H34)/1000 -> 2.06136 | K34: 7 | L34: 2020-03-31 | M34: 2020-03-31 | N34: 2020-03-31 | O34: 8400 | GU34: ='2020'!$Q34+'2020'!$W34+'2020'!$AC34+'2020'!$AI34+'2020'!$AO34+'2020'!$AU34+'2020'!$BA34+'2020'!$BG34+'2020'!$BM34+'2020'!$BS34+'2020'!$BY34+'2020'!$CE34+'2020'!$CK34+'2020'!$CQ34+'2020'!$CW34+'2020'!$DC34+'2020'!$DI34+'2020'!$DO34+'2020'!$DU34+'2020'!$EA34+'2020'!$EG34+'2020'!$EM34+'2020'!$ES34+'2020'!$EY34+'2020'!$FE34+'2020'!$FK34+'2020'!$FQ34+'2020'!$FW34+'2020'!$GC34+'2020'!$GI34+'2020'!$GO34 -> 0 | GW34: ='2020'!$S34+'2020'!$Y34+'2020'!$AE34+'2020'!$AK34+'2020'!$AQ34+'2020'!$AW34+'2020'!$BC34+'2020'!$BI34+'2020'!$BO34+'2020'!$BU34+'2020'!$CA34+'2020'!$CG34+'2020'!$CM34+'2020'!$CS34+'2020'!$CY34+'2020'!$DE34+'2020'!$DK34+'2020'!$DQ34+'2020'!$DW34+'2020'!$EC34+'2020'!$EI34+'2020'!$EO34+'2020'!$EU34+'2020'!$FA34+'2020'!$FG34+'2020'!$FM34+'2020'!$FS34+'2020'!$FY34+'2020'!$GE34+'2020'!$GK34+'2020'!$GQ34 -> 0 | GY34: ='2020'!$O34+'2020'!$GU34-GW34 -> 8400 | GZ34: =('2020'!$GY34*'2020'!$H34)/1000 -> 2.06136 | HA34: =$G34=$D$3 -> FALSE
A35: محمد جمال | B35: سيراميكا فينيسيا | C35: ص هيكل 50 *50 - 6 بلاطة ارضيات مزجج - B فرز ثانى | D35: 506 | E35: 508 | F35: 66 | G35: 202059 | H35: 0.2454 | I35: ='2020'!$GY35 -> 4200 | J35: =('2020'!$I35*H35)/1000 -> 1.03068 | K35: 2 | L35: 2020-03-31 | M35: 2020-03-31 | N35: 2020-03-31 | O35: 4200 | GU35: ='2020'!$Q35+'2020'!$W35+'2020'!$AC35+'2020'!$AI35+'2020'!$AO35+'2020'!$AU35+'2020'!$BA35+'2020'!$BG35+'2020'!$BM35+'2020'!$BS35+'2020'!$BY35+'2020'!$CE35+'2020'!$CK35+'2020'!$CQ35+'2020'!$CW35+'2020'!$DC35+'2020'!$DI35+'2020'!$DO35+'2020'!$DU35+'2020'!$EA35+'2020'!$EG35+'2020'!$EM35+'2020'!$ES35+'2020'!$EY35+'2020'!$FE35+'2020'!$FK35+'2020'!$FQ35+'2020'!$FW35+'2020'!$GC35+'2020'!$GI35+'2020'!$GO35 -> 0 | GW35: ='2020'!$S35+'2020'!$Y35+'2020'!$AE35+'2020'!$AK35+'2020'!$AQ35+'2020'!$AW35+'2020'!$BC35+'2020'!$BI35+'2020'!$BO35+'2020'!$BU35+'2020'!$CA35+'2020'!$CG35+'2020'!$CM35+'2020'!$CS35+'2020'!$CY35+'2020'!$DE35+'2020'!$DK35+'2020'!$DQ35+'2020'!$DW35+'2020'!$EC35+'2020'!$EI35+'2020'!$EO35+'2020'!$EU35+'2020'!$FA35+'2020'!$FG35+'2020'!$FM35+'2020'!$FS35+'2020'!$FY35+'2020'!$GE35+'2020'!$GK35+'2020'!$GQ35 -> 0 | GY35: ='2020'!$O35+'2020'!$GU35-GW35 -> 4200 | GZ35: =('2020'!$GY35*'2020'!$H35)/1000 -> 1.03068 | HA35: =$G35=$D$3 -> FALSE
A36: محمد جمال | B36: بل ايجبيت | C36: ص مطبوع ابوالولد كود 866 | D36: 456 | E36: 228 | F36: 117 | G36: 201610 | H36: 0.4324 | I36: ='2020'!$GY36 -> 600 | J36: =('2020'!$I36*H36)/1000 -> 0.25944 | K36: 1 | L36: 2020-02-19 | M36: 2020-02-24 | N36: 2020-02-19 | O36: 600 | GU36: ='2020'!$Q36+'2020'!$W36+'2020'!$AC36+'2020'!$AI36+'2020'!$AO36+'2020'!$AU36+'2020'!$BA36+'2020'!$BG36+'2020'!$BM36+'2020'!$BS36+'2020'!$BY36+'2020'!$CE36+'2020'!$CK36+'2020'!$CQ36+'2020'!$CW36+'2020'!$DC36+'2020'!$DI36+'2020'!$DO36+'2020'!$DU36+'2020'!$EA36+'2020'!$EG36+'2020'!$EM36+'2020'!$ES36+'2020'!$EY36+'2020'!$FE36+'2020'!$FK36+'2020'!$FQ36+'2020'!$FW36+'2020'!$GC36+'2020'!$GI36+'2020'!$GO36 -> 0 | GW36: ='2020'!$S36+'2020'!$Y36+'2020'!$AE36+'2020'!$AK36+'2020'!$AQ36+'2020'!$AW36+'2020'!$BC36+'2020'!$BI36+'2020'!$BO36+'2020'!$BU36+'2020'!$CA36+'2020'!$CG36+'2020'!$CM36+'2020'!$CS36+'2020'!$CY36+'2020'!$DE36+'2020'!$DK36+'2020'!$DQ36+'2020'!$DW36+'2020'!$EC36+'2020'!$EI36+'2020'!$EO36+'2020'!$EU36+'2020'!$FA36+'2020'!$FG36+'2020'!$FM36+'2020'!$FS36+'2020'!$FY36+'2020'!$GE36+'2020'!$GK36+'2020'!$GQ36 -> 0 | GY36: ='2020'!$O36+'2020'!$GU36-GW36 -> 600 | GZ36: =('2020'!$GY36*'2020'!$H36)/1000 -> 0.25944 | HA36: =$G36=$D$3 -> FALSE
A37: محمد جمال | B37: بل ايجبيت | C37: ص مطبوع ابوالولد كود 628 | D37: 448 | E37: 224 | F37: 107 | G37: 201255 | H37: 0.4169 | I37: ='2020'!$GY37 -> 345 | J37: =('2020'!$I37*H37)/1000 -> 0.1438305 | K37: 1 | L37: 2020-01-22 | M37: 2020-01-26 | N37: 2020-01-22 | O37: 345 | GU37: ='2020'!$Q37+'2020'!$W37+'2020'!$AC37+'2020'!$AI37+'2020'!$AO37+'2020'!$AU37+'2020'!$BA37+'2020'!$BG37+'2020'!$BM37+'2020'!$BS37+'2020'!$BY37+'2020'!$CE37+'2020'!$CK37+'2020'!$CQ37+'2020'!$CW37+'2020'!$DC37+'2020'!$DI37+'2020'!$DO37+'2020'!$DU37+'2020'!$EA37+'2020'!$EG37+'2020'!$EM37+'2020'!$ES37+'2020'!$EY37+'2020'!$FE37+'2020'!$FK37+'2020'!$FQ37+'2020'!$FW37+'2020'!$GC37+'2020'!$GI37+'2020'!$GO37 -> 0 | GW37: ='2020'!$S37+'2020'!$Y37+'2020'!$AE37+'2020'!$AK37+'2020'!$AQ37+'2020'!$AW37+'2020'!$BC37+'2020'!$BI37+'2020'!$BO37+'2020'!$BU37+'2020'!$CA37+'2020'!$CG37+'2020'!$CM37+'2020'!$CS37+'2020'!$CY37+'2020'!$DE37+'2020'!$DK37+'2020'!$DQ37+'2020'!$DW37+'2020'!$EC37+'2020'!$EI37+'2020'!$EO37+'2020'!$EU37+'2020'!$FA37+'2020'!$FG37+'2020'!$FM37+'2020'!$FS37+'2020'!$FY37+'2020'!$GE37+'2020'!$GK37+'2020'!$GQ37 -> 0 | GY37: ='2020'!$O37+'2020'!$GU37-GW37 -> 345 | GZ37: =('2020'!$GY37*'2020'!$H37)/1000 -> 0.1438305 | HA37: =$G37=$D$3 -> FALSE
A38: محمد جمال | B38: بل ايجبيت | C38: ص مطبوع ابوالولد كود 628 | D38: 448 | E38: 224 | F38: 107 | G38: 202019 | H38: 0.42 | I38: ='2020'!$GY38 -> 600 | J38: =('2020'!$I38*H38)/1000 -> 0.252 | K38: 1 | L38: 2020-03-26 | M38: 2020-04-01 | N38: 2020-03-31 | O38: 600 | GU38: ='2020'!$Q38+'2020'!$W38+'2020'!$AC38+'2020'!$AI38+'2020'!$AO38+'2020'!$AU38+'2020'!$BA38+'2020'!$BG38+'2020'!$BM38+'2020'!$BS38+'2020'!$BY38+'2020'!$CE38+'2020'!$CK38+'2020'!$CQ38+'2020'!$CW38+'2020'!$DC38+'2020'!$DI38+'2020'!$DO38+'2020'!$DU38+'2020'!$EA38+'2020'!$EG38+'2020'!$EM38+'2020'!$ES38+'2020'!$EY38+'2020'!$FE38+'2020'!$FK38+'2020'!$FQ38+'2020'!$FW38+'2020'!$GC38+'2020'!$GI38+'2020'!$GO38 -> 0 | GW38: ='2020'!$S38+'2020'!$Y38+'2020'!$AE38+'2020'!$AK38+'2020'!$AQ38+'2020'!$AW38+'2020'!$BC38+'2020'!$BI38+'2020'!$BO38+'2020'!$BU38+'2020'!$CA38+'2020'!$CG38+'2020'!$CM38+'2020'!$CS38+'2020'!$CY38+'2020'!$DE38+'2020'!$DK38+'2020'!$DQ38+'2020'!$DW38+'2020'!$EC38+'2020'!$EI38+'2020'!$EO38+'2020'!$EU38+'2020'!$FA38+'2020'!$FG38+'2020'!$FM38+'2020'!$FS38+'2020'!$FY38+'2020'!$GE38+'2020'!$GK38+'2020'!$GQ38 -> 0 | GY38: ='2020'!$O38+'2020'!$GU38-GW38 -> 600 | GZ38: =('2020'!$GY38*'2020'!$H38)/1000 -> 0.252 | HA38: =$G38=$D$3 -> FALSE
A39: محمد جمال | B39: بل ايجبيت | C39: ص مطبوع ابوالولد كود 838 | D39: 448 | E39: 224 | F39: 107 | G39: 202018 | H39: 0.4378 | I39: ='2020'!$GY39 -> 2400 | J39: =('2020'!$I39*H39)/1000 -> 1.05072 | K39: 4 | L39: 2020-03-26 | M39: 2020-04-02 | N39: 2020-03-31 | O39: 2400 | GU39: ='2020'!$Q39+'2020'!$W39+'2020'!$AC39+'2020'!$AI39+'2020'!$AO39+'2020'!$AU39+'2020'!$BA39+'2020'!$BG39+'2020'!$BM39+'2020'!$BS39+'2020'!$BY39+'2020'!$CE39+'2020'!$CK39+'2020'!$CQ39+'2020'!$CW39+'2020'!$DC39+'2020'!$DI39+'2020'!$DO39+'2020'!$DU39+'2020'!$EA39+'2020'!$EG39+'2020'!$EM39+'2020'!$ES39+'2020'!$EY39+'2020'!$FE39+'2020'!$FK39+'2020'!$FQ39+'2020'!$FW39+'2020'!$GC39+'2020'!$GI39+'2020'!$GO39 -> 0 | GW39: ='2020'!$S39+'2020'!$Y39+'2020'!$AE39+'2020'!$AK39+'2020'!$AQ39+'2020'!$AW39+'2020'!$BC39+'2020'!$BI39+'2020'!$BO39+'2020'!$BU39+'2020'!$CA39+'2020'!$CG39+'2020'!$CM39+'2020'!$CS39+'2020'!$CY39+'2020'!$DE39+'2020'!$DK39+'2020'!$DQ39+'2020'!$DW39+'2020'!$EC39+'2020'!$EI39+'2020'!$EO39+'2020'!$EU39+'2020'!$FA39+'2020'!$FG39+'2020'!$FM39+'2020'!$FS39+'2020'!$FY39+'2020'!$GE39+'2020'!$GK39+'2020'!$GQ39 -> 0 | GY39: ='2020'!$O39+'2020'!$GU39-GW39 -> 2400 | GZ39: =('2020'!$GY39*'2020'!$H39)/1000 -> 1.05072 | HA39: =$G39=$D$3 -> FALSE
A40: محمد جمال | B40: بل ايجبيت | C40: ص مطبوع ابوالولد كود 646 | D40: 448 | E40: 224 | F40: 128 | G40: 201993 | H40: 0.3965 | I40: ='2020'!$GY40 -> 720 | J40: =('2020'!$I40*H40)/1000 -> 0.28548 | K40: . | L40: 2020-03-24 | M40: 2020-03-25 | N40: 2020-03-25 | O40: 720 | GU40: ='2020'!$Q40+'2020'!$W40+'2020'!$AC40+'2020'!$AI40+'2020'!$AO40+'2020'!$AU40+'2020'!$BA40+'2020'!$BG40+'2020'!$BM40+'2020'!$BS40+'2020'!$BY40+'2020'!$CE40+'2020'!$CK40+'2020'!$CQ40+'2020'!$CW40+'2020'!$DC40+'2020'!$DI40+'2020'!$DO40+'2020'!$DU40+'2020'!$EA40+'2020'!$EG40+'2020'!$EM40+'2020'!$ES40+'2020'!$EY40+'2020'!$FE40+'2020'!$FK40+'2020'!$FQ40+'2020'!$FW40+'2020'!$GC40+'2020'!$GI40+'2020'!$GO40 -> 0 | GW40: ='2020'!$S40+'2020'!$Y40+'2020'!$AE40+'2020'!$AK40+'2020'!$AQ40+'2020'!$AW40+'2020'!$BC40+'2020'!$BI40+'2020'!$BO40+'2020'!$BU40+'2020'!$CA40+'2020'!$CG40+'2020'!$CM40+'2020'!$CS40+'2020'!$CY40+'2020'!$DE40+'2020'!$DK40+'2020'!$DQ40+'2020'!$DW40+'2020'!$EC40+'2020'!$EI40+'2020'!$EO40+'2020'!$EU40+'2020'!$FA40+'2020'!$FG40+'2020'!$FM40+'2020'!$FS40+'2020'!$FY40+'2020'!$GE40+'2020'!$GK40+'2020'!$GQ40 -> 0 | GY40: ='2020'!$O40+'2020'!$GU40-GW40 -> 720 | GZ40: =('2020'!$GY40*'2020'!$H40)/1000 -> 0.28548 | HA40: =$G40=$D$3 -> FALSE
A41: محمد جمال | B41: بل ايجبيت | C41: ص مطبوع البقرة الضاحكة كود 261 | D41: 448 | E41: 224 | F41: 190 | G41: 202056 | H41: 0.5051 | I41: ='2020'!$GY41 -> 5895 | J41: =('2020'!$I41*H41)/1000 -> 2.9775645 | K41: 10 | L41: 2020-03-30 | M41: 2020-04-01 | N41: 2020-03-31 | O41: 5895 | GU41: ='2020'!$Q41+'2020'!$W41+'2020'!$AC41+'2020'!$AI41+'2020'!$AO41+'2020'!$AU41+'2020'!$BA41+'2020'!$BG41+'2020'!$BM41+'2020'!$BS41+'2020'!$BY41+'2020'!$CE41+'2020'!$CK41+'2020'!$CQ41+'2020'!$CW41+'2020'!$DC41+'2020'!$DI41+'2020'!$DO41+'2020'!$DU41+'2020'!$EA41+'2020'!$EG41+'2020'!$EM41+'2020'!$ES41+'2020'!$EY41+'2020'!$FE41+'2020'!$FK41+'2020'!$FQ41+'2020'!$FW41+'2020'!$GC41+'2020'!$GI41+'2020'!$GO41 -> 0 | GW41: ='2020'!$S41+'2020'!$Y41+'2020'!$AE41+'2020'!$AK41+'2020'!$AQ41+'2020'!$AW41+'2020'!$BC41+'2020'!$BI41+'2020'!$BO41+'2020'!$BU41+'2020'!$CA41+'2020'!$CG41+'2020'!$CM41+'2020'!$CS41+'2020'!$CY41+'2020'!$DE41+'2020'!$DK41+'2020'!$DQ41+'2020'!$DW41+'2020'!$EC41+'2020'!$EI41+'2020'!$EO41+'2020'!$EU41+'2020'!$FA41+'2020'!$FG41+'2020'!$FM41+'2020'!$FS41+'2020'!$FY41+'2020'!$GE41+'2020'!$GK41+'2020'!$GQ41 -> 0 | GY41: ='2020'!$O41+'2020'!$GU41-GW41 -> 5895 | GZ41: =('2020'!$GY41*'2020'!$H41)/1000 -> 2.9775645 | HA41: =$G41=$D$3 -> FALSE
A42: محمد جمال | B42: بل ايجبيت | C42: ص مطبوع البقرة الضاحكة كود 264 | D42: 448 | E42: 224 | F42: 130 | G42: 201672 | H42: 0.4356 | I42: ='2020'!$GY42 -> 1260 | J42: =('2020'!$I42*H42)/1000 -> 0.548856 | K42: 2 | L42: 2020-02-25 | M42: 2020-03-01 | N42: 2020-03-03 | O42: 1260 | GU42: ='2020'!$Q42+'2020'!$W42+'2020'!$AC42+'2020'!$AI42+'2020'!$AO42+'2020'!$AU42+'2020'!$BA42+'2020'!$BG42+'2020'!$BM42+'2020'!$BS42+'2020'!$BY42+'2020'!$CE42+'2020'!$CK42+'2020'!$CQ42+'2020'!$CW42+'2020'!$DC42+'2020'!$DI42+'2020'!$DO42+'2020'!$DU42+'2020'!$EA42+'2020'!$EG42+'2020'!$EM42+'2020'!$ES42+'2020'!$EY42+'2020'!$FE42+'2020'!$FK42+'2020'!$FQ42+'2020'!$FW42+'2020'!$GC42+'2020'!$GI42+'2020'!$GO42 -> 0 | GW42: ='2020'!$S42+'2020'!$Y42+'2020'!$AE42+'2020'!$AK42+'2020'!$AQ42+'2020'!$AW42+'2020'!$BC42+'2020'!$BI42+'2020'!$BO42+'2020'!$BU42+'2020'!$CA42+'2020'!$CG42+'2020'!$CM42+'2020'!$CS42+'2020'!$CY42+'2020'!$DE42+'2020'!$DK42+'2020'!$DQ42+'2020'!$DW42+'2020'!$EC42+'2020'!$EI42+'2020'!$EO42+'2020'!$EU42+'2020'!$FA42+'2020'!$FG42+'2020'!$FM42+'2020'!$FS42+'2020'!$FY42+'2020'!$GE42+'2020'!$GK42+'2020'!$GQ42 -> 0 | GY42: ='2020'!$O42+'2020'!$GU42-GW42 -> 1260 | GZ42: =('2020'!$GY42*'2020'!$H42)/1000 -> 0.548856 | HA42: =$G42=$D$3 -> FALSE
A43: محمد جمال | B43: بل ايجبيت | C43: ص مطبوع البقرة الضاحكة كود 475 | D43: 448 | E43: 224 | F43: 107 | G43: 201762 | H43: 0.399 | I43: ='2020'!$GY43 -> 5745 | J43: =('2020'!$I43*H43)/1000 -> 2.292255 | K43: 10 | L43: 2020-03-04 | M43: 2020-03-07 | N43: 2020-03-05 | O43: 5745 | GU43: ='2020'!$Q43+'2020'!$W43+'2020'!$AC43+'2020'!$AI43+'2020'!$AO43+'2020'!$AU43+'2020'!$BA43+'2020'!$BG43+'2020'!$BM43+'2020'!$BS43+'2020'!$BY43+'2020'!$CE43+'2020'!$CK43+'2020'!$CQ43+'2020'!$CW43+'2020'!$DC43+'2020'!$DI43+'2020'!$DO43+'2020'!$DU43+'2020'!$EA43+'2020'!$EG43+'2020'!$EM43+'2020'!$ES43+'2020'!$EY43+'2020'!$FE43+'2020'!$FK43+'2020'!$FQ43+'2020'!$FW43+'2020'!$GC43+'2020'!$GI43+'2020'!$GO43 -> 0 | GW43: ='2020'!$S43+'2020'!$Y43+'2020'!$AE43+'2020'!$AK43+'2020'!$AQ43+'2020'!$AW43+'2020'!$BC43+'2020'!$BI43+'2020'!$BO43+'2020'!$BU43+'2020'!$CA43+'2020'!$CG43+'2020'!$CM43+'2020'!$CS43+'2020'!$CY43+'2020'!$DE43+'2020'!$DK43+'2020'!$DQ43+'2020'!$DW43+'2020'!$EC43+'2020'!$EI43+'2020'!$EO43+'2020'!$EU43+'2020'!$FA43+'2020'!$FG43+'2020'!$FM43+'2020'!$FS43+'2020'!$FY43+'2020'!$GE43+'2020'!$GK43+'2020'!$GQ43 -> 0 | GY43: ='2020'!$O43+'2020'!$GU43-GW43 -> 5745 | GZ43: =('2020'!$GY43*'2020'!$H43)/1000 -> 2.292255 | HA43: =$G43=$D$3 -> FALSE
A44: محمد جمال | B44: بريكاب ايجبيت | C44: ص دوبل مطبوع بريكاب ازرق علامات تحميل محلى | D44: 568 | E44: 381 | F44: 367 | G44: 201778 | H44: 1.055 | I44: ='2020'!$GY44 -> 7395 | J44: =('2020'!$I44*H44)/1000 -> 7.801725 | K44: 30 | L44: 2020-03-20 | M44: 2020-03-20 | N44: 2020-03-24 | O44: 7395 | GU44: ='2020'!$Q44+'2020'!$W44+'2020'!$AC44+'2020'!$AI44+'2020'!$AO44+'2020'!$AU44+'2020'!$BA44+'2020'!$BG44+'2020'!$BM44+'2020'!$BS44+'2020'!$BY44+'2020'!$CE44+'2020'!$CK44+'2020'!$CQ44+'2020'!$CW44+'2020'!$DC44+'2020'!$DI44+'2020'!$DO44+'2020'!$DU44+'2020'!$EA44+'2020'!$EG44+'2020'!$EM44+'2020'!$ES44+'2020'!$EY44+'2020'!$FE44+'2020'!$FK44+'2020'!$FQ44+'2020'!$FW44+'2020'!$GC44+'2020'!$GI44+'2020'!$GO44 -> 0 | GW44: ='2020'!$S44+'2020'!$Y44+'2020'!$AE44+'2020'!$AK44+'2020'!$AQ44+'2020'!$AW44+'2020'!$BC44+'2020'!$BI44+'2020'!$BO44+'2020'!$BU44+'2020'!$CA44+'2020'!$CG44+'2020'!$CM44+'2020'!$CS44+'2020'!$CY44+'2020'!$DE44+'2020'!$DK44+'2020'!$DQ44+'2020'!$DW44+'2020'!$EC44+'2020'!$EI44+'2020'!$EO44+'2020'!$EU44+'2020'!$FA44+'2020'!$FG44+'2020'!$FM44+'2020'!$FS44+'2020'!$FY44+'2020'!$GE44+'2020'!$GK44+'2020'!$GQ44 -> 0 | GY44: ='2020'!$O44+'2020'!$GU44-GW44 -> 7395 | GZ44: =('2020'!$GY44*'2020'!$H44)/1000 -> 7.801725 | HA44: =$G44=$D$3 -> FALSE
A45: محمد جمال | B45: بريكاب ايجبيت | C45: ص بريكاب ازرق تصدير | D45: 568 | E45: 381 | F45: 367 | G45: 201777 | H45: 1.1832 | I45: ='2020'!$GY45 -> 4695 | J45: =('2020'!$I45*H45)/1000 -> 5.555124 | K45: 20 | L45: 2020-03-05 | M45: 2020-03-12 | N45: 2020-03-10 | O45: 4695 | GU45: ='2020'!$Q45+'2020'!$W45+'2020'!$AC45+'2020'!$AI45+'2020'!$AO45+'2020'!$AU45+'2020'!$BA45+'2020'!$BG45+'2020'!$BM45+'2020'!$BS45+'2020'!$BY45+'2020'!$CE45+'2020'!$CK45+'2020'!$CQ45+'2020'!$CW45+'2020'!$DC45+'2020'!$DI45+'2020'!$DO45+'2020'!$DU45+'2020'!$EA45+'2020'!$EG45+'2020'!$EM45+'2020'!$ES45+'2020'!$EY45+'2020'!$FE45+'2020'!$FK45+'2020'!$FQ45+'2020'!$FW45+'2020'!$GC45+'2020'!$GI45+'2020'!$GO45 -> 0 | GW45: ='2020'!$S45+'2020'!$Y45+'2020'!$AE45+'2020'!$AK45+'2020'!$AQ45+'2020'!$AW45+'2020'!$BC45+'2020'!$BI45+'2020'!$BO45+'2020'!$BU45+'2020'!$CA45+'2020'!$CG45+'2020'!$CM45+'2020'!$CS45+'2020'!$CY45+'2020'!$DE45+'2020'!$DK45+'2020'!$DQ45+'2020'!$DW45+'2020'!$EC45+'2020'!$EI45+'2020'!$EO45+'2020'!$EU45+'2020'!$FA45+'2020'!$FG45+'2020'!$FM45+'2020'!$FS45+'2020'!$FY45+'2020'!$GE45+'2020'!$GK45+'2020'!$GQ45 -> 0 | GY45: ='2020'!$O45+'2020'!$GU45-GW45 -> 4695 | GZ45: =('2020'!$GY45*'2020'!$H45)/1000 -> 5.555124 | HA45: =$G45=$D$3 -> FALSE
A46: محمد جمال | B46: بريكاب ايجبيت | C46: ص بريكاب ازرق تصدير | D46: 568 | E46: 381 | F46: 367 | G46: 201433 | H46: 1.2133 | I46: ='2020'!$GY46 -> 1000 | J46: =('2020'!$I46*H46)/1000 -> 1.2133 | K46: 4 | L46: 2020-02-05 | M46: 2020-02-12 | N46: 2020-02-06 | O46: 1000 | GU46: ='2020'!$Q46+'2020'!$W46+'2020'!$AC46+'2020'!$AI46+'2020'!$AO46+'2020'!$AU46+'2020'!$BA46+'2020'!$BG46+'2020'!$BM46+'2020'!$BS46+'2020'!$BY46+'2020'!$CE46+'2020'!$CK46+'2020'!$CQ46+'2020'!$CW46+'2020'!$DC46+'2020'!$DI46+'2020'!$DO46+'2020'!$DU46+'2020'!$EA46+'2020'!$EG46+'2020'!$EM46+'2020'!$ES46+'2020'!$EY46+'2020'!$FE46+'2020'!$FK46+'2020'!$FQ46+'2020'!$FW46+'2020'!$GC46+'2020'!$GI46+'2020'!$GO46 -> 0 | GW46: ='2020'!$S46+'2020'!$Y46+'2020'!$AE46+'2020'!$AK46+'2020'!$AQ46+'2020'!$AW46+'2020'!$BC46+'2020'!$BI46+'2020'!$BO46+'2020'!$BU46+'2020'!$CA46+'2020'!$CG46+'2020'!$CM46+'2020'!$CS46+'2020'!$CY46+'2020'!$DE46+'2020'!$DK46+'2020'!$DQ46+'2020'!$DW46+'2020'!$EC46+'2020'!$EI46+'2020'!$EO46+'2020'!$EU46+'2020'!$FA46+'2020'!$FG46+'2020'!$FM46+'2020'!$FS46+'2020'!$FY46+'2020'!$GE46+'2020'!$GK46+'2020'!$GQ46 -> 0 | GY46: ='2020'!$O46+'2020'!$GU46-GW46 -> 1000 | GZ46: =('2020'!$GY46*'2020'!$H46)/1000 -> 1.2133 | HA46: =$G46=$D$3 -> FALSE
A47: محمد جمال | B47: بريكاب ايجبيت | C47: ص بريكاب ازرق تصدير | D47: 568 | E47: 381 | F47: 367 | G47: 201466 | H47: 1.2133 | I47: ='2020'!$GY47 -> 680 | J47: =('2020'!$I47*H47)/1000 -> 0.825044 | K47: 3 | L47: 2020-02-09 | M47: 2020-02-13 | N47: 2020-02-10 | O47: 680 | GU47: ='2020'!$Q47+'2020'!$W47+'2020'!$AC47+'2020'!$AI47+'2020'!$AO47+'2020'!$AU47+'2020'!$BA47+'2020'!$BG47+'2020'!$BM47+'2020'!$BS47+'2020'!$BY47+'2020'!$CE47+'2020'!$CK47+'2020'!$CQ47+'2020'!$CW47+'2020'!$DC47+'2020'!$DI47+'2020'!$DO47+'2020'!$DU47+'2020'!$EA47+'2020'!$EG47+'2020'!$EM47+'2020'!$ES47+'2020'!$EY47+'2020'!$FE47+'2020'!$FK47+'2020'!$FQ47+'2020'!$FW47+'2020'!$GC47+'2020'!$GI47+'2020'!$GO47 -> 0 | GW47: ='2020'!$S47+'2020'!$Y47+'2020'!$AE47+'2020'!$AK47+'2020'!$AQ47+'2020'!$AW47+'2020'!$BC47+'2020'!$BI47+'2020'!$BO47+'2020'!$BU47+'2020'!$CA47+'2020'!$CG47+'2020'!$CM47+'2020'!$CS47+'2020'!$CY47+'2020'!$DE47+'2020'!$DK47+'2020'!$DQ47+'2020'!$DW47+'2020'!$EC47+'2020'!$EI47+'2020'!$EO47+'2020'!$EU47+'2020'!$FA47+'2020'!$FG47+'2020'!$FM47+'2020'!$FS47+'2020'!$FY47+'2020'!$GE47+'2020'!$GK47+'2020'!$GQ47 -> 0 | GY47: ='2020'!$O47+'2020'!$GU47-GW47 -> 680 | GZ47: =('2020'!$GY47*'2020'!$H47)/1000 -> 0.825044 | HA47: FALSE
A48: محمد جمال | B48: بريكاب ايجبيت | C48: ص بريكاب ازرق تصدير | D48: 570 | E48: 380 | F48: 250 | G48: 201779 | H48: 1.0042 | I48: ='2020'!$GY48 -> 960 | J48: =('2020'!$I48*H48)/1000 -> 0.964032 | K48: 4 | L48: 2020-03-05 | M48: 2020-03-12 | N48: 2020-03-10 | O48: 960 | GU48: ='2020'!$Q48+'2020'!$W48+'2020'!$AC48+'2020'!$AI48+'2020'!$AO48+'2020'!$AU48+'2020'!$BA48+'2020'!$BG48+'2020'!$BM48+'2020'!$BS48+'2020'!$BY48+'2020'!$CE48+'2020'!$CK48+'2020'!$CQ48+'2020'!$CW48+'2020'!$DC48+'2020'!$DI48+'2020'!$DO48+'2020'!$DU48+'2020'!$EA48+'2020'!$EG48+'2020'!$EM48+'2020'!$ES48+'2020'!$EY48+'2020'!$FE48+'2020'!$FK48+'2020'!$FQ48+'2020'!$FW48+'2020'!$GC48+'2020'!$GI48+'2020'!$GO48 -> 0 | GW48: ='2020'!$S48+'2020'!$Y48+'2020'!$AE48+'2020'!$AK48+'2020'!$AQ48+'2020'!$AW48+'2020'!$BC48+'2020'!$BI48+'2020'!$BO48+'2020'!$BU48+'2020'!$CA48+'2020'!$CG48+'2020'!$CM48+'2020'!$CS48+'2020'!$CY48+'2020'!$DE48+'2020'!$DK48+'2020'!$DQ48+'2020'!$DW48+'2020'!$EC48+'2020'!$EI48+'2020'!$EO48+'2020'!$EU48+'2020'!$FA48+'2020'!$FG48+'2020'!$FM48+'2020'!$FS48+'2020'!$FY48+'2020'!$GE48+'2020'!$GK48+'2020'!$GQ48 -> 0 | GY48: ='2020'!$O48+'2020'!$GU48-GW48 -> 960 | GZ48: =('2020'!$GY48*'2020'!$H48)/1000 -> 0.964032 | HA48: =$G48=$D$3 -> FALSE
A49: محمد جمال | B49: مونجنيز للاغذية والخدمات | C49: ص مطبوع بارتى سويس رول | D49: 291 | E49: 226 | F49: 135 | G49: 201691 | H49: 0.1737 | I49: ='2020'!$GY49 -> 1500 | J49: =('2020'!$I49*H49)/1000 -> 0.26055 | K49: 1 | L49: 2020-02-27 | M49: 2020-03-02 | N49: 2020-03-04 | O49: 1500 | GU49: ='2020'!$Q49+'2020'!$W49+'2020'!$AC49+'2020'!$AI49+'2020'!$AO49+'2020'!$AU49+'2020'!$BA49+'2020'!$BG49+'2020'!$BM49+'2020'!$BS49+'2020'!$BY49+'2020'!$CE49+'2020'!$CK49+'2020'!$CQ49+'2020'!$CW49+'2020'!$DC49+'2020'!$DI49+'2020'!$DO49+'2020'!$DU49+'2020'!$EA49+'2020'!$EG49+'2020'!$EM49+'2020'!$ES49+'2020'!$EY49+'2020'!$FE49+'2020'!$FK49+'2020'!$FQ49+'2020'!$FW49+'2020'!$GC49+'2020'!$GI49+'2020'!$GO49 -> 0 | GW49: ='2020'!$S49+'2020'!$Y49+'2020'!$AE49+'2020'!$AK49+'2020'!$AQ49+'2020'!$AW49+'2020'!$BC49+'2020'!$BI49+'2020'!$BO49+'2020'!$BU49+'2020'!$CA49+'2020'!$CG49+'2020'!$CM49+'2020'!$CS49+'2020'!$CY49+'2020'!$DE49+'2020'!$DK49+'2020'!$DQ49+'2020'!$DW49+'2020'!$EC49+'2020'!$EI49+'2020'!$EO49+'2020'!$EU49+'2020'!$FA49+'2020'!$FG49+'2020'!$FM49+'2020'!$FS49+'2020'!$FY49+'2020'!$GE49+'2020'!$GK49+'2020'!$GQ49 -> 0 | GY49: ='2020'!$O49+'2020'!$GU49-GW49 -> 1500 | GZ49: =('2020'!$GY49*'2020'!$H49)/1000 -> 0.26055 | HA49: =$G49=$D$3 -> FALSE
A50: محمد جمال | B50: مونجنيز للاغذية والخدمات | C50: ص سوبر دريم رول كفته | D50: 526 | E50: 204 | F50: 262 | G50: 201474 | H50: 0.2875 | I50: ='2020'!$GY50 -> 1943 | J50: =('2020'!$I50*H50)/1000 -> 0.5586125 | K50: 2 | L50: 2020-02-09 | M50: 2020-02-15 | N50: 2020-02-12 | O50: 1943 | GU50: ='2020'!$Q50+'2020'!$W50+'2020'!$AC50+'2020'!$AI50+'2020'!$AO50+'2020'!$AU50+'2020'!$BA50+'2020'!$BG50+'2020'!$BM50+'2020'!$BS50+'2020'!$BY50+'2020'!$CE50+'2020'!$CK50+'2020'!$CQ50+'2020'!$CW50+'2020'!$DC50+'2020'!$DI50+'2020'!$DO50+'2020'!$DU50+'2020'!$EA50+'2020'!$EG50+'2020'!$EM50+'2020'!$ES50+'2020'!$EY50+'2020'!$FE50+'2020'!$FK50+'2020'!$FQ50+'2020'!$FW50+'2020'!$GC50+'2020'!$GI50+'2020'!$GO50 -> 0 | GW50: ='2020'!$S50+'2020'!$Y50+'2020'!$AE50+'2020'!$AK50+'2020'!$AQ50+'2020'!$AW50+'2020'!$BC50+'2020'!$BI50+'2020'!$BO50+'2020'!$BU50+'2020'!$CA50+'2020'!$CG50+'2020'!$CM50+'2020'!$CS50+'2020'!$CY50+'2020'!$DE50+'2020'!$DK50+'2020'!$DQ50+'2020'!$DW50+'2020'!$EC50+'2020'!$EI50+'2020'!$EO50+'2020'!$EU50+'2020'!$FA50+'2020'!$FG50+'2020'!$FM50+'2020'!$FS50+'2020'!$FY50+'2020'!$GE50+'2020'!$GK50+'2020'!$GQ50 -> 0 | GY50: ='2020'!$O50+'2020'!$GU50-GW50 -> 1943 | GZ50: =('2020'!$GY50*'2020'!$H50)/1000 -> 0.5586125 | HA50: FALSE
A51: محمد جمال | B51: مونجنيز للاغذية والخدمات | C51: ص مطبوع بارتى سويس رول | D51: 291 | E51: 226 | F51: 135 | G51: 201473 | H51: 0.1737 | I51: ='2020'!$GY51 -> 2525 | J51: =('2020'!$I51*H51)/1000 -> 0.4385925 | K51: 2 | L51: 2020-02-09 | M51: 2020-02-15 | N51: 2020-02-12 | O51: 2525 | GU51: ='2020'!$Q51+'2020'!$W51+'2020'!$AC51+'2020'!$AI51+'2020'!$AO51+'2020'!$AU51+'2020'!$BA51+'2020'!$BG51+'2020'!$BM51+'2020'!$BS51+'2020'!$BY51+'2020'!$CE51+'2020'!$CK51+'2020'!$CQ51+'2020'!$CW51+'2020'!$DC51+'2020'!$DI51+'2020'!$DO51+'2020'!$DU51+'2020'!$EA51+'2020'!$EG51+'2020'!$EM51+'2020'!$ES51+'2020'!$EY51+'2020'!$FE51+'2020'!$FK51+'2020'!$FQ51+'2020'!$FW51+'2020'!$GC51+'2020'!$GI51+'2020'!$GO51 -> 0 | GW51: ='2020'!$S51+'2020'!$Y51+'2020'!$AE51+'2020'!$AK51+'2020'!$AQ51+'2020'!$AW51+'2020'!$BC51+'2020'!$BI51+'2020'!$BO51+'2020'!$BU51+'2020'!$CA51+'2020'!$CG51+'2020'!$CM51+'2020'!$CS51+'2020'!$CY51+'2020'!$DE51+'2020'!$DK51+'2020'!$DQ51+'2020'!$DW51+'2020'!$EC51+'2020'!$EI51+'2020'!$EO51+'2020'!$EU51+'2020'!$FA51+'2020'!$FG51+'2020'!$FM51+'2020'!$FS51+'2020'!$FY51+'2020'!$GE51+'2020'!$GK51+'2020'!$GQ51 -> 0 | GY51: ='2020'!$O51+'2020'!$GU51-GW51 -> 2525 | GZ51: =('2020'!$GY51*'2020'!$H51)/1000 -> 0.4385925 | HA51: FALSE
A52: محمد جمال | B52: مونجنيز للاغذية والخدمات | C52: ص بدون طباعة بثقوب | D52: 560 | E52: 313 | F52: 229 | G52: 191694 | H52: 0.8651 | I52: ='2020'!$GY52 -> 600 | J52: =('2020'!$I52*H52)/1000 -> 0.51906 | K52: 1 | L52: 2019-02-25 | M52: 2019-03-05 | N52: 2020-03-08 | O52: 600 | GU52: ='2020'!$Q52+'2020'!$W52+'2020'!$AC52+'2020'!$AI52+'2020'!$AO52+'2020'!$AU52+'2020'!$BA52+'2020'!$BG52+'2020'!$BM52+'2020'!$BS52+'2020'!$BY52+'2020'!$CE52+'2020'!$CK52+'2020'!$CQ52+'2020'!$CW52+'2020'!$DC52+'2020'!$DI52+'2020'!$DO52+'2020'!$DU52+'2020'!$EA52+'2020'!$EG52+'2020'!$EM52+'2020'!$ES52+'2020'!$EY52+'2020'!$FE52+'2020'!$FK52+'2020'!$FQ52+'2020'!$FW52+'2020'!$GC52+'2020'!$GI52+'2020'!$GO52 -> 0 | GW52: ='2020'!$S52+'2020'!$Y52+'2020'!$AE52+'2020'!$AK52+'2020'!$AQ52+'2020'!$AW52+'2020'!$BC52+'2020'!$BI52+'2020'!$BO52+'2020'!$BU52+'2020'!$CA52+'2020'!$CG52+'2020'!$CM52+'2020'!$CS52+'2020'!$CY52+'2020'!$DE52+'2020'!$DK52+'2020'!$DQ52+'2020'!$DW52+'2020'!$EC52+'2020'!$EI52+'2020'!$EO52+'2020'!$EU52+'2020'!$FA52+'2020'!$FG52+'2020'!$FM52+'2020'!$FS52+'2020'!$FY52+'2020'!$GE52+'2020'!$GK52+'2020'!$GQ52 -> 0 | GY52: ='2020'!$O52+'2020'!$GU52-GW52 -> 600 | GZ52: =('2020'!$GY52*'2020'!$H52)/1000 -> 0.51906 | HA52: =$G52=$D$3 -> FALSE
A53: محمد جمال | B53: العربية للمطاحن و الصناعات الغذائية | C53: ص 350 جم * 20 كيس غالية - مكرونة فرن | D53: 485 | E53: 185 | F53: 175 | G53: 201553 | H53: 0.2821 | I53: ='2020'!$GY53 -> 675 | J53: =('2020'!$I53*H53)/1000 -> 0.1904175 | K53: 1 | L53: 2020-02-13 | M53: 2020-02-23 | N53: 2020-03-04 | O53: 675 | GU53: ='2020'!$Q53+'2020'!$W53+'2020'!$AC53+'2020'!$AI53+'2020'!$AO53+'2020'!$AU53+'2020'!$BA53+'2020'!$BG53+'2020'!$BM53+'2020'!$BS53+'2020'!$BY53+'2020'!$CE53+'2020'!$CK53+'2020'!$CQ53+'2020'!$CW53+'2020'!$DC53+'2020'!$DI53+'2020'!$DO53+'2020'!$DU53+'2020'!$EA53+'2020'!$EG53+'2020'!$EM53+'2020'!$ES53+'2020'!$EY53+'2020'!$FE53+'2020'!$FK53+'2020'!$FQ53+'2020'!$FW53+'2020'!$GC53+'2020'!$GI53+'2020'!$GO53 -> 0 | GW53: ='2020'!$S53+'2020'!$Y53+'2020'!$AE53+'2020'!$AK53+'2020'!$AQ53+'2020'!$AW53+'2020'!$BC53+'2020'!$BI53+'2020'!$BO53+'2020'!$BU53+'2020'!$CA53+'2020'!$CG53+'2020'!$CM53+'2020'!$CS53+'2020'!$CY53+'2020'!$DE53+'2020'!$DK53+'2020'!$DQ53+'2020'!$DW53+'2020'!$EC53+'2020'!$EI53+'2020'!$EO53+'2020'!$EU53+'2020'!$FA53+'2020'!$FG53+'2020'!$FM53+'2020'!$FS53+'2020'!$FY53+'2020'!$GE53+'2020'!$GK53+'2020'!$GQ53 -> 0 | GY53: ='2020'!$O53+'2020'!$GU53-GW53 -> 675 | GZ53: =('2020'!$GY53*'2020'!$H53)/1000 -> 0.1904175 | HA53: =$G53=$D$3 -> FALSE
A54: محمد جمال | B54: العربية للمطاحن و الصناعات الغذائية | C54: ص 350 جم * 20 كيس غالية - مكرونة شعرية | D54: 395 | E54: 170 | F54: 170 | G54: 201556 | H54: 0.1826 | I54: ='2020'!$GY54 -> 23933 | J54: =('2020'!$I54*H54)/1000 -> 4.3701658 | K54: 16 | L54: 2020-02-13 | M54: 2020-02-23 | N54: 2020-02-26 | O54: 23933 | GU54: ='2020'!$Q54+'2020'!$W54+'2020'!$AC54+'2020'!$AI54+'2020'!$AO54+'2020'!$AU54+'2020'!$BA54+'2020'!$BG54+'2020'!$BM54+'2020'!$BS54+'2020'!$BY54+'2020'!$CE54+'2020'!$CK54+'2020'!$CQ54+'2020'!$CW54+'2020'!$DC54+'2020'!$DI54+'2020'!$DO54+'2020'!$DU54+'2020'!$EA54+'2020'!$EG54+'2020'!$EM54+'2020'!$ES54+'2020'!$EY54+'2020'!$FE54+'2020'!$FK54+'2020'!$FQ54+'2020'!$FW54+'2020'!$GC54+'2020'!$GI54+'2020'!$GO54 -> 0 | GW54: ='2020'!$S54+'2020'!$Y54+'2020'!$AE54+'2020'!$AK54+'2020'!$AQ54+'2020'!$AW54+'2020'!$BC54+'2020'!$BI54+'2020'!$BO54+'2020'!$BU54+'2020'!$CA54+'2020'!$CG54+'2020'!$CM54+'2020'!$CS54+'2020'!$CY54+'2020'!$DE54+'2020'!$DK54+'2020'!$DQ54+'2020'!$DW54+'2020'!$EC54+'2020'!$EI54+'2020'!$EO54+'2020'!$EU54+'2020'!$FA54+'2020'!$FG54+'2020'!$FM54+'2020'!$FS54+'2020'!$FY54+'2020'!$GE54+'2020'!$GK54+'2020'!$GQ54 -> 0 | GY54: ='2020'!$O54+'2020'!$GU54-GW54 -> 23933 | GZ54: =('2020'!$GY54*'2020'!$H54)/1000 -> 4.3701658 | HA54: FALSE
A55: محمد جمال | B55: العربية للمطاحن و الصناعات الغذائية | C55: ص 350 جم * 20 كيس غالية - مكرونة مرمرية | D55: 485 | E55: 175 | F55: 167 | G55: 201554 | H55: 0.2137 | I55: ='2020'!$GY55 -> 8000 | J55: =('2020'!$I55*H55)/1000 -> 1.7096 | K55: 8 | L55: 2020-02-13 | M55: 2020-02-23 | N55: 2020-03-01 | O55: 8000 | GU55: ='2020'!$Q55+'2020'!$W55+'2020'!$AC55+'2020'!$AI55+'2020'!$AO55+'2020'!$AU55+'2020'!$BA55+'2020'!$BG55+'2020'!$BM55+'2020'!$BS55+'2020'!$BY55+'2020'!$CE55+'2020'!$CK55+'2020'!$CQ55+'2020'!$CW55+'2020'!$DC55+'2020'!$DI55+'2020'!$DO55+'2020'!$DU55+'2020'!$EA55+'2020'!$EG55+'2020'!$EM55+'2020'!$ES55+'2020'!$EY55+'2020'!$FE55+'2020'!$FK55+'2020'!$FQ55+'2020'!$FW55+'2020'!$GC55+'2020'!$GI55+'2020'!$GO55 -> 0 | GW55: ='2020'!$S55+'2020'!$Y55+'2020'!$AE55+'2020'!$AK55+'2020'!$AQ55+'2020'!$AW55+'2020'!$BC55+'2020'!$BI55+'2020'!$BO55+'2020'!$BU55+'2020'!$CA55+'2020'!$CG55+'2020'!$CM55+'2020'!$CS55+'2020'!$CY55+'2020'!$DE55+'2020'!$DK55+'2020'!$DQ55+'2020'!$DW55+'2020'!$EC55+'2020'!$EI55+'2020'!$EO55+'2020'!$EU55+'2020'!$FA55+'2020'!$FG55+'2020'!$FM55+'2020'!$FS55+'2020'!$FY55+'2020'!$GE55+'2020'!$GK55+'2020'!$GQ55 -> 0 | GY55: ='2020'!$O55+'2020'!$GU55-GW55 -> 8000 | GZ55: =('2020'!$GY55*'2020'!$H55)/1000 -> 1.7096 | HA55: =$G55=$D$3 -> FALSE
A56: محمد جمال | B56: العربية للمطاحن و الصناعات الغذائية | C56: ص 350 جم * 20 كيس غالية - مكرونة خواتم | D56: 395 | E56: 170 | F56: 140 | G56: 201558 | H56: 0.2732 | I56: ='2020'!$GY56 -> 4150 | J56: =('2020'!$I56*H56)/1000 -> 1.13378 | K56: 5 | L56: 2020-02-13 | M56: 2020-02-23 | N56: 2020-03-02 | O56: 4150 | GU56: ='2020'!$Q56+'2020'!$W56+'2020'!$AC56+'2020'!$AI56+'2020'!$AO56+'2020'!$AU56+'2020'!$BA56+'2020'!$BG56+'2020'!$BM56+'2020'!$BS56+'2020'!$BY56+'2020'!$CE56+'2020'!$CK56+'2020'!$CQ56+'2020'!$CW56+'2020'!$DC56+'2020'!$DI56+'2020'!$DO56+'2020'!$DU56+'2020'!$EA56+'2020'!$EG56+'2020'!$EM56+'2020'!$ES56+'2020'!$EY56+'2020'!$FE56+'2020'!$FK56+'2020'!$FQ56+'2020'!$FW56+'2020'!$GC56+'2020'!$GI56+'2020'!$GO56 -> 0 | GW56: ='2020'!$S56+'2020'!$Y56+'2020'!$AE56+'2020'!$AK56+'2020'!$AQ56+'2020'!$AW56+'2020'!$BC56+'2020'!$BI56+'2020'!$BO56+'2020'!$BU56+'2020'!$CA56+'2020'!$CG56+'2020'!$CM56+'2020'!$CS56+'2020'!$CY56+'2020'!$DE56+'2020'!$DK56+'2020'!$DQ56+'2020'!$DW56+'2020'!$EC56+'2020'!$EI56+'2020'!$EO56+'2020'!$EU56+'2020'!$FA56+'2020'!$FG56+'2020'!$FM56+'2020'!$FS56+'2020'!$FY56+'2020'!$GE56+'2020'!$GK56+'2020'!$GQ56 -> 0 | GY56: ='2020'!$O56+'2020'!$GU56-GW56 -> 4150 | GZ56: =('2020'!$GY56*'2020'!$H56)/1000 -> 1.13378 | HA56: =$G56=$D$3 -> FALSE
A57: محمد جمال | B57: العربية للمطاحن و الصناعات الغذائية | C57: ص 350 جم * 20 كيس غالية - مكرونة خواتم | D57: 395 | E57: 170 | F57: 140 | G57: 201325 | H57: 0.2732 | I57: ='2020'!$GY57 -> 1700 | J57: =('2020'!$I57*H57)/1000 -> 0.46444 | K57: 2 | L57: 2020-01-28 | M57: 2020-02-05 | N57: 2020-02-03 | O57: 1700 | GU57: ='2020'!$Q57+'2020'!$W57+'2020'!$AC57+'2020'!$AI57+'2020'!$AO57+'2020'!$AU57+'2020'!$BA57+'2020'!$BG57+'2020'!$BM57+'2020'!$BS57+'2020'!$BY57+'2020'!$CE57+'2020'!$CK57+'2020'!$CQ57+'2020'!$CW57+'2020'!$DC57+'2020'!$DI57+'2020'!$DO57+'2020'!$DU57+'2020'!$EA57+'2020'!$EG57+'2020'!$EM57+'2020'!$ES57+'2020'!$EY57+'2020'!$FE57+'2020'!$FK57+'2020'!$FQ57+'2020'!$FW57+'2020'!$GC57+'2020'!$GI57+'2020'!$GO57 -> 0 | GW57: ='2020'!$S57+'2020'!$Y57+'2020'!$AE57+'2020'!$AK57+'2020'!$AQ57+'2020'!$AW57+'2020'!$BC57+'2020'!$BI57+'2020'!$BO57+'2020'!$BU57+'2020'!$CA57+'2020'!$CG57+'2020'!$CM57+'2020'!$CS57+'2020'!$CY57+'2020'!$DE57+'2020'!$DK57+'2020'!$DQ57+'2020'!$DW57+'2020'!$EC57+'2020'!$EI57+'2020'!$EO57+'2020'!$EU57+'2020'!$FA57+'2020'!$FG57+'2020'!$FM57+'2020'!$FS57+'2020'!$FY57+'2020'!$GE57+'2020'!$GK57+'2020'!$GQ57 -> 0 | GY57: ='2020'!$O57+'2020'!$GU57-GW57 -> 1700 | GZ57: =('2020'!$GY57*'2020'!$H57)/1000 -> 0.46444 | HA57: =$G57=$D$3 -> FALSE
A58: محمد جمال | B58: الزمردة للصناعات الغذائية | C58: ص مطبوع ارز الساعة 5 ك * 2 اكياس | D58: 371 | E58: 226 | F58: 132 | G58: 201628 | H58: 0.1805 | I58: ='2020'!$GY58 -> 1430 | J58: =('2020'!$I58*H58)/1000 -> 0.258115 | K58: 1 | L58: 2020-02-20 | M58: 2020-02-26 | N58: 2020-02-26 | O58: 1430 | GU58: ='2020'!$Q58+'2020'!$W58+'2020'!$AC58+'2020'!$AI58+'2020'!$AO58+'2020'!$AU58+'2020'!$BA58+'2020'!$BG58+'2020'!$BM58+'2020'!$BS58+'2020'!$BY58+'2020'!$CE58+'2020'!$CK58+'2020'!$CQ58+'2020'!$CW58+'2020'!$DC58+'2020'!$DI58+'2020'!$DO58+'2020'!$DU58+'2020'!$EA58+'2020'!$EG58+'2020'!$EM58+'2020'!$ES58+'2020'!$EY58+'2020'!$FE58+'2020'!$FK58+'2020'!$FQ58+'2020'!$FW58+'2020'!$GC58+'2020'!$GI58+'2020'!$GO58 -> 0 | GW58: ='2020'!$S58+'2020'!$Y58+'2020'!$AE58+'2020'!$AK58+'2020'!$AQ58+'2020'!$AW58+'2020'!$BC58+'2020'!$BI58+'2020'!$BO58+'2020'!$BU58+'2020'!$CA58+'2020'!$CG58+'2020'!$CM58+'2020'!$CS58+'2020'!$CY58+'2020'!$DE58+'2020'!$DK58+'2020'!$DQ58+'2020'!$DW58+'2020'!$EC58+'2020'!$EI58+'2020'!$EO58+'2020'!$EU58+'2020'!$FA58+'2020'!$FG58+'2020'!$FM58+'2020'!$FS58+'2020'!$FY58+'2020'!$GE58+'2020'!$GK58+'2020'!$GQ58 -> 0 | GY58: ='2020'!$O58+'2020'!$GU58-GW58 -> 1430 | GZ58: =('2020'!$GY58*'2020'!$H58)/1000 -> 0.258115 | HA58: =$G58=$D$3 -> FALSE
A59: محمد جمال | B59: الاخوة للزيوتوالمنظفات | C59: صينينة سندباد | D59: 330 | E59: 240 | F59: 280 | G59: 201982 | H59: 0.29 | I59: ='2020'!$GY59 -> 1561 | J59: =('2020'!$I59*H59)/1000 -> 0.45269 | K59: 2 | L59: 2020-03-24 | M59: 2020-03-28 | N59: 2020-03-30 | O59: 1561 | GU59: ='2020'!$Q59+'2020'!$W59+'2020'!$AC59+'2020'!$AI59+'2020'!$AO59+'2020'!$AU59+'2020'!$BA59+'2020'!$BG59+'2020'!$BM59+'2020'!$BS59+'2020'!$BY59+'2020'!$CE59+'2020'!$CK59+'2020'!$CQ59+'2020'!$CW59+'2020'!$DC59+'2020'!$DI59+'2020'!$DO59+'2020'!$DU59+'2020'!$EA59+'2020'!$EG59+'2020'!$EM59+'2020'!$ES59+'2020'!$EY59+'2020'!$FE59+'2020'!$FK59+'2020'!$FQ59+'2020'!$FW59+'2020'!$GC59+'2020'!$GI59+'2020'!$GO59 -> 0 | GW59: ='2020'!$S59+'2020'!$Y59+'2020'!$AE59+'2020'!$AK59+'2020'!$AQ59+'2020'!$AW59+'2020'!$BC59+'2020'!$BI59+'2020'!$BO59+'2020'!$BU59+'2020'!$CA59+'2020'!$CG59+'2020'!$CM59+'2020'!$CS59+'2020'!$CY59+'2020'!$DE59+'2020'!$DK59+'2020'!$DQ59+'2020'!$DW59+'2020'!$EC59+'2020'!$EI59+'2020'!$EO59+'2020'!$EU59+'2020'!$FA59+'2020'!$FG59+'2020'!$FM59+'2020'!$FS59+'2020'!$FY59+'2020'!$GE59+'2020'!$GK59+'2020'!$GQ59 -> 0 | GY59: ='2020'!$O59+'2020'!$GU59-GW59 -> 1561 | GZ59: =('2020'!$GY59*'2020'!$H59)/1000 -> 0.45269 | HA59: =$G59=$D$3 -> FALSE
A60: محمد جمال | B60: حلوانى اخوان | C60: ص مجمدات 900 جرام | D60: 445 | E60: 345 | F60: 286 | G60: 195612 | H60: 0.8309 | I60: ='2020'!$GY60 -> 370 | J60: =('2020'!$I60*H60)/1000 -> 0.307433 | K60: 1 | L60: 2019-12-31 | M60: 2020-01-05 | N60: 2020-01-02 | O60: 370 | GU60: ='2020'!$Q60+'2020'!$W60+'2020'!$AC60+'2020'!$AI60+'2020'!$AO60+'2020'!$AU60+'2020'!$BA60+'2020'!$BG60+'2020'!$BM60+'2020'!$BS60+'2020'!$BY60+'2020'!$CE60+'2020'!$CK60+'2020'!$CQ60+'2020'!$CW60+'2020'!$DC60+'2020'!$DI60+'2020'!$DO60+'2020'!$DU60+'2020'!$EA60+'2020'!$EG60+'2020'!$EM60+'2020'!$ES60+'2020'!$EY60+'2020'!$FE60+'2020'!$FK60+'2020'!$FQ60+'2020'!$FW60+'2020'!$GC60+'2020'!$GI60+'2020'!$GO60 -> 0 | GW60: ='2020'!$S60+'2020'!$Y60+'2020'!$AE60+'2020'!$AK60+'2020'!$AQ60+'2020'!$AW60+'2020'!$BC60+'2020'!$BI60+'2020'!$BO60+'2020'!$BU60+'2020'!$CA60+'2020'!$CG60+'2020'!$CM60+'2020'!$CS60+'2020'!$CY60+'2020'!$DE60+'2020'!$DK60+'2020'!$DQ60+'2020'!$DW60+'2020'!$EC60+'2020'!$EI60+'2020'!$EO60+'2020'!$EU60+'2020'!$FA60+'2020'!$FG60+'2020'!$FM60+'2020'!$FS60+'2020'!$FY60+'2020'!$GE60+'2020'!$GK60+'2020'!$GQ60 -> 0 | GY60: ='2020'!$O60+'2020'!$GU60-GW60 -> 370 | GZ60: =('2020'!$GY60*'2020'!$H60)/1000 -> 0.307433 | HA60: =$G60=$D$3 -> FALSE
A61: محمد جمال | B61: حلوانى اخوان | C61: ص مطبوع كود 150 | D61: 433 | E61: 213 | F61: 910 | G61: 201060 | H61: 0.4573 | I61: ='2020'!$GY61 -> 600 | J61: =('2020'!$I61*H61)/1000 -> 0.27438 | K61: 1 | L61: 2020-01-06 | M61: 2020-01-10 | N61: 2020-01-15 | O61: 600 | GU61: ='2020'!$Q61+'2020'!$W61+'2020'!$AC61+'2020'!$AI61+'2020'!$AO61+'2020'!$AU61+'2020'!$BA61+'2020'!$BG61+'2020'!$BM61+'2020'!$BS61+'2020'!$BY61+'2020'!$CE61+'2020'!$CK61+'2020'!$CQ61+'2020'!$CW61+'2020'!$DC61+'2020'!$DI61+'2020'!$DO61+'2020'!$DU61+'2020'!$EA61+'2020'!$EG61+'2020'!$EM61+'2020'!$ES61+'2020'!$EY61+'2020'!$FE61+'2020'!$FK61+'2020'!$FQ61+'2020'!$FW61+'2020'!$GC61+'2020'!$GI61+'2020'!$GO61 -> 0 | GW61: ='2020'!$S61+'2020'!$Y61+'2020'!$AE61+'2020'!$AK61+'2020'!$AQ61+'2020'!$AW61+'2020'!$BC61+'2020'!$BI61+'2020'!$BO61+'2020'!$BU61+'2020'!$CA61+'2020'!$CG61+'2020'!$CM61+'2020'!$CS61+'2020'!$CY61+'2020'!$DE61+'2020'!$DK61+'2020'!$DQ61+'2020'!$DW61+'2020'!$EC61+'2020'!$EI61+'2020'!$EO61+'2020'!$EU61+'2020'!$FA61+'2020'!$FG61+'2020'!$FM61+'2020'!$FS61+'2020'!$FY61+'2020'!$GE61+'2020'!$GK61+'2020'!$GQ61 -> 0 | GY61: ='2020'!$O61+'2020'!$GU61-GW61 -> 600 | GZ61: =('2020'!$GY61*'2020'!$H61)/1000 -> 0.27438 | HA61: FALSE
A62: محمد جمال | B62: الاسكندرية للحلويات و الشيكولاتة - كورونا | C62: ص مطبوع | D62: 270 | E62: 195 | F62: 195 | G62: 201937 | H62: 0.168 | I62: ='2020'!$GY62 -> 3000 | J62: =('2020'!$I62*H62)/1000 -> 0.504 | K62: 2 | L62: 2020-03-19 | M62: 2020-03-22 | N62: 2020-03-25 | O62: 3000 | GU62: ='2020'!$Q62+'2020'!$W62+'2020'!$AC62+'2020'!$AI62+'2020'!$AO62+'2020'!$AU62+'2020'!$BA62+'2020'!$BG62+'2020'!$BM62+'2020'!$BS62+'2020'!$BY62+'2020'!$CE62+'2020'!$CK62+'2020'!$CQ62+'2020'!$CW62+'2020'!$DC62+'2020'!$DI62+'2020'!$DO62+'2020'!$DU62+'2020'!$EA62+'2020'!$EG62+'2020'!$EM62+'2020'!$ES62+'2020'!$EY62+'2020'!$FE62+'2020'!$FK62+'2020'!$FQ62+'2020'!$FW62+'2020'!$GC62+'2020'!$GI62+'2020'!$GO62 -> 0 | GW62: ='2020'!$S62+'2020'!$Y62+'2020'!$AE62+'2020'!$AK62+'2020'!$AQ62+'2020'!$AW62+'2020'!$BC62+'2020'!$BI62+'2020'!$BO62+'2020'!$BU62+'2020'!$CA62+'2020'!$CG62+'2020'!$CM62+'2020'!$CS62+'2020'!$CY62+'2020'!$DE62+'2020'!$DK62+'2020'!$DQ62+'2020'!$DW62+'2020'!$EC62+'2020'!$EI62+'2020'!$EO62+'2020'!$EU62+'2020'!$FA62+'2020'!$FG62+'2020'!$FM62+'2020'!$FS62+'2020'!$FY62+'2020'!$GE62+'2020'!$GK62+'2020'!$GQ62 -> 0 | GY62: ='2020'!$O62+'2020'!$GU62-GW62 -> 3000 | GZ62: =('2020'!$GY62*'2020'!$H62)/1000 -> 0.504 | HA62: =$G62=$D$3 -> FALSE
A63: محمد جمال | B63: امجاد للصناعات الغذائية | C63: ص بيف امجاد 6 قطع * 3 كيلو | D63: 279 | E63: 193 | F63: 381 | G63: 201711 | H63: 0.4062 | I63: ='2020'!$GY63 -> 6900 | J63: =('2020'!$I63*H63)/1000 -> 2.80278 | K63: 15 | L63: 2020-03-01 | M63: 2020-03-07 | N63: 2020-03-03 | O63: 6900 | GU63: ='2020'!$Q63+'2020'!$W63+'2020'!$AC63+'2020'!$AI63+'2020'!$AO63+'2020'!$AU63+'2020'!$BA63+'2020'!$BG63+'2020'!$BM63+'2020'!$BS63+'2020'!$BY63+'2020'!$CE63+'2020'!$CK63+'2020'!$CQ63+'2020'!$CW63+'2020'!$DC63+'2020'!$DI63+'2020'!$DO63+'2020'!$DU63+'2020'!$EA63+'2020'!$EG63+'2020'!$EM63+'2020'!$ES63+'2020'!$EY63+'2020'!$FE63+'2020'!$FK63+'2020'!$FQ63+'2020'!$FW63+'2020'!$GC63+'2020'!$GI63+'2020'!$GO63 -> 0 | GW63: ='2020'!$S63+'2020'!$Y63+'2020'!$AE63+'2020'!$AK63+'2020'!$AQ63+'2020'!$AW63+'2020'!$BC63+'2020'!$BI63+'2020'!$BO63+'2020'!$BU63+'2020'!$CA63+'2020'!$CG63+'2020'!$CM63+'2020'!$CS63+'2020'!$CY63+'2020'!$DE63+'2020'!$DK63+'2020'!$DQ63+'2020'!$DW63+'2020'!$EC63+'2020'!$EI63+'2020'!$EO63+'2020'!$EU63+'2020'!$FA63+'2020'!$FG63+'2020'!$FM63+'2020'!$FS63+'2020'!$FY63+'2020'!$GE63+'2020'!$GK63+'2020'!$GQ63 -> 0 | GY63: ='2020'!$O63+'2020'!$GU63-GW63 -> 6900 | GZ63: =('2020'!$GY63*'2020'!$H63)/1000 -> 2.80278 | HA63: =$G63=$D$3 -> FALSE
A64: محمد جمال | B64: الاسماعلية للاستثمار الزراعى والصناعى فرات | C64: ص مطبوع اطياب كود 1 | D64: 410 | E64: 230 | F64: 350 | G64: 201770 | H64: 0.5728 | I64: ='2020'!$GY64 -> 1732 | J64: =('2020'!$I64*H64)/1000 -> 0.9920896 | K64: 3 | L64: 2020-03-05 | M64: 2020-03-13 | N64: 2020-03-10 | O64: 1732 | GU64: ='2020'!$Q64+'2020'!$W64+'2020'!$AC64+'2020'!$AI64+'2020'!$AO64+'2020'!$AU64+'2020'!$BA64+'2020'!$BG64+'2020'!$BM64+'2020'!$BS64+'2020'!$BY64+'2020'!$CE64+'2020'!$CK64+'2020'!$CQ64+'2020'!$CW64+'2020'!$DC64+'2020'!$DI64+'2020'!$DO64+'2020'!$DU64+'2020'!$EA64+'2020'!$EG64+'2020'!$EM64+'2020'!$ES64+'2020'!$EY64+'2020'!$FE64+'2020'!$FK64+'2020'!$FQ64+'2020'!$FW64+'2020'!$GC64+'2020'!$GI64+'2020'!$GO64 -> 0 | GW64: ='2020'!$S64+'2020'!$Y64+'2020'!$AE64+'2020'!$AK64+'2020'!$AQ64+'2020'!$AW64+'2020'!$BC64+'2020'!$BI64+'2020'!$BO64+'2020'!$BU64+'2020'!$CA64+'2020'!$CG64+'2020'!$CM64+'2020'!$CS64+'2020'!$CY64+'2020'!$DE64+'2020'!$DK64+'2020'!$DQ64+'2020'!$DW64+'2020'!$EC64+'2020'!$EI64+'2020'!$EO64+'2020'!$EU64+'2020'!$FA64+'2020'!$FG64+'2020'!$FM64+'2020'!$FS64+'2020'!$FY64+'2020'!$GE64+'2020'!$GK64+'2020'!$GQ64 -> 0 | GY64: ='2020'!$O64+'2020'!$GU64-GW64 -> 1732 | GZ64: =('2020'!$GY64*'2020'!$H64)/1000 -> 0.9920896 | HA64: =$G64=$D$3 -> FALSE
A65: هانى حسن | B65: الاسماعلية للاستثمار الزراعى والصناعى فرات | C65: ص مطبوع شيكيتيتا | D65: 410 | E65: 230 | F65: 370 | G65: 201773 | H65: 0.5918 | I65: ='2020'!$GY65 -> 5640 | J65: =('2020'!$I65*H65)/1000 -> 3.337752 | K65: 9 | L65: 2020-03-05 | M65: 2020-03-13 | N65: 2020-03-10 | O65: 5640 | GU65: ='2020'!$Q65+'2020'!$W65+'2020'!$AC65+'2020'!$AI65+'2020'!$AO65+'2020'!$AU65+'2020'!$BA65+'2020'!$BG65+'2020'!$BM65+'2020'!$BS65+'2020'!$BY65+'2020'!$CE65+'2020'!$CK65+'2020'!$CQ65+'2020'!$CW65+'2020'!$DC65+'2020'!$DI65+'2020'!$DO65+'2020'!$DU65+'2020'!$EA65+'2020'!$EG65+'2020'!$EM65+'2020'!$ES65+'2020'!$EY65+'2020'!$FE65+'2020'!$FK65+'2020'!$FQ65+'2020'!$FW65+'2020'!$GC65+'2020'!$GI65+'2020'!$GO65 -> 0 | GW65: ='2020'!$S65+'2020'!$Y65+'2020'!$AE65+'2020'!$AK65+'2020'!$AQ65+'2020'!$AW65+'2020'!$BC65+'2020'!$BI65+'2020'!$BO65+'2020'!$BU65+'2020'!$CA65+'2020'!$CG65+'2020'!$CM65+'2020'!$CS65+'2020'!$CY65+'2020'!$DE65+'2020'!$DK65+'2020'!$DQ65+'2020'!$DW65+'2020'!$EC65+'2020'!$EI65+'2020'!$EO65+'2020'!$EU65+'2020'!$FA65+'2020'!$FG65+'2020'!$FM65+'2020'!$FS65+'2020'!$FY65+'2020'!$GE65+'2020'!$GK65+'2020'!$GQ65 -> 0 | GY65: ='2020'!$O65+'2020'!$GU65-GW65 -> 5640 | GZ65: =('2020'!$GY65*'2020'!$H65)/1000 -> 3.337752 | HA65: =$G65=$D$3 -> FALSE
A66: هانى حسن | B66: منتجات مياة مصر | C66: صينية مطبوع 600 مللى | D66: 331 | E66: 239 | F66: 261 | G66: 201404 | H66: 0.2492 | I66: ='2020'!$GY66 -> 6250 | J66: =('2020'!$I66*H66)/1000 -> 1.5575 | K66: 5 | L66: 2020-02-04 | M66: 2020-02-07 | N66: 2020-02-06 | O66: 6250 | GU66: ='2020'!$Q66+'2020'!$W66+'2020'!$AC66+'2020'!$AI66+'2020'!$AO66+'2020'!$AU66+'2020'!$BA66+'2020'!$BG66+'2020'!$BM66+'2020'!$BS66+'2020'!$BY66+'2020'!$CE66+'2020'!$CK66+'2020'!$CQ66+'2020'!$CW66+'2020'!$DC66+'2020'!$DI66+'2020'!$DO66+'2020'!$DU66+'2020'!$EA66+'2020'!$EG66+'2020'!$EM66+'2020'!$ES66+'2020'!$EY66+'2020'!$FE66+'2020'!$FK66+'2020'!$FQ66+'2020'!$FW66+'2020'!$GC66+'2020'!$GI66+'2020'!$GO66 -> 0 | GW66: ='2020'!$S66+'2020'!$Y66+'2020'!$AE66+'2020'!$AK66+'2020'!$AQ66+'2020'!$AW66+'2020'!$BC66+'2020'!$BI66+'2020'!$BO66+'2020'!$BU66+'2020'!$CA66+'2020'!$CG66+'2020'!$CM66+'2020'!$CS66+'2020'!$CY66+'2020'!$DE66+'2020'!$DK66+'2020'!$DQ66+'2020'!$DW66+'2020'!$EC66+'2020'!$EI66+'2020'!$EO66+'2020'!$EU66+'2020'!$FA66+'2020'!$FG66+'2020'!$FM66+'2020'!$FS66+'2020'!$FY66+'2020'!$GE66+'2020'!$GK66+'2020'!$GQ66 -> 0 | GY66: ='2020'!$O66+'2020'!$GU66-GW66 -> 6250 | GZ66: =('2020'!$GY66*'2020'!$H66)/1000 -> 1.5575 | HA66: FALSE
A67: هانى حسن | B67: منتجات مياة مصر | C67: صينية مطبوع 600 مللى | D67: 331 | E67: 239 | F67: 261 | G67: 201698 | H67: 0.2576 | I67: ='2020'!$GY67 -> 25941 | J67: =('2020'!$I67*H67)/1000 -> 6.6824016 | K67: 21 | L67: 2020-02-27 | M67: 2020-03-15 | N67: 2020-03-02 | O67: 25941 | GU67: ='2020'!$Q67+'2020'!$W67+'2020'!$AC67+'2020'!$AI67+'2020'!$AO67+'2020'!$AU67+'2020'!$BA67+'2020'!$BG67+'2020'!$BM67+'2020'!$BS67+'2020'!$BY67+'2020'!$CE67+'2020'!$CK67+'2020'!$CQ67+'2020'!$CW67+'2020'!$DC67+'2020'!$DI67+'2020'!$DO67+'2020'!$DU67+'2020'!$EA67+'2020'!$EG67+'2020'!$EM67+'2020'!$ES67+'2020'!$EY67+'2020'!$FE67+'2020'!$FK67+'2020'!$FQ67+'2020'!$FW67+'2020'!$GC67+'2020'!$GI67+'2020'!$GO67 -> 0 | GW67: ='2020'!$S67+'2020'!$Y67+'2020'!$AE67+'2020'!$AK67+'2020'!$AQ67+'2020'!$AW67+'2020'!$BC67+'2020'!$BI67+'2020'!$BO67+'2020'!$BU67+'2020'!$CA67+'2020'!$CG67+'2020'!$CM67+'2020'!$CS67+'2020'!$CY67+'2020'!$DE67+'2020'!$DK67+'2020'!$DQ67+'2020'!$DW67+'2020'!$EC67+'2020'!$EI67+'2020'!$EO67+'2020'!$EU67+'2020'!$FA67+'2020'!$FG67+'2020'!$FM67+'2020'!$FS67+'2020'!$FY67+'2020'!$GE67+'2020'!$GK67+'2020'!$GQ67 -> 0 | GY67: ='2020'!$O67+'2020'!$GU67-GW67 -> 25941 | GZ67: =('2020'!$GY67*'2020'!$H67)/1000 -> 6.6824016 | HA67: FALSE
A68: محمد جمال | B68: منتجات مياة مصر | C68: صينية 1.5 لتر مطبوع | D68: 335 | E68: 255 | F68: 340 | G68: 201727 | H68: 0.3139 | I68: ='2020'!$GY68 -> 4800 | J68: =('2020'!$I68*H68)/1000 -> 1.50672 | K68: 4 | L68: 2020-03-02 | M68: 2020-03-07 | N68: 2020-03-10 | O68: 4800 | GU68: ='2020'!$Q68+'2020'!$W68+'2020'!$AC68+'2020'!$AI68+'2020'!$AO68+'2020'!$AU68+'2020'!$BA68+'2020'!$BG68+'2020'!$BM68+'2020'!$BS68+'2020'!$BY68+'2020'!$CE68+'2020'!$CK68+'2020'!$CQ68+'2020'!$CW68+'2020'!$DC68+'2020'!$DI68+'2020'!$DO68+'2020'!$DU68+'2020'!$EA68+'2020'!$EG68+'2020'!$EM68+'2020'!$ES68+'2020'!$EY68+'2020'!$FE68+'2020'!$FK68+'2020'!$FQ68+'2020'!$FW68+'2020'!$GC68+'2020'!$GI68+'2020'!$GO68 -> 0 | GW68: ='2020'!$S68+'2020'!$Y68+'2020'!$AE68+'2020'!$AK68+'2020'!$AQ68+'2020'!$AW68+'2020'!$BC68+'2020'!$BI68+'2020'!$BO68+'2020'!$BU68+'2020'!$CA68+'2020'!$CG68+'2020'!$CM68+'2020'!$CS68+'2020'!$CY68+'2020'!$DE68+'2020'!$DK68+'2020'!$DQ68+'2020'!$DW68+'2020'!$EC68+'2020'!$EI68+'2020'!$EO68+'2020'!$EU68+'2020'!$FA68+'2020'!$FG68+'2020'!$FM68+'2020'!$FS68+'2020'!$FY68+'2020'!$GE68+'2020'!$GK68+'2020'!$GQ68 -> 0 | GY68: ='2020'!$O68+'2020'!$GU68-GW68 -> 4800 | GZ68: =('2020'!$GY68*'2020'!$H68)/1000 -> 1.50672 | HA68: FALSE
A69: هانى حسن | B69: منتجات مياة مصر | C69: صينية 1.5 لتر مطبوع | D69: 335 | E69: 255 | F69: 340 | G69: 201849 | H69: 0.3141 | I69: ='2020'!$GY69 -> 8750 | J69: =('2020'!$I69*H69)/1000 -> 2.748375 | K69: 7 | L69: 2020-03-11 | M69: 2020-03-20 | N69: 2020-03-17 | O69: 8750 | GU69: ='2020'!$Q69+'2020'!$W69+'2020'!$AC69+'2020'!$AI69+'2020'!$AO69+'2020'!$AU69+'2020'!$BA69+'2020'!$BG69+'2020'!$BM69+'2020'!$BS69+'2020'!$BY69+'2020'!$CE69+'2020'!$CK69+'2020'!$CQ69+'2020'!$CW69+'2020'!$DC69+'2020'!$DI69+'2020'!$DO69+'2020'!$DU69+'2020'!$EA69+'2020'!$EG69+'2020'!$EM69+'2020'!$ES69+'2020'!$EY69+'2020'!$FE69+'2020'!$FK69+'2020'!$FQ69+'2020'!$FW69+'2020'!$GC69+'2020'!$GI69+'2020'!$GO69 -> 0 | GW69: ='2020'!$S69+'2020'!$Y69+'2020'!$AE69+'2020'!$AK69+'2020'!$AQ69+'2020'!$AW69+'2020'!$BC69+'2020'!$BI69+'2020'!$BO69+'2020'!$BU69+'2020'!$CA69+'2020'!$CG69+'2020'!$CM69+'2020'!$CS69+'2020'!$CY69+'2020'!$DE69+'2020'!$DK69+'2020'!$DQ69+'2020'!$DW69+'2020'!$EC69+'2020'!$EI69+'2020'!$EO69+'2020'!$EU69+'2020'!$FA69+'2020'!$FG69+'2020'!$FM69+'2020'!$FS69+'2020'!$FY69+'2020'!$GE69+'2020'!$GK69+'2020'!$GQ69 -> 0 | GY69: ='2020'!$O69+'2020'!$GU69-GW69 -> 8750 | GZ69: =('2020'!$GY69*'2020'!$H69)/1000 -> 2.748375 | HA69: FALSE
A70: هانى حسن | B70: الكخيا بلاستيك_مايتيى | C70: ص مطبوع ماينيتى | D70: 496 | E70: 456 | F70: 572 | G70: 201485 | H70: 0.976 | I70: ='2020'!$GY70 -> 823 | J70: =('2020'!$I70*H70)/1000 -> 0.803248 | K70: 2 | L70: 2020-02-10 | M70: 2020-02-20 | N70: 2020-02-16 | O70: 823 | GU70: ='2020'!$Q70+'2020'!$W70+'2020'!$AC70+'2020'!$AI70+'2020'!$AO70+'2020'!$AU70+'2020'!$BA70+'2020'!$BG70+'2020'!$BM70+'2020'!$BS70+'2020'!$BY70+'2020'!$CE70+'2020'!$CK70+'2020'!$CQ70+'2020'!$CW70+'2020'!$DC70+'2020'!$DI70+'2020'!$DO70+'2020'!$DU70+'2020'!$EA70+'2020'!$EG70+'2020'!$EM70+'2020'!$ES70+'2020'!$EY70+'2020'!$FE70+'2020'!$FK70+'2020'!$FQ70+'2020'!$FW70+'2020'!$GC70+'2020'!$GI70+'2020'!$GO70 -> 0 | GW70: ='2020'!$S70+'2020'!$Y70+'2020'!$AE70+'2020'!$AK70+'2020'!$AQ70+'2020'!$AW70+'2020'!$BC70+'2020'!$BI70+'2020'!$BO70+'2020'!$BU70+'2020'!$CA70+'2020'!$CG70+'2020'!$CM70+'2020'!$CS70+'2020'!$CY70+'2020'!$DE70+'2020'!$DK70+'2020'!$DQ70+'2020'!$DW70+'2020'!$EC70+'2020'!$EI70+'2020'!$EO70+'2020'!$EU70+'2020'!$FA70+'2020'!$FG70+'2020'!$FM70+'2020'!$FS70+'2020'!$FY70+'2020'!$GE70+'2020'!$GK70+'2020'!$GQ70 -> 0 | GY70: ='2020'!$O70+'2020'!$GU70-GW70 -> 823 | GZ70: =('2020'!$GY70*'2020'!$H70)/1000 -> 0.803248 | HA70: FALSE
A71: محمود ايمن | B71: الكخيا بلاستيك_مايتيى | C71: ص مطبوع ماينيى | D71: 496 | E71: 456 | F71: 572 | G71: 201976 | H71: 1.141 | I71: ='2020'!$GY71 -> 7195 | J71: =('2020'!$I71*H71)/1000 -> 8.209495 | K71: . | L71: 2020-03-24 | M71: 2020-03-28 | N71: 2020-03-26 | O71: 7195 | GU71: ='2020'!$Q71+'2020'!$W71+'2020'!$AC71+'2020'!$AI71+'2020'!$AO71+'2020'!$AU71+'2020'!$BA71+'2020'!$BG71+'2020'!$BM71+'2020'!$BS71+'2020'!$BY71+'2020'!$CE71+'2020'!$CK71+'2020'!$CQ71+'2020'!$CW71+'2020'!$DC71+'2020'!$DI71+'2020'!$DO71+'2020'!$DU71+'2020'!$EA71+'2020'!$EG71+'2020'!$EM71+'2020'!$ES71+'2020'!$EY71+'2020'!$FE71+'2020'!$FK71+'2020'!$FQ71+'2020'!$FW71+'2020'!$GC71+'2020'!$GI71+'2020'!$GO71 -> 0 | GW71: ='2020'!$S71+'2020'!$Y71+'2020'!$AE71+'2020'!$AK71+'2020'!$AQ71+'2020'!$AW71+'2020'!$BC71+'2020'!$BI71+'2020'!$BO71+'2020'!$BU71+'2020'!$CA71+'2020'!$CG71+'2020'!$CM71+'2020'!$CS71+'2020'!$CY71+'2020'!$DE71+'2020'!$DK71+'2020'!$DQ71+'2020'!$DW71+'2020'!$EC71+'2020'!$EI71+'2020'!$EO71+'2020'!$EU71+'2020'!$FA71+'2020'!$FG71+'2020'!$FM71+'2020'!$FS71+'2020'!$FY71+'2020'!$GE71+'2020'!$GK71+'2020'!$GQ71 -> 0 | GY71: ='2020'!$O71+'2020'!$GU71-GW71 -> 7195 | GZ71: =('2020'!$GY71*'2020'!$H71)/1000 -> 8.209495 | HA71: FALSE
A72: هانى حسن | B72: الكخيا بلاستيك_مايتيى | C72: ص مطبوع ماينيى | D72: 496 | E72: 456 | F72: 572 | G72: 201662 | H72: 0.976 | I72: ='2020'!$GY72 -> 75 | J72: =('2020'!$I72*H72)/1000 -> 0.0732 | K72: 1 | L72: 2020-02-26 | M72: 2020-02-29 | N72: 2020-03-05 | O72: 75 | GU72: ='2020'!$Q72+'2020'!$W72+'2020'!$AC72+'2020'!$AI72+'2020'!$AO72+'2020'!$AU72+'2020'!$BA72+'2020'!$BG72+'2020'!$BM72+'2020'!$BS72+'2020'!$BY72+'2020'!$CE72+'2020'!$CK72+'2020'!$CQ72+'2020'!$CW72+'2020'!$DC72+'2020'!$DI72+'2020'!$DO72+'2020'!$DU72+'2020'!$EA72+'2020'!$EG72+'2020'!$EM72+'2020'!$ES72+'2020'!$EY72+'2020'!$FE72+'2020'!$FK72+'2020'!$FQ72+'2020'!$FW72+'2020'!$GC72+'2020'!$GI72+'2020'!$GO72 -> 0 | GW72: ='2020'!$S72+'2020'!$Y72+'2020'!$AE72+'2020'!$AK72+'2020'!$AQ72+'2020'!$AW72+'2020'!$BC72+'2020'!$BI72+'2020'!$BO72+'2020'!$BU72+'2020'!$CA72+'2020'!$CG72+'2020'!$CM72+'2020'!$CS72+'2020'!$CY72+'2020'!$DE72+'2020'!$DK72+'2020'!$DQ72+'2020'!$DW72+'2020'!$EC72+'2020'!$EI72+'2020'!$EO72+'2020'!$EU72+'2020'!$FA72+'2020'!$FG72+'2020'!$FM72+'2020'!$FS72+'2020'!$FY72+'2020'!$GE72+'2020'!$GK72+'2020'!$GQ72 -> 0 | GY72: ='2020'!$O72+'2020'!$GU72-GW72 -> 75 | GZ72: =('2020'!$GY72*'2020'!$H72)/1000 -> 0.0732 | HA72: FALSE
A73: محمود ايمن | B73: الكخيا بلاستيك_مايتيى | C73: ص مطبوع ماينيى | D73: 576 | E73: 391 | F73: 474 | G73: 201663 | H73: 0.8366 | I73: ='2020'!$GY73 -> 1418 | J73: =('2020'!$I73*H73)/1000 -> 1.1862988 | K73: 6 | L73: 2020-02-26 | M73: 2020-02-29 | N73: 2020-03-02 | O73: 1418 | GU73: ='2020'!$Q73+'2020'!$W73+'2020'!$AC73+'2020'!$AI73+'2020'!$AO73+'2020'!$AU73+'2020'!$BA73+'2020'!$BG73+'2020'!$BM73+'2020'!$BS73+'2020'!$BY73+'2020'!$CE73+'2020'!$CK73+'2020'!$CQ73+'2020'!$CW73+'2020'!$DC73+'2020'!$DI73+'2020'!$DO73+'2020'!$DU73+'2020'!$EA73+'2020'!$EG73+'2020'!$EM73+'2020'!$ES73+'2020'!$EY73+'2020'!$FE73+'2020'!$FK73+'2020'!$FQ73+'2020'!$FW73+'2020'!$GC73+'2020'!$GI73+'2020'!$GO73 -> 0 | GW73: ='2020'!$S73+'2020'!$Y73+'2020'!$AE73+'2020'!$AK73+'2020'!$AQ73+'2020'!$AW73+'2020'!$BC73+'2020'!$BI73+'2020'!$BO73+'2020'!$BU73+'2020'!$CA73+'2020'!$CG73+'2020'!$CM73+'2020'!$CS73+'2020'!$CY73+'2020'!$DE73+'2020'!$DK73+'2020'!$DQ73+'2020'!$DW73+'2020'!$EC73+'2020'!$EI73+'2020'!$EO73+'2020'!$EU73+'2020'!$FA73+'2020'!$FG73+'2020'!$FM73+'2020'!$FS73+'2020'!$FY73+'2020'!$GE73+'2020'!$GK73+'2020'!$GQ73 -> 0 | GY73: ='2020'!$O73+'2020'!$GU73-GW73 -> 1418 | GZ73: =('2020'!$GY73*'2020'!$H73)/1000 -> 1.1862988 | HA73: =$G73=$D$3 -> FALSE
A74: هانى حسن | B74: الكخيا بلاستيك_مايتيى | C74: ص مطبوع ماينيتى | D74: 566 | E74: 311 | F74: 427 | G74: 201747 | H74: 0.6506 | I74: ='2020'!$GY74 -> 3750 | J74: =('2020'!$I74*H74)/1000 -> 2.43975 | K74: 15 | L74: 2020-03-03 | M74: 2020-03-06 | N74: 2020-03-05 | O74: 3750 | GU74: ='2020'!$Q74+'2020'!$W74+'2020'!$AC74+'2020'!$AI74+'2020'!$AO74+'2020'!$AU74+'2020'!$BA74+'2020'!$BG74+'2020'!$BM74+'2020'!$BS74+'2020'!$BY74+'2020'!$CE74+'2020'!$CK74+'2020'!$CQ74+'2020'!$CW74+'2020'!$DC74+'2020'!$DI74+'2020'!$DO74+'2020'!$DU74+'2020'!$EA74+'2020'!$EG74+'2020'!$EM74+'2020'!$ES74+'2020'!$EY74+'2020'!$FE74+'2020'!$FK74+'2020'!$FQ74+'2020'!$FW74+'2020'!$GC74+'2020'!$GI74+'2020'!$GO74 -> 0 | GW74: ='2020'!$S74+'2020'!$Y74+'2020'!$AE74+'2020'!$AK74+'2020'!$AQ74+'2020'!$AW74+'2020'!$BC74+'2020'!$BI74+'2020'!$BO74+'2020'!$BU74+'2020'!$CA74+'2020'!$CG74+'2020'!$CM74+'2020'!$CS74+'2020'!$CY74+'2020'!$DE74+'2020'!$DK74+'2020'!$DQ74+'2020'!$DW74+'2020'!$EC74+'2020'!$EI74+'2020'!$EO74+'2020'!$EU74+'2020'!$FA74+'2020'!$FG74+'2020'!$FM74+'2020'!$FS74+'2020'!$FY74+'2020'!$GE74+'2020'!$GK74+'2020'!$GQ74 -> 0 | GY74: ='2020'!$O74+'2020'!$GU74-GW74 -> 3750 | GZ74: =('2020'!$GY74*'2020'!$H74)/1000 -> 2.43975 | HA74: =$G74=$D$3 -> FALSE
A75: هانى حسن | B75: الكخيا بلاستيك_مايتيى | C75: ص مطبوع ماينيتى | D75: 541 | E75: 481 | F75: 504 | G75: 201436 | H75: 1.0038 | I75: ='2020'!$GY75 -> 130 | J75: =('2020'!$I75*H75)/1000 -> 0.130494 | K75: 1 | L75: 2020-02-05 | M75: 2020-02-10 | N75: 2020-02-12 | O75: 130 | GU75: ='2020'!$Q75+'2020'!$W75+'2020'!$AC75+'2020'!$AI75+'2020'!$AO75+'2020'!$AU75+'2020'!$BA75+'2020'!$BG75+'2020'!$BM75+'2020'!$BS75+'2020'!$BY75+'2020'!$CE75+'2020'!$CK75+'2020'!$CQ75+'2020'!$CW75+'2020'!$DC75+'2020'!$DI75+'2020'!$DO75+'2020'!$DU75+'2020'!$EA75+'2020'!$EG75+'2020'!$EM75+'2020'!$ES75+'2020'!$EY75+'2020'!$FE75+'2020'!$FK75+'2020'!$FQ75+'2020'!$FW75+'2020'!$GC75+'2020'!$GI75+'2020'!$GO75 -> 0 | GW75: ='2020'!$S75+'2020'!$Y75+'2020'!$AE75+'2020'!$AK75+'2020'!$AQ75+'2020'!$AW75+'2020'!$BC75+'2020'!$BI75+'2020'!$BO75+'2020'!$BU75+'2020'!$CA75+'2020'!$CG75+'2020'!$CM75+'2020'!$CS75+'2020'!$CY75+'2020'!$DE75+'2020'!$DK75+'2020'!$DQ75+'2020'!$DW75+'2020'!$EC75+'2020'!$EI75+'2020'!$EO75+'2020'!$EU75+'2020'!$FA75+'2020'!$FG75+'2020'!$FM75+'2020'!$FS75+'2020'!$FY75+'2020'!$GE75+'2020'!$GK75+'2020'!$GQ75 -> 0 | GY75: ='2020'!$O75+'2020'!$GU75-GW75 -> 130 | GZ75: =('2020'!$GY75*'2020'!$H75)/1000 -> 0.130494 | HA75: =$G75=$D$3 -> FALSE
A76: هانى حسن | B76: الكخيا بلاستيك_مايتيى | C76: ص مطبوع ماينيتى | D76: 541 | E76: 481 | F76: 347 | G76: 195089 | H76: 0.8019 | I76: ='2020'!$GY76 -> 500 | J76: =('2020'!$I76*H76)/1000 -> 0.40095 | K76: 2 | L76: 2019-11-17 | M76: 2019-11-20 | N76: 2020-03-03 | O76: 500 | GU76: ='2020'!$Q76+'2020'!$W76+'2020'!$AC76+'2020'!$AI76+'2020'!$AO76+'2020'!$AU76+'2020'!$BA76+'2020'!$BG76+'2020'!$BM76+'2020'!$BS76+'2020'!$BY76+'2020'!$CE76+'2020'!$CK76+'2020'!$CQ76+'2020'!$CW76+'2020'!$DC76+'2020'!$DI76+'2020'!$DO76+'2020'!$DU76+'2020'!$EA76+'2020'!$EG76+'2020'!$EM76+'2020'!$ES76+'2020'!$EY76+'2020'!$FE76+'2020'!$FK76+'2020'!$FQ76+'2020'!$FW76+'2020'!$GC76+'2020'!$GI76+'2020'!$GO76 -> 0 | GW76: ='2020'!$S76+'2020'!$Y76+'2020'!$AE76+'2020'!$AK76+'2020'!$AQ76+'2020'!$AW76+'2020'!$BC76+'2020'!$BI76+'2020'!$BO76+'2020'!$BU76+'2020'!$CA76+'2020'!$CG76+'2020'!$CM76+'2020'!$CS76+'2020'!$CY76+'2020'!$DE76+'2020'!$DK76+'2020'!$DQ76+'2020'!$DW76+'2020'!$EC76+'2020'!$EI76+'2020'!$EO76+'2020'!$EU76+'2020'!$FA76+'2020'!$FG76+'2020'!$FM76+'2020'!$FS76+'2020'!$FY76+'2020'!$GE76+'2020'!$GK76+'2020'!$GQ76 -> 0 | GY76: ='2020'!$O76+'2020'!$GU76-GW76 -> 500 | GZ76: =('2020'!$GY76*'2020'!$H76)/1000 -> 0.40095 | HA76: =$G76=$D$3 -> FALSE
A77: هانى حسن | B77: الكخيا بلاستيك_مايتيى | C77: ص مطبوع ماينيتى | D77: 541 | E77: 481 | F77: 347 | G77: 201884 | H77: 0.846 | I77: ='2020'!$GY77 -> 3289 | J77: =('2020'!$I77*H77)/1000 -> 2.782494 | K77: . | L77: 2020-03-15 | M77: 2020-03-22 | N77: 2020-03-26 | O77: 3289 | GU77: ='2020'!$Q77+'2020'!$W77+'2020'!$AC77+'2020'!$AI77+'2020'!$AO77+'2020'!$AU77+'2020'!$BA77+'2020'!$BG77+'2020'!$BM77+'2020'!$BS77+'2020'!$BY77+'2020'!$CE77+'2020'!$CK77+'2020'!$CQ77+'2020'!$CW77+'2020'!$DC77+'2020'!$DI77+'2020'!$DO77+'2020'!$DU77+'2020'!$EA77+'2020'!$EG77+'2020'!$EM77+'2020'!$ES77+'2020'!$EY77+'2020'!$FE77+'2020'!$FK77+'2020'!$FQ77+'2020'!$FW77+'2020'!$GC77+'2020'!$GI77+'2020'!$GO77 -> 0 | GW77: ='2020'!$S77+'2020'!$Y77+'2020'!$AE77+'2020'!$AK77+'2020'!$AQ77+'2020'!$AW77+'2020'!$BC77+'2020'!$BI77+'2020'!$BO77+'2020'!$BU77+'2020'!$CA77+'2020'!$CG77+'2020'!$CM77+'2020'!$CS77+'2020'!$CY77+'2020'!$DE77+'2020'!$DK77+'2020'!$DQ77+'2020'!$DW77+'2020'!$EC77+'2020'!$EI77+'2020'!$EO77+'2020'!$EU77+'2020'!$FA77+'2020'!$FG77+'2020'!$FM77+'2020'!$FS77+'2020'!$FY77+'2020'!$GE77+'2020'!$GK77+'2020'!$GQ77 -> 0 | GY77: ='2020'!$O77+'2020'!$GU77-GW77 -> 3289 | GZ77: =('2020'!$GY77*'2020'!$H77)/1000 -> 2.782494 | HA77: =$G77=$D$3 -> FALSE
A78: عملاء إدارة | B78: الكخيا بلاستيك_مايتيى | C78: ص مطبوع ماينيتى | D78: 606 | E78: 266 | F78: 362 | G78: 201748 | H78: 0.5513 | I78: ='2020'!$GY78 -> 975 | J78: =('2020'!$I78*H78)/1000 -> 0.5375175 | K78: 2 | L78: 2020-03-03 | M78: 2020-03-06 | N78: 2020-03-05 | O78: 975 | GU78: ='2020'!$Q78+'2020'!$W78+'2020'!$AC78+'2020'!$AI78+'2020'!$AO78+'2020'!$AU78+'2020'!$BA78+'2020'!$BG78+'2020'!$BM78+'2020'!$BS78+'2020'!$BY78+'2020'!$CE78+'2020'!$CK78+'2020'!$CQ78+'2020'!$CW78+'2020'!$DC78+'2020'!$DI78+'2020'!$DO78+'2020'!$DU78+'2020'!$EA78+'2020'!$EG78+'2020'!$EM78+'2020'!$ES78+'2020'!$EY78+'2020'!$FE78+'2020'!$FK78+'2020'!$FQ78+'2020'!$FW78+'2020'!$GC78+'2020'!$GI78+'2020'!$GO78 -> 0 | GW78: ='2020'!$S78+'2020'!$Y78+'2020'!$AE78+'2020'!$AK78+'2020'!$AQ78+'2020'!$AW78+'2020'!$BC78+'2020'!$BI78+'2020'!$BO78+'2020'!$BU78+'2020'!$CA78+'2020'!$CG78+'2020'!$CM78+'2020'!$CS78+'2020'!$CY78+'2020'!$DE78+'2020'!$DK78+'2020'!$DQ78+'2020'!$DW78+'2020'!$EC78+'2020'!$EI78+'2020'!$EO78+'2020'!$EU78+'2020'!$FA78+'2020'!$FG78+'2020'!$FM78+'2020'!$FS78+'2020'!$FY78+'2020'!$GE78+'2020'!$GK78+'2020'!$GQ78 -> 0 | GY78: ='2020'!$O78+'2020'!$GU78-GW78 -> 975 | GZ78: =('2020'!$GY78*'2020'!$H78)/1000 -> 0.5375175 | HA78: =$G78=$D$3 -> FALSE
A79: هانى حسن | B79: ماي واي ايجيبت لمستحضرات التجميل | C79: ص مطبوع ماى واى 5 | D79: 380 | E79: 280 | F79: 253 | G79: 201889 | H79: 0.5753 | I79: ='2020'!$GY79 -> 10540 | J79: =('2020'!$I79*H79)/1000 -> 6.063662 | K79: 18 | L79: 2020-03-15 | M79: 2020-03-22 | N79: 2020-03-29 | O79: 10540 | GU79: ='2020'!$Q79+'2020'!$W79+'2020'!$AC79+'2020'!$AI79+'2020'!$AO79+'2020'!$AU79+'2020'!$BA79+'2020'!$BG79+'2020'!$BM79+'2020'!$BS79+'2020'!$BY79+'2020'!$CE79+'2020'!$CK79+'2020'!$CQ79+'2020'!$CW79+'2020'!$DC79+'2020'!$DI79+'2020'!$DO79+'2020'!$DU79+'2020'!$EA79+'2020'!$EG79+'2020'!$EM79+'2020'!$ES79+'2020'!$EY79+'2020'!$FE79+'2020'!$FK79+'2020'!$FQ79+'2020'!$FW79+'2020'!$GC79+'2020'!$GI79+'2020'!$GO79 -> 0 | GW79: ='2020'!$S79+'2020'!$Y79+'2020'!$AE79+'2020'!$AK79+'2020'!$AQ79+'2020'!$AW79+'2020'!$BC79+'2020'!$BI79+'2020'!$BO79+'2020'!$BU79+'2020'!$CA79+'2020'!$CG79+'2020'!$CM79+'2020'!$CS79+'2020'!$CY79+'2020'!$DE79+'2020'!$DK79+'2020'!$DQ79+'2020'!$DW79+'2020'!$EC79+'2020'!$EI79+'2020'!$EO79+'2020'!$EU79+'2020'!$FA79+'2020'!$FG79+'2020'!$FM79+'2020'!$FS79+'2020'!$FY79+'2020'!$GE79+'2020'!$GK79+'2020'!$GQ79 -> 0 | GY79: ='2020'!$O79+'2020'!$GU79-GW79 -> 10540 | GZ79: =('2020'!$GY79*'2020'!$H79)/1000 -> 6.063662 | HA79: =$G79=$D$3 -> FALSE
A80: هانى حسن | B80: ماي واي ايجيبت لمستحضرات التجميل | C80: ص مطبوع ماى واى 17 | D80: 358 | E80: 345 | F80: 133 | G80: 201813 | H80: 0.5531 | I80: ='2020'!$GY80 -> 2820 | J80: =('2020'!$I80*H80)/1000 -> 1.559742 | K80: 4 | L80: 2020-03-09 | M80: 2020-03-16 | N80: 2020-03-19 | O80: 2820 | GU80: ='2020'!$Q80+'2020'!$W80+'2020'!$AC80+'2020'!$AI80+'2020'!$AO80+'2020'!$AU80+'2020'!$BA80+'2020'!$BG80+'2020'!$BM80+'2020'!$BS80+'2020'!$BY80+'2020'!$CE80+'2020'!$CK80+'2020'!$CQ80+'2020'!$CW80+'2020'!$DC80+'2020'!$DI80+'2020'!$DO80+'2020'!$DU80+'2020'!$EA80+'2020'!$EG80+'2020'!$EM80+'2020'!$ES80+'2020'!$EY80+'2020'!$FE80+'2020'!$FK80+'2020'!$FQ80+'2020'!$FW80+'2020'!$GC80+'2020'!$GI80+'2020'!$GO80 -> 0 | GW80: ='2020'!$S80+'2020'!$Y80+'2020'!$AE80+'2020'!$AK80+'2020'!$AQ80+'2020'!$AW80+'2020'!$BC80+'2020'!$BI80+'2020'!$BO80+'2020'!$BU80+'2020'!$CA80+'2020'!$CG80+'2020'!$CM80+'2020'!$CS80+'2020'!$CY80+'2020'!$DE80+'2020'!$DK80+'2020'!$DQ80+'2020'!$DW80+'2020'!$EC80+'2020'!$EI80+'2020'!$EO80+'2020'!$EU80+'2020'!$FA80+'2020'!$FG80+'2020'!$FM80+'2020'!$FS80+'2020'!$FY80+'2020'!$GE80+'2020'!$GK80+'2020'!$GQ80 -> 0 | GY80: ='2020'!$O80+'2020'!$GU80-GW80 -> 2820 | GZ80: =('2020'!$GY80*'2020'!$H80)/1000 -> 1.559742 | HA80: =$G80=$D$3 -> FALSE
A81: هانى حسن | B81: ماي واي ايجيبت لمستحضرات التجميل | C81: ص مطبوع ماى واى كود 40 | D81: 328 | E81: 236 | F81: 336 | G81: 201399 | H81: 0.5301 | I81: ='2020'!$GY81 -> 3870 | J81: =('2020'!$I81*H81)/1000 -> 2.051487 | K81: 7 | L81: 2020-02-04 | M81: 2020-02-11 | N81: 2020-03-10 | O81: 3870 | GU81: ='2020'!$Q81+'2020'!$W81+'2020'!$AC81+'2020'!$AI81+'2020'!$AO81+'2020'!$AU81+'2020'!$BA81+'2020'!$BG81+'2020'!$BM81+'2020'!$BS81+'2020'!$BY81+'2020'!$CE81+'2020'!$CK81+'2020'!$CQ81+'2020'!$CW81+'2020'!$DC81+'2020'!$DI81+'2020'!$DO81+'2020'!$DU81+'2020'!$EA81+'2020'!$EG81+'2020'!$EM81+'2020'!$ES81+'2020'!$EY81+'2020'!$FE81+'2020'!$FK81+'2020'!$FQ81+'2020'!$FW81+'2020'!$GC81+'2020'!$GI81+'2020'!$GO81 -> 0 | GW81: ='2020'!$S81+'2020'!$Y81+'2020'!$AE81+'2020'!$AK81+'2020'!$AQ81+'2020'!$AW81+'2020'!$BC81+'2020'!$BI81+'2020'!$BO81+'2020'!$BU81+'2020'!$CA81+'2020'!$CG81+'2020'!$CM81+'2020'!$CS81+'2020'!$CY81+'2020'!$DE81+'2020'!$DK81+'2020'!$DQ81+'2020'!$DW81+'2020'!$EC81+'2020'!$EI81+'2020'!$EO81+'2020'!$EU81+'2020'!$FA81+'2020'!$FG81+'2020'!$FM81+'2020'!$FS81+'2020'!$FY81+'2020'!$GE81+'2020'!$GK81+'2020'!$GQ81 -> 0 | GY81: ='2020'!$O81+'2020'!$GU81-GW81 -> 3870 | GZ81: =('2020'!$GY81*'2020'!$H81)/1000 -> 2.051487 | HA81: FALSE
A82: هانى حسن | B82: ماي واي ايجيبت لمستحضرات التجميل | C82: ص مطبوع ماى واى كود 43 | D82: 383 | E82: 163 | F82: 334 | G82: 201811 | H82: 0.4555 | I82: ='2020'!$GY82 -> 7150 | J82: =('2020'!$I82*H82)/1000 -> 3.256825 | K82: 12 | L82: 2020-03-09 | M82: 2020-03-16 | N82: 2020-03-19 | O82: 7150 | GU82: ='2020'!$Q82+'2020'!$W82+'2020'!$AC82+'2020'!$AI82+'2020'!$AO82+'2020'!$AU82+'2020'!$BA82+'2020'!$BG82+'2020'!$BM82+'2020'!$BS82+'2020'!$BY82+'2020'!$CE82+'2020'!$CK82+'2020'!$CQ82+'2020'!$CW82+'2020'!$DC82+'2020'!$DI82+'2020'!$DO82+'2020'!$DU82+'2020'!$EA82+'2020'!$EG82+'2020'!$EM82+'2020'!$ES82+'2020'!$EY82+'2020'!$FE82+'2020'!$FK82+'2020'!$FQ82+'2020'!$FW82+'2020'!$GC82+'2020'!$GI82+'2020'!$GO82 -> 0 | GW82: ='2020'!$S82+'2020'!$Y82+'2020'!$AE82+'2020'!$AK82+'2020'!$AQ82+'2020'!$AW82+'2020'!$BC82+'2020'!$BI82+'2020'!$BO82+'2020'!$BU82+'2020'!$CA82+'2020'!$CG82+'2020'!$CM82+'2020'!$CS82+'2020'!$CY82+'2020'!$DE82+'2020'!$DK82+'2020'!$DQ82+'2020'!$DW82+'2020'!$EC82+'2020'!$EI82+'2020'!$EO82+'2020'!$EU82+'2020'!$FA82+'2020'!$FG82+'2020'!$FM82+'2020'!$FS82+'2020'!$FY82+'2020'!$GE82+'2020'!$GK82+'2020'!$GQ82 -> 0 | GY82: ='2020'!$O82+'2020'!$GU82-GW82 -> 7150 | GZ82: =('2020'!$GY82*'2020'!$H82)/1000 -> 3.256825 | HA82: FALSE
A83: احمد صلاح | B83: ماي واي ايجيبت لمستحضرات التجميل | C83: ص مطبوع ماى واى كود 43 | D83: 383 | E83: 163 | F83: 334 | G83: 201890 | H83: 0.4555 | I83: ='2020'!$GY83 -> 8760 | J83: =('2020'!$I83*H83)/1000 -> 3.99018 | K83: 14 | L83: 2020-03-15 | M83: 2020-03-22 | N83: 2020-03-30 | O83: 8760 | GU83: ='2020'!$Q83+'2020'!$W83+'2020'!$AC83+'2020'!$AI83+'2020'!$AO83+'2020'!$AU83+'2020'!$BA83+'2020'!$BG83+'2020'!$BM83+'2020'!$BS83+'2020'!$BY83+'2020'!$CE83+'2020'!$CK83+'2020'!$CQ83+'2020'!$CW83+'2020'!$DC83+'2020'!$DI83+'2020'!$DO83+'2020'!$DU83+'2020'!$EA83+'2020'!$EG83+'2020'!$EM83+'2020'!$ES83+'2020'!$EY83+'2020'!$FE83+'2020'!$FK83+'2020'!$FQ83+'2020'!$FW83+'2020'!$GC83+'2020'!$GI83+'2020'!$GO83 -> 0 | GW83: ='2020'!$S83+'2020'!$Y83+'2020'!$AE83+'2020'!$AK83+'2020'!$AQ83+'2020'!$AW83+'2020'!$BC83+'2020'!$BI83+'2020'!$BO83+'2020'!$BU83+'2020'!$CA83+'2020'!$CG83+'2020'!$CM83+'2020'!$CS83+'2020'!$CY83+'2020'!$DE83+'2020'!$DK83+'2020'!$DQ83+'2020'!$DW83+'2020'!$EC83+'2020'!$EI83+'2020'!$EO83+'2020'!$EU83+'2020'!$FA83+'2020'!$FG83+'2020'!$FM83+'2020'!$FS83+'2020'!$FY83+'2020'!$GE83+'2020'!$GK83+'2020'!$GQ83 -> 0 | GY83: ='2020'!$O83+'2020'!$GU83-GW83 -> 8760 | GZ83: =('2020'!$GY83*'2020'!$H83)/1000 -> 3.99018 | HA83: =$G83=$D$3 -> FALSE
A84: اسلام فتحى | B84: الوردة للدخان - احمد فتحى احمد التلاوي | C84: ص مطبوع قص البرج 25 باكو * 10 ج | D84: 431 | E84: 196 | F84: 142 | G84: 201980 | H84: 0.198 | I84: ='2020'!$GY84 -> 11781 | J84: =('2020'!$I84*H84)/1000 -> 2.332638 | K84: 8 | L84: 2020-03-24 | M84: 2020-03-28 | N84: 2020-03-24 | O84: 11781 | GU84: ='2020'!$Q84+'2020'!$W84+'2020'!$AC84+'2020'!$AI84+'2020'!$AO84+'2020'!$AU84+'2020'!$BA84+'2020'!$BG84+'2020'!$BM84+'2020'!$BS84+'2020'!$BY84+'2020'!$CE84+'2020'!$CK84+'2020'!$CQ84+'2020'!$CW84+'2020'!$DC84+'2020'!$DI84+'2020'!$DO84+'2020'!$DU84+'2020'!$EA84+'2020'!$EG84+'2020'!$EM84+'2020'!$ES84+'2020'!$EY84+'2020'!$FE84+'2020'!$FK84+'2020'!$FQ84+'2020'!$FW84+'2020'!$GC84+'2020'!$GI84+'2020'!$GO84 -> 0 | GW84: ='2020'!$S84+'2020'!$Y84+'2020'!$AE84+'2020'!$AK84+'2020'!$AQ84+'2020'!$AW84+'2020'!$BC84+'2020'!$BI84+'2020'!$BO84+'2020'!$BU84+'2020'!$CA84+'2020'!$CG84+'2020'!$CM84+'2020'!$CS84+'2020'!$CY84+'2020'!$DE84+'2020'!$DK84+'2020'!$DQ84+'2020'!$DW84+'2020'!$EC84+'2020'!$EI84+'2020'!$EO84+'2020'!$EU84+'2020'!$FA84+'2020'!$FG84+'2020'!$FM84+'2020'!$FS84+'2020'!$FY84+'2020'!$GE84+'2020'!$GK84+'2020'!$GQ84 -> 0 | GY84: ='2020'!$O84+'2020'!$GU84-GW84 -> 11781 | GZ84: =('2020'!$GY84*'2020'!$H84)/1000 -> 2.332638 | HA84: =$G84=$D$3 -> FALSE
A85: اسلام فتحى | B85: الوردة للدخان - احمد فتحى احمد التلاوي | C85: ص مطبوع قص البرج 25 باكو * 10 ج | D85: 431 | E85: 196 | F85: 142 | G85: 201985 | H85: 0.198 | I85: ='2020'!$GY85 -> 25375 | J85: =('2020'!$I85*H85)/1000 -> 5.02425 | K85: 17 | L85: 2020-03-24 | M85: 2020-03-28 | N85: 2020-03-28 | O85: 25375 | GU85: ='2020'!$Q85+'2020'!$W85+'2020'!$AC85+'2020'!$AI85+'2020'!$AO85+'2020'!$AU85+'2020'!$BA85+'2020'!$BG85+'2020'!$BM85+'2020'!$BS85+'2020'!$BY85+'2020'!$CE85+'2020'!$CK85+'2020'!$CQ85+'2020'!$CW85+'2020'!$DC85+'2020'!$DI85+'2020'!$DO85+'2020'!$DU85+'2020'!$EA85+'2020'!$EG85+'2020'!$EM85+'2020'!$ES85+'2020'!$EY85+'2020'!$FE85+'2020'!$FK85+'2020'!$FQ85+'2020'!$FW85+'2020'!$GC85+'2020'!$GI85+'2020'!$GO85 -> 0 | GW85: ='2020'!$S85+'2020'!$Y85+'2020'!$AE85+'2020'!$AK85+'2020'!$AQ85+'2020'!$AW85+'2020'!$BC85+'2020'!$BI85+'2020'!$BO85+'2020'!$BU85+'2020'!$CA85+'2020'!$CG85+'2020'!$CM85+'2020'!$CS85+'2020'!$CY85+'2020'!$DE85+'2020'!$DK85+'2020'!$DQ85+'2020'!$DW85+'2020'!$EC85+'2020'!$EI85+'2020'!$EO85+'2020'!$EU85+'2020'!$FA85+'2020'!$FG85+'2020'!$FM85+'2020'!$FS85+'2020'!$FY85+'2020'!$GE85+'2020'!$GK85+'2020'!$GQ85 -> 0 | GY85: ='2020'!$O85+'2020'!$GU85-GW85 -> 25375 | GZ85: =('2020'!$GY85*'2020'!$H85)/1000 -> 5.02425 | HA85: =$G85=$D$3 -> FALSE
A86: اسلام فتحى | B86: الوردة للدخان - احمد فتحى احمد التلاوي | C86: ص مطبوع قص البرج 10 باكو * 30 ج | D86: 371 | E86: 296 | F86: 132 | G86: 201893 | H86: 0.2619 | I86: ='2020'!$GY86 -> 45900 | J86: =('2020'!$I86*H86)/1000 -> 12.02121 | K86: 46 | L86: 2020-03-16 | M86: 2020-03-22 | N86: 2020-03-16 | O86: 45900 | GU86: ='2020'!$Q86+'2020'!$W86+'2020'!$AC86+'2020'!$AI86+'2020'!$AO86+'2020'!$AU86+'2020'!$BA86+'2020'!$BG86+'2020'!$BM86+'2020'!$BS86+'2020'!$BY86+'2020'!$CE86+'2020'!$CK86+'2020'!$CQ86+'2020'!$CW86+'2020'!$DC86+'2020'!$DI86+'2020'!$DO86+'2020'!$DU86+'2020'!$EA86+'2020'!$EG86+'2020'!$EM86+'2020'!$ES86+'2020'!$EY86+'2020'!$FE86+'2020'!$FK86+'2020'!$FQ86+'2020'!$FW86+'2020'!$GC86+'2020'!$GI86+'2020'!$GO86 -> 0 | GW86: ='2020'!$S86+'2020'!$Y86+'2020'!$AE86+'2020'!$AK86+'2020'!$AQ86+'2020'!$AW86+'2020'!$BC86+'2020'!$BI86+'2020'!$BO86+'2020'!$BU86+'2020'!$CA86+'2020'!$CG86+'2020'!$CM86+'2020'!$CS86+'2020'!$CY86+'2020'!$DE86+'2020'!$DK86+'2020'!$DQ86+'2020'!$DW86+'2020'!$EC86+'2020'!$EI86+'2020'!$EO86+'2020'!$EU86+'2020'!$FA86+'2020'!$FG86+'2020'!$FM86+'2020'!$FS86+'2020'!$FY86+'2020'!$GE86+'2020'!$GK86+'2020'!$GQ86 -> 0 | GY86: ='2020'!$O86+'2020'!$GU86-GW86 -> 45900 | GZ86: =('2020'!$GY86*'2020'!$H86)/1000 -> 12.02121 | HA86: =$G86=$D$3 -> FALSE
A87: اسلام فتحى | B87: الوردة للدخان - احمد فتحى احمد التلاوي | C87: ص مطبوع قص البرج 20 باكو * 20 ج | D87: 331 | E87: 246 | F87: 277 | G87: 202016 | H87: 0.2792 | I87: ='2020'!$GY87 -> 40800 | J87: =('2020'!$I87*H87)/1000 -> 11.39136 | K87: 41 | L87: 2020-03-25 | M87: 2020-03-29 | N87: 2020-03-31 | O87: 40800 | GU87: ='2020'!$Q87+'2020'!$W87+'2020'!$AC87+'2020'!$AI87+'2020'!$AO87+'2020'!$AU87+'2020'!$BA87+'2020'!$BG87+'2020'!$BM87+'2020'!$BS87+'2020'!$BY87+'2020'!$CE87+'2020'!$CK87+'2020'!$CQ87+'2020'!$CW87+'2020'!$DC87+'2020'!$DI87+'2020'!$DO87+'2020'!$DU87+'2020'!$EA87+'2020'!$EG87+'2020'!$EM87+'2020'!$ES87+'2020'!$EY87+'2020'!$FE87+'2020'!$FK87+'2020'!$FQ87+'2020'!$FW87+'2020'!$GC87+'2020'!$GI87+'2020'!$GO87 -> 0 | GW87: ='2020'!$S87+'2020'!$Y87+'2020'!$AE87+'2020'!$AK87+'2020'!$AQ87+'2020'!$AW87+'2020'!$BC87+'2020'!$BI87+'2020'!$BO87+'2020'!$BU87+'2020'!$CA87+'2020'!$CG87+'2020'!$CM87+'2020'!$CS87+'2020'!$CY87+'2020'!$DE87+'2020'!$DK87+'2020'!$DQ87+'2020'!$DW87+'2020'!$EC87+'2020'!$EI87+'2020'!$EO87+'2020'!$EU87+'2020'!$FA87+'2020'!$FG87+'2020'!$FM87+'2020'!$FS87+'2020'!$FY87+'2020'!$GE87+'2020'!$GK87+'2020'!$GQ87 -> 0 | GY87: ='2020'!$O87+'2020'!$GU87-GW87 -> 40800 | GZ87: =('2020'!$GY87*'2020'!$H87)/1000 -> 11.39136 | HA87: =$G87=$D$3 -> FALSE
A88: اسلام فتحى | B88: الوردة للدخان - احمد فتحى احمد التلاوي | C88: ص مطبوع معسل تاج الوردة 8 عبوة * 800 جرام - لون سيان | D88: 352 | E88: 230 | F88: 162 | G88: 201881 | H88: 0.2108 | I88: ='2020'!$GY88 -> 4545 | J88: =('2020'!$I88*H88)/1000 -> 0.958086 | K88: 3 | L88: 2020-03-15 | M88: 2020-03-18 | N88: 2020-03-17 | O88: 4545 | GU88: ='2020'!$Q88+'2020'!$W88+'2020'!$AC88+'2020'!$AI88+'2020'!$AO88+'2020'!$AU88+'2020'!$BA88+'2020'!$BG88+'2020'!$BM88+'2020'!$BS88+'2020'!$BY88+'2020'!$CE88+'2020'!$CK88+'2020'!$CQ88+'2020'!$CW88+'2020'!$DC88+'2020'!$DI88+'2020'!$DO88+'2020'!$DU88+'2020'!$EA88+'2020'!$EG88+'2020'!$EM88+'2020'!$ES88+'2020'!$EY88+'2020'!$FE88+'2020'!$FK88+'2020'!$FQ88+'2020'!$FW88+'2020'!$GC88+'2020'!$GI88+'2020'!$GO88 -> 0 | GW88: ='2020'!$S88+'2020'!$Y88+'2020'!$AE88+'2020'!$AK88+'2020'!$AQ88+'2020'!$AW88+'2020'!$BC88+'2020'!$BI88+'2020'!$BO88+'2020'!$BU88+'2020'!$CA88+'2020'!$CG88+'2020'!$CM88+'2020'!$CS88+'2020'!$CY88+'2020'!$DE88+'2020'!$DK88+'2020'!$DQ88+'2020'!$DW88+'2020'!$EC88+'2020'!$EI88+'2020'!$EO88+'2020'!$EU88+'2020'!$FA88+'2020'!$FG88+'2020'!$FM88+'2020'!$FS88+'2020'!$FY88+'2020'!$GE88+'2020'!$GK88+'2020'!$GQ88 -> 0 | GY88: ='2020'!$O88+'2020'!$GU88-GW88 -> 4545 | GZ88: =('2020'!$GY88*'2020'!$H88)/1000 -> 0.958086 | HA88: =$G88=$D$3 -> FALSE
A89: اسلام فتحى | B89: الوردة للدخان - احمد فتحى احمد التلاوي | C89: ص مطبوع معسل تاج الوردة 8 عبوة * 1 كيلو - لون سيان | D89: 352 | E89: 230 | F89: 162 | G89: 201882 | H89: 0.3186 | I89: ='2020'!$GY89 -> 3000 | J89: =('2020'!$I89*H89)/1000 -> 0.9558 | K89: 3 | L89: 2020-03-15 | M89: 2020-03-18 | N89: 2020-03-30 | O89: 3000 | GU89: ='2020'!$Q89+'2020'!$W89+'2020'!$AC89+'2020'!$AI89+'2020'!$AO89+'2020'!$AU89+'2020'!$BA89+'2020'!$BG89+'2020'!$BM89+'2020'!$BS89+'2020'!$BY89+'2020'!$CE89+'2020'!$CK89+'2020'!$CQ89+'2020'!$CW89+'2020'!$DC89+'2020'!$DI89+'2020'!$DO89+'2020'!$DU89+'2020'!$EA89+'2020'!$EG89+'2020'!$EM89+'2020'!$ES89+'2020'!$EY89+'2020'!$FE89+'2020'!$FK89+'2020'!$FQ89+'2020'!$FW89+'2020'!$GC89+'2020'!$GI89+'2020'!$GO89 -> 0 | GW89: ='2020'!$S89+'2020'!$Y89+'2020'!$AE89+'2020'!$AK89+'2020'!$AQ89+'2020'!$AW89+'2020'!$BC89+'2020'!$BI89+'2020'!$BO89+'2020'!$BU89+'2020'!$CA89+'2020'!$CG89+'2020'!$CM89+'2020'!$CS89+'2020'!$CY89+'2020'!$DE89+'2020'!$DK89+'2020'!$DQ89+'2020'!$DW89+'2020'!$EC89+'2020'!$EI89+'2020'!$EO89+'2020'!$EU89+'2020'!$FA89+'2020'!$FG89+'2020'!$FM89+'2020'!$FS89+'2020'!$FY89+'2020'!$GE89+'2020'!$GK89+'2020'!$GQ89 -> 0 | GY89: ='2020'!$O89+'2020'!$GU89-GW89 -> 3000 | GZ89: =('2020'!$GY89*'2020'!$H89)/1000 -> 0.9558 | HA89: =$G89=$D$3 -> FALSE
A90: اسلام فتحى | B90: الشرقية ايسترن كومبانى | C90: كولى فلتر سادة 120 مم68.5*39.5*68 | D90: 685 | E90: 395 | F90: 680 | G90: 201252 | H90: 1.3748 | I90: ='2020'!$GY90 -> 200 | J90: =('2020'!$I90*H90)/1000 -> 0.27496 | K90: 1 | L90: 2020-01-22 | M90: 2020-01-26 | N90: 2020-01-27 | O90: 200 | GU90: ='2020'!$Q90+'2020'!$W90+'2020'!$AC90+'2020'!$AI90+'2020'!$AO90+'2020'!$AU90+'2020'!$BA90+'2020'!$BG90+'2020'!$BM90+'2020'!$BS90+'2020'!$BY90+'2020'!$CE90+'2020'!$CK90+'2020'!$CQ90+'2020'!$CW90+'2020'!$DC90+'2020'!$DI90+'2020'!$DO90+'2020'!$DU90+'2020'!$EA90+'2020'!$EG90+'2020'!$EM90+'2020'!$ES90+'2020'!$EY90+'2020'!$FE90+'2020'!$FK90+'2020'!$FQ90+'2020'!$FW90+'2020'!$GC90+'2020'!$GI90+'2020'!$GO90 -> 0 | GW90: ='2020'!$S90+'2020'!$Y90+'2020'!$AE90+'2020'!$AK90+'2020'!$AQ90+'2020'!$AW90+'2020'!$BC90+'2020'!$BI90+'2020'!$BO90+'2020'!$BU90+'2020'!$CA90+'2020'!$CG90+'2020'!$CM90+'2020'!$CS90+'2020'!$CY90+'2020'!$DE90+'2020'!$DK90+'2020'!$DQ90+'2020'!$DW90+'2020'!$EC90+'2020'!$EI90+'2020'!$EO90+'2020'!$EU90+'2020'!$FA90+'2020'!$FG90+'2020'!$FM90+'2020'!$FS90+'2020'!$FY90+'2020'!$GE90+'2020'!$GK90+'2020'!$GQ90 -> 0 | GY90: ='2020'!$O90+'2020'!$GU90-GW90 -> 200 | GZ90: =('2020'!$GY90*'2020'!$H90)/1000 -> 0.27496 | HA90: =$G90=$D$3 -> FALSE
A91: اسلام فتحى | B91: الشرقية ايسترن كومبانى | C91: كولى فلتر سادة 120 مم68.5*39.5*68 | D91: 685 | E91: 395 | F91: 680 | G91: 201864 | H91: 1.3748 | I91: ='2020'!$GY91 -> 470 | J91: =('2020'!$I91*H91)/1000 -> 0.646156 | K91: 2 | L91: 2020-03-11 | M91: 2020-03-21 | N91: 2020-03-31 | O91: 470 | GU91: ='2020'!$Q91+'2020'!$W91+'2020'!$AC91+'2020'!$AI91+'2020'!$AO91+'2020'!$AU91+'2020'!$BA91+'2020'!$BG91+'2020'!$BM91+'2020'!$BS91+'2020'!$BY91+'2020'!$CE91+'2020'!$CK91+'2020'!$CQ91+'2020'!$CW91+'2020'!$DC91+'2020'!$DI91+'2020'!$DO91+'2020'!$DU91+'2020'!$EA91+'2020'!$EG91+'2020'!$EM91+'2020'!$ES91+'2020'!$EY91+'2020'!$FE91+'2020'!$FK91+'2020'!$FQ91+'2020'!$FW91+'2020'!$GC91+'2020'!$GI91+'2020'!$GO91 -> 0 | GW91: ='2020'!$S91+'2020'!$Y91+'2020'!$AE91+'2020'!$AK91+'2020'!$AQ91+'2020'!$AW91+'2020'!$BC91+'2020'!$BI91+'2020'!$BO91+'2020'!$BU91+'2020'!$CA91+'2020'!$CG91+'2020'!$CM91+'2020'!$CS91+'2020'!$CY91+'2020'!$DE91+'2020'!$DK91+'2020'!$DQ91+'2020'!$DW91+'2020'!$EC91+'2020'!$EI91+'2020'!$EO91+'2020'!$EU91+'2020'!$FA91+'2020'!$FG91+'2020'!$FM91+'2020'!$FS91+'2020'!$FY91+'2020'!$GE91+'2020'!$GK91+'2020'!$GQ91 -> 0 | GY91: ='2020'!$O91+'2020'!$GU91-GW91 -> 470 | GZ91: =('2020'!$GY91*'2020'!$H91)/1000 -> 0.646156 | HA91: =$G91=$D$3 -> FALSE
A92: اسلام فتحى | B92: ديرى لاند للالبان | C92: صينية جبنة ديرى لاند 250 جم ×27 عبوة | D92: 377 | E92: 195 | F92: 109 | G92: 201064 | H92: 0.0842 | I92: ='2020'!$GY92 -> 1650 | J92: =('2020'!$I92*H92)/1000 -> 0.13893 | K92: 1 | L92: 2020-01-06 | M92: 2020-01-13 | N92: 2020-01-30 | O92: 1650 | GU92: ='2020'!$Q92+'2020'!$W92+'2020'!$AC92+'2020'!$AI92+'2020'!$AO92+'2020'!$AU92+'2020'!$BA92+'2020'!$BG92+'2020'!$BM92+'2020'!$BS92+'2020'!$BY92+'2020'!$CE92+'2020'!$CK92+'2020'!$CQ92+'2020'!$CW92+'2020'!$DC92+'2020'!$DI92+'2020'!$DO92+'2020'!$DU92+'2020'!$EA92+'2020'!$EG92+'2020'!$EM92+'2020'!$ES92+'2020'!$EY92+'2020'!$FE92+'2020'!$FK92+'2020'!$FQ92+'2020'!$FW92+'2020'!$GC92+'2020'!$GI92+'2020'!$GO92 -> 0 | GW92: ='2020'!$S92+'2020'!$Y92+'2020'!$AE92+'2020'!$AK92+'2020'!$AQ92+'2020'!$AW92+'2020'!$BC92+'2020'!$BI92+'2020'!$BO92+'2020'!$BU92+'2020'!$CA92+'2020'!$CG92+'2020'!$CM92+'2020'!$CS92+'2020'!$CY92+'2020'!$DE92+'2020'!$DK92+'2020'!$DQ92+'2020'!$DW92+'2020'!$EC92+'2020'!$EI92+'2020'!$EO92+'2020'!$EU92+'2020'!$FA92+'2020'!$FG92+'2020'!$FM92+'2020'!$FS92+'2020'!$FY92+'2020'!$GE92+'2020'!$GK92+'2020'!$GQ92 -> 0 | GY92: ='2020'!$O92+'2020'!$GU92-GW92 -> 1650 | GZ92: =('2020'!$GY92*'2020'!$H92)/1000 -> 0.13893 | HA92: FALSE
A93: اسلام فتحى | B93: ديرى لاند للالبان | C93: صينية جبنة ديرى لاند 250 جم ×27 عبوة | D93: 377 | E93: 195 | F93: 109 | G93: 201703 | H93: 0.0869 | I93: ='2020'!$GY93 -> 5400 | J93: =('2020'!$I93*H93)/1000 -> 0.46926 | K93: 1 | L93: 2020-03-01 | M93: 2020-03-05 | N93: 2020-03-30 | O93: 5400 | GU93: ='2020'!$Q93+'2020'!$W93+'2020'!$AC93+'2020'!$AI93+'2020'!$AO93+'2020'!$AU93+'2020'!$BA93+'2020'!$BG93+'2020'!$BM93+'2020'!$BS93+'2020'!$BY93+'2020'!$CE93+'2020'!$CK93+'2020'!$CQ93+'2020'!$CW93+'2020'!$DC93+'2020'!$DI93+'2020'!$DO93+'2020'!$DU93+'2020'!$EA93+'2020'!$EG93+'2020'!$EM93+'2020'!$ES93+'2020'!$EY93+'2020'!$FE93+'2020'!$FK93+'2020'!$FQ93+'2020'!$FW93+'2020'!$GC93+'2020'!$GI93+'2020'!$GO93 -> 0 | GW93: ='2020'!$S93+'2020'!$Y93+'2020'!$AE93+'2020'!$AK93+'2020'!$AQ93+'2020'!$AW93+'2020'!$BC93+'2020'!$BI93+'2020'!$BO93+'2020'!$BU93+'2020'!$CA93+'2020'!$CG93+'2020'!$CM93+'2020'!$CS93+'2020'!$CY93+'2020'!$DE93+'2020'!$DK93+'2020'!$DQ93+'2020'!$DW93+'2020'!$EC93+'2020'!$EI93+'2020'!$EO93+'2020'!$EU93+'2020'!$FA93+'2020'!$FG93+'2020'!$FM93+'2020'!$FS93+'2020'!$FY93+'2020'!$GE93+'2020'!$GK93+'2020'!$GQ93 -> 0 | GY93: ='2020'!$O93+'2020'!$GU93-GW93 -> 5400 | GZ93: =('2020'!$GY93*'2020'!$H93)/1000 -> 0.46926 | HA93: =$G93=$D$3 -> FALSE
A94: اسلام فتحى | B94: مطاعم العمدة | C94: علبة ميكرو ساندوتش صغير | D94: 170 | E94: 167 | F94: 110 | G94: 201527 | H94: 0.1241 | I94: ='2020'!$GY94 -> 1700 | J94: =('2020'!$I94*H94)/1000 -> 0.21097 | K94: 1 | L94: 2020-02-12 | M94: 2020-02-16 | N94: 2020-03-05 | O94: 1700 | GU94: ='2020'!$Q94+'2020'!$W94+'2020'!$AC94+'2020'!$AI94+'2020'!$AO94+'2020'!$AU94+'2020'!$BA94+'2020'!$BG94+'2020'!$BM94+'2020'!$BS94+'2020'!$BY94+'2020'!$CE94+'2020'!$CK94+'2020'!$CQ94+'2020'!$CW94+'2020'!$DC94+'2020'!$DI94+'2020'!$DO94+'2020'!$DU94+'2020'!$EA94+'2020'!$EG94+'2020'!$EM94+'2020'!$ES94+'2020'!$EY94+'2020'!$FE94+'2020'!$FK94+'2020'!$FQ94+'2020'!$FW94+'2020'!$GC94+'2020'!$GI94+'2020'!$GO94 -> 0 | GW94: ='2020'!$S94+'2020'!$Y94+'2020'!$AE94+'2020'!$AK94+'2020'!$AQ94+'2020'!$AW94+'2020'!$BC94+'2020'!$BI94+'2020'!$BO94+'2020'!$BU94+'2020'!$CA94+'2020'!$CG94+'2020'!$CM94+'2020'!$CS94+'2020'!$CY94+'2020'!$DE94+'2020'!$DK94+'2020'!$DQ94+'2020'!$DW94+'2020'!$EC94+'2020'!$EI94+'2020'!$EO94+'2020'!$EU94+'2020'!$FA94+'2020'!$FG94+'2020'!$FM94+'2020'!$FS94+'2020'!$FY94+'2020'!$GE94+'2020'!$GK94+'2020'!$GQ94 -> 0 | GY94: ='2020'!$O94+'2020'!$GU94-GW94 -> 1700 | GZ94: =('2020'!$GY94*'2020'!$H94)/1000 -> 0.21097 | HA94: FALSE
A95: اسلام فتحى | B95: مطاعم العمدة | C95: علبة ميكرو ساندوتش كبير | D95: 240 | E95: 239 | F95: 81 | G95: 201528 | H95: 0.1946 | I95: ='2020'!$GY95 -> 1000 | J95: =('2020'!$I95*H95)/1000 -> 0.1946 | K95: 1 | L95: 2020-02-12 | M95: 2020-02-16 | N95: 2020-03-17 | O95: 1000 | GU95: ='2020'!$Q95+'2020'!$W95+'2020'!$AC95+'2020'!$AI95+'2020'!$AO95+'2020'!$AU95+'2020'!$BA95+'2020'!$BG95+'2020'!$BM95+'2020'!$BS95+'2020'!$BY95+'2020'!$CE95+'2020'!$CK95+'2020'!$CQ95+'2020'!$CW95+'2020'!$DC95+'2020'!$DI95+'2020'!$DO95+'2020'!$DU95+'2020'!$EA95+'2020'!$EG95+'2020'!$EM95+'2020'!$ES95+'2020'!$EY95+'2020'!$FE95+'2020'!$FK95+'2020'!$FQ95+'2020'!$FW95+'2020'!$GC95+'2020'!$GI95+'2020'!$GO95 -> 0 | GW95: ='2020'!$S95+'2020'!$Y95+'2020'!$AE95+'2020'!$AK95+'2020'!$AQ95+'2020'!$AW95+'2020'!$BC95+'2020'!$BI95+'2020'!$BO95+'2020'!$BU95+'2020'!$CA95+'2020'!$CG95+'2020'!$CM95+'2020'!$CS95+'2020'!$CY95+'2020'!$DE95+'2020'!$DK95+'2020'!$DQ95+'2020'!$DW95+'2020'!$EC95+'2020'!$EI95+'2020'!$EO95+'2020'!$EU95+'2020'!$FA95+'2020'!$FG95+'2020'!$FM95+'2020'!$FS95+'2020'!$FY95+'2020'!$GE95+'2020'!$GK95+'2020'!$GQ95 -> 0 | GY95: ='2020'!$O95+'2020'!$GU95-GW95 -> 1000 | GZ95: =('2020'!$GY95*'2020'!$H95)/1000 -> 0.1946 | HA95: FALSE
A96: محمود ايمن | B96: اراب ديرى | C96: ص 500 جم كوبازرق باندا | D96: 303 | E96: 199 | F96: 110 | G96: 201827 | H96: 0.2608 | I96: ='2020'!$GY96 -> 713 | J96: =('2020'!$I96*H96)/1000 -> 0.1859504 | K96: 1 | L96: 2020-03-09 | M96: 2020-03-14 | N96: 2020-03-18 | O96: 713 | GU96: ='2020'!$Q96+'2020'!$W96+'2020'!$AC96+'2020'!$AI96+'2020'!$AO96+'2020'!$AU96+'2020'!$BA96+'2020'!$BG96+'2020'!$BM96+'2020'!$BS96+'2020'!$BY96+'2020'!$CE96+'2020'!$CK96+'2020'!$CQ96+'2020'!$CW96+'2020'!$DC96+'2020'!$DI96+'2020'!$DO96+'2020'!$DU96+'2020'!$EA96+'2020'!$EG96+'2020'!$EM96+'2020'!$ES96+'2020'!$EY96+'2020'!$FE96+'2020'!$FK96+'2020'!$FQ96+'2020'!$FW96+'2020'!$GC96+'2020'!$GI96+'2020'!$GO96 -> 0 | GW96: ='2020'!$S96+'2020'!$Y96+'2020'!$AE96+'2020'!$AK96+'2020'!$AQ96+'2020'!$AW96+'2020'!$BC96+'2020'!$BI96+'2020'!$BO96+'2020'!$BU96+'2020'!$CA96+'2020'!$CG96+'2020'!$CM96+'2020'!$CS96+'2020'!$CY96+'2020'!$DE96+'2020'!$DK96+'2020'!$DQ96+'2020'!$DW96+'2020'!$EC96+'2020'!$EI96+'2020'!$EO96+'2020'!$EU96+'2020'!$FA96+'2020'!$FG96+'2020'!$FM96+'2020'!$FS96+'2020'!$FY96+'2020'!$GE96+'2020'!$GK96+'2020'!$GQ96 -> 0 | GY96: ='2020'!$O96+'2020'!$GU96-GW96 -> 713 | GZ96: =('2020'!$GY96*'2020'!$H96)/1000 -> 0.1859504 | HA96: FALSE
A97: محمود ايمن | B97: مكتب السلمى | C97: قاع 7.5 ك بدون طباعة | D97: 322 | E97: 227 | F97: 172 | G97: 195406 | H97: 0.2251 | I97: ='2020'!$GY97 -> 630 | J97: =('2020'!$I97*H97)/1000 -> 0.141813 | K97: 1 | L97: 2019-12-12 | M97: 2019-12-16 | N97: 2020-03-01 | O97: 630 | GU97: ='2020'!$Q97+'2020'!$W97+'2020'!$AC97+'2020'!$AI97+'2020'!$AO97+'2020'!$AU97+'2020'!$BA97+'2020'!$BG97+'2020'!$BM97+'2020'!$BS97+'2020'!$BY97+'2020'!$CE97+'2020'!$CK97+'2020'!$CQ97+'2020'!$CW97+'2020'!$DC97+'2020'!$DI97+'2020'!$DO97+'2020'!$DU97+'2020'!$EA97+'2020'!$EG97+'2020'!$EM97+'2020'!$ES97+'2020'!$EY97+'2020'!$FE97+'2020'!$FK97+'2020'!$FQ97+'2020'!$FW97+'2020'!$GC97+'2020'!$GI97+'2020'!$GO97 -> 0 | GW97: ='2020'!$S97+'2020'!$Y97+'2020'!$AE97+'2020'!$AK97+'2020'!$AQ97+'2020'!$AW97+'2020'!$BC97+'2020'!$BI97+'2020'!$BO97+'2020'!$BU97+'2020'!$CA97+'2020'!$CG97+'2020'!$CM97+'2020'!$CS97+'2020'!$CY97+'2020'!$DE97+'2020'!$DK97+'2020'!$DQ97+'2020'!$DW97+'2020'!$EC97+'2020'!$EI97+'2020'!$EO97+'2020'!$EU97+'2020'!$FA97+'2020'!$FG97+'2020'!$FM97+'2020'!$FS97+'2020'!$FY97+'2020'!$GE97+'2020'!$GK97+'2020'!$GQ97 -> 0 | GY97: ='2020'!$O97+'2020'!$GU97-GW97 -> 630 | GZ97: =('2020'!$GY97*'2020'!$H97)/1000 -> 0.141813 | HA97: =$G97=$D$3 -> FALSE
A98: محمود ايمن | B98: مورين | C98: غطاء 3 كجم خيار عادى - مطبوع سان مارك احمر - بنى ف سان مارك | D98: 280 | E98: 200 | F98: 85 | G98: 201447 | H98: 0.1396 | I98: ='2020'!$GY98 -> 255 | J98: =('2020'!$I98*H98)/1000 -> 0.035598 | K98: 1 | L98: 2020-02-09 | M98: 2020-02-09 | N98: 2020-02-13 | O98: 255 | GU98: ='2020'!$Q98+'2020'!$W98+'2020'!$AC98+'2020'!$AI98+'2020'!$AO98+'2020'!$AU98+'2020'!$BA98+'2020'!$BG98+'2020'!$BM98+'2020'!$BS98+'2020'!$BY98+'2020'!$CE98+'2020'!$CK98+'2020'!$CQ98+'2020'!$CW98+'2020'!$DC98+'2020'!$DI98+'2020'!$DO98+'2020'!$DU98+'2020'!$EA98+'2020'!$EG98+'2020'!$EM98+'2020'!$ES98+'2020'!$EY98+'2020'!$FE98+'2020'!$FK98+'2020'!$FQ98+'2020'!$FW98+'2020'!$GC98+'2020'!$GI98+'2020'!$GO98 -> 0 | GW98: ='2020'!$S98+'2020'!$Y98+'2020'!$AE98+'2020'!$AK98+'2020'!$AQ98+'2020'!$AW98+'2020'!$BC98+'2020'!$BI98+'2020'!$BO98+'2020'!$BU98+'2020'!$CA98+'2020'!$CG98+'2020'!$CM98+'2020'!$CS98+'2020'!$CY98+'2020'!$DE98+'2020'!$DK98+'2020'!$DQ98+'2020'!$DW98+'2020'!$EC98+'2020'!$EI98+'2020'!$EO98+'2020'!$EU98+'2020'!$FA98+'2020'!$FG98+'2020'!$FM98+'2020'!$FS98+'2020'!$FY98+'2020'!$GE98+'2020'!$GK98+'2020'!$GQ98 -> 0 | GY98: ='2020'!$O98+'2020'!$GU98-GW98 -> 255 | GZ98: =('2020'!$GY98*'2020'!$H98)/1000 -> 0.035598 | HA98: FALSE
A99: محمود ايمن | B99: مورين | C99: قاع 3ك سان مارك | D99: 340 | E99: 265 | F99: 85 | G99: 201784 | H99: 0.1376 | I99: ='2020'!$GY99 -> 1090 | J99: =('2020'!$I99*H99)/1000 -> 0.149984 | K99: 1 | L99: 2020-03-08 | M99: 2020-03-10 | N99: 2020-03-09 | O99: 1090 | GU99: ='2020'!$Q99+'2020'!$W99+'2020'!$AC99+'2020'!$AI99+'2020'!$AO99+'2020'!$AU99+'2020'!$BA99+'2020'!$BG99+'2020'!$BM99+'2020'!$BS99+'2020'!$BY99+'2020'!$CE99+'2020'!$CK99+'2020'!$CQ99+'2020'!$CW99+'2020'!$DC99+'2020'!$DI99+'2020'!$DO99+'2020'!$DU99+'2020'!$EA99+'2020'!$EG99+'2020'!$EM99+'2020'!$ES99+'2020'!$EY99+'2020'!$FE99+'2020'!$FK99+'2020'!$FQ99+'2020'!$FW99+'2020'!$GC99+'2020'!$GI99+'2020'!$GO99 -> 0 | GW99: ='2020'!$S99+'2020'!$Y99+'2020'!$AE99+'2020'!$AK99+'2020'!$AQ99+'2020'!$AW99+'2020'!$BC99+'2020'!$BI99+'2020'!$BO99+'2020'!$BU99+'2020'!$CA99+'2020'!$CG99+'2020'!$CM99+'2020'!$CS99+'2020'!$CY99+'2020'!$DE99+'2020'!$DK99+'2020'!$DQ99+'2020'!$DW99+'2020'!$EC99+'2020'!$EI99+'2020'!$EO99+'2020'!$EU99+'2020'!$FA99+'2020'!$FG99+'2020'!$FM99+'2020'!$FS99+'2020'!$FY99+'2020'!$GE99+'2020'!$GK99+'2020'!$GQ99 -> 0 | GY99: ='2020'!$O99+'2020'!$GU99-GW99 -> 1090 | GZ99: =('2020'!$GY99*'2020'!$H99)/1000 -> 0.149984 | HA99: FALSE
A100: محمود ايمن | B100: حوض النيل | C100: غطاء14 كيلو ستيروس ازرق برتقال | D100: 381 | E100: 261 | F100: 245 | G100: 202031 | H100: 0.357 | I100: ='2020'!$GY100 -> 870 | J100: =('2020'!$I100*H100)/1000 -> 0.31059 | K100: 1 | L100: 2020-03-22 | M100: 2020-03-30 | N100: 2020-03-30 | O100: 870 | GU100: ='2020'!$Q100+'2020'!$W100+'2020'!$AC100+'2020'!$AI100+'2020'!$AO100+'2020'!$AU100+'2020'!$BA100+'2020'!$BG100+'2020'!$BM100+'2020'!$BS100+'2020'!$BY100+'2020'!$CE100+'2020'!$CK100+'2020'!$CQ100+'2020'!$CW100+'2020'!$DC100+'2020'!$DI100+'2020'!$DO100+'2020'!$DU100+'2020'!$EA100+'2020'!$EG100+'2020'!$EM100+'2020'!$ES100+'2020'!$EY100+'2020'!$FE100+'2020'!$FK100+'2020'!$FQ100+'2020'!$FW100+'2020'!$GC100+'2020'!$GI100+'2020'!$GO100 -> 0 | GW100: ='2020'!$S100+'2020'!$Y100+'2020'!$AE100+'2020'!$AK100+'2020'!$AQ100+'2020'!$AW100+'2020'!$BC100+'2020'!$BI100+'2020'!$BO100+'2020'!$BU100+'2020'!$CA100+'2020'!$CG100+'2020'!$CM100+'2020'!$CS100+'2020'!$CY100+'2020'!$DE100+'2020'!$DK100+'2020'!$DQ100+'2020'!$DW100+'2020'!$EC100+'2020'!$EI100+'2020'!$EO100+'2020'!$EU100+'2020'!$FA100+'2020'!$FG100+'2020'!$FM100+'2020'!$FS100+'2020'!$FY100+'2020'!$GE100+'2020'!$GK100+'2020'!$GQ100 -> 0 | GY100: ='2020'!$O100+'2020'!$GU100-GW100 -> 870 | GZ100: =('2020'!$GY100*'2020'!$H100)/1000 -> 0.31059 | HA100: FALSE
A101: محمود ايمن | B101: حوض النيل | C101: قاع 14 كيلو سادة | D101: 369 | E101: 248 | F101: 243 | G101: 202032 | H101: 0.3612 | I101: ='2020'!$GY101 -> 750 | J101: =('2020'!$I101*H101)/1000 -> 0.2709 | K101: 1 | L101: 2020-03-29 | M101: 2020-03-30 | N101: 2020-03-31 | O101: 750 | GU101: ='2020'!$Q101+'2020'!$W101+'2020'!$AC101+'2020'!$AI101+'2020'!$AO101+'2020'!$AU101+'2020'!$BA101+'2020'!$BG101+'2020'!$BM101+'2020'!$BS101+'2020'!$BY101+'2020'!$CE101+'2020'!$CK101+'2020'!$CQ101+'2020'!$CW101+'2020'!$DC101+'2020'!$DI101+'2020'!$DO101+'2020'!$DU101+'2020'!$EA101+'2020'!$EG101+'2020'!$EM101+'2020'!$ES101+'2020'!$EY101+'2020'!$FE101+'2020'!$FK101+'2020'!$FQ101+'2020'!$FW101+'2020'!$GC101+'2020'!$GI101+'2020'!$GO101 -> 0 | GW101: ='2020'!$S101+'2020'!$Y101+'2020'!$AE101+'2020'!$AK101+'2020'!$AQ101+'2020'!$AW101+'2020'!$BC101+'2020'!$BI101+'2020'!$BO101+'2020'!$BU101+'2020'!$CA101+'2020'!$CG101+'2020'!$CM101+'2020'!$CS101+'2020'!$CY101+'2020'!$DE101+'2020'!$DK101+'2020'!$DQ101+'2020'!$DW101+'2020'!$EC101+'2020'!$EI101+'2020'!$EO101+'2020'!$EU101+'2020'!$FA101+'2020'!$FG101+'2020'!$FM101+'2020'!$FS101+'2020'!$FY101+'2020'!$GE101+'2020'!$GK101+'2020'!$GQ101 -> 0 | GY101: ='2020'!$O101+'2020'!$GU101-GW101 -> 750 | GZ101: =('2020'!$GY101*'2020'!$H101)/1000 -> 0.2709 | HA101: FALSE
A102: محمود ايمن | B102: البستان فروت | C102: ص اوبن توب 8 كجم قثامى | D102: 392 | E102: 292 | F102: 155 | G102: 201617 | H102: 0.4 | I102: ='2020'!$GY102 -> 475 | J102: =('2020'!$I102*H102)/1000 -> 0.19 | K102: 1 | L102: 2020-02-20 | M102: 2020-02-23 | N102: 2020-02-27 | O102: 3600 | S102: 3600 | W102: 2400 | AC102: 3600 | AI102: 2400 | AK102: 8400 | GC102: 475 | GU102: ='2020'!$Q102+'2020'!$W102+'2020'!$AC102+'2020'!$AI102+'2020'!$AO102+'2020'!$AU102+'2020'!$BA102+'2020'!$BG102+'2020'!$BM102+'2020'!$BS102+'2020'!$BY102+'2020'!$CE102+'2020'!$CK102+'2020'!$CQ102+'2020'!$CW102+'2020'!$DC102+'2020'!$DI102+'2020'!$DO102+'2020'!$DU102+'2020'!$EA102+'2020'!$EG102+'2020'!$EM102+'2020'!$ES102+'2020'!$EY102+'2020'!$FE102+'2020'!$FK102+'2020'!$FQ102+'2020'!$FW102+'2020'!$GC102+'2020'!$GI102+'2020'!$GO102 -> 8875 | GW102: ='2020'!$S102+'2020'!$Y102+'2020'!$AE102+'2020'!$AK102+'2020'!$AQ102+'2020'!$AW102+'2020'!$BC102+'2020'!$BI102+'2020'!$BO102+'2020'!$BU102+'2020'!$CA102+'2020'!$CG102+'2020'!$CM102+'2020'!$CS102+'2020'!$CY102+'2020'!$DE102+'2020'!$DK102+'2020'!$DQ102+'2020'!$DW102+'2020'!$EC102+'2020'!$EI102+'2020'!$EO102+'2020'!$EU102+'2020'!$FA102+'2020'!$FG102+'2020'!$FM102+'2020'!$FS102+'2020'!$FY102+'2020'!$GE102+'2020'!$GK102+'2020'!$GQ102 -> 12000 | GY102: ='2020'!$O102+'2020'!$GU102-GW102 -> 475 | GZ102: =('2020'!$GY102*'2020'!$H102)/1000 -> 0.19 | HA102: FALSE
A103: محمود ايمن | B103: البستان فروت | C103: قاع 15 كيلو بدون طباعة | D103: 375 | E103: 270 | F103: 253 | G103: 201984 | H103: 0.4032 | I103: ='2020'!$GY103 -> 3525 | J103: =('2020'!$I103*H103)/1000 -> 1.42128 | K103: 4 | L103: 2020-03-24 | M103: 2020-03-28 | N103: 2020-03-31 | GO103: 21915 | GQ103: 18390 | GU103: ='2020'!$Q103+'2020'!$W103+'2020'!$AC103+'2020'!$AI103+'2020'!$AO103+'2020'!$AU103+'2020'!$BA103+'2020'!$BG103+'2020'!$BM103+'2020'!$BS103+'2020'!$BY103+'2020'!$CE103+'2020'!$CK103+'2020'!$CQ103+'2020'!$CW103+'2020'!$DC103+'2020'!$DI103+'2020'!$DO103+'2020'!$DU103+'2020'!$EA103+'2020'!$EG103+'2020'!$EM103+'2020'!$ES103+'2020'!$EY103+'2020'!$FE103+'2020'!$FK103+'2020'!$FQ103+'2020'!$FW103+'2020'!$GC103+'2020'!$GI103+'2020'!$GO103 -> 21915 | GW103: ='2020'!$S103+'2020'!$Y103+'2020'!$AE103+'2020'!$AK103+'2020'!$AQ103+'2020'!$AW103+'2020'!$BC103+'2020'!$BI103+'2020'!$BO103+'2020'!$BU103+'2020'!$CA103+'2020'!$CG103+'2020'!$CM103+'2020'!$CS103+'2020'!$CY103+'2020'!$DE103+'2020'!$DK103+'2020'!$DQ103+'2020'!$DW103+'2020'!$EC103+'2020'!$EI103+'2020'!$EO103+'2020'!$EU103+'2020'!$FA103+'2020'!$FG103+'2020'!$FM103+'2020'!$FS103+'2020'!$FY103+'2020'!$GE103+'2020'!$GK103+'2020'!$GQ103 -> 18390 | GY103: ='2020'!$O103+'2020'!$GU103-GW103 -> 3525 | GZ103: =('2020'!$GY103*'2020'!$H103)/1000 -> 1.42128 | HA103: FALSE
A104: محمود ايمن | B104: الوادى لتصدير الحاصلات الزراعية | C104: ص بينز 600 كجم - بدون طباعة | D104: 1171 | E104: 971 | F104: 986 | G104: 201512 | H104: 6.8482 | I104: ='2020'!$GY104 -> 35 | J104: =('2020'!$I104*H104)/1000 -> 0.239687 | K104: 1 | L104: 2020-02-11 | M104: 2020-02-20 | N104: 2020-02-18 | O104: 35 | GU104: ='2020'!$Q104+'2020'!$W104+'2020'!$AC104+'2020'!$AI104+'2020'!$AO104+'2020'!$AU104+'2020'!$BA104+'2020'!$BG104+'2020'!$BM104+'2020'!$BS104+'2020'!$BY104+'2020'!$CE104+'2020'!$CK104+'2020'!$CQ104+'2020'!$CW104+'2020'!$DC104+'2020'!$DI104+'2020'!$DO104+'2020'!$DU104+'2020'!$EA104+'2020'!$EG104+'2020'!$EM104+'2020'!$ES104+'2020'!$EY104+'2020'!$FE104+'2020'!$FK104+'2020'!$FQ104+'2020'!$FW104+'2020'!$GC104+'2020'!$GI104+'2020'!$GO104 -> 0 | GW104: ='2020'!$S104+'2020'!$Y104+'2020'!$AE104+'2020'!$AK104+'2020'!$AQ104+'2020'!$AW104+'2020'!$BC104+'2020'!$BI104+'2020'!$BO104+'2020'!$BU104+'2020'!$CA104+'2020'!$CG104+'2020'!$CM104+'2020'!$CS104+'2020'!$CY104+'2020'!$DE104+'2020'!$DK104+'2020'!$DQ104+'2020'!$DW104+'2020'!$EC104+'2020'!$EI104+'2020'!$EO104+'2020'!$EU104+'2020'!$FA104+'2020'!$FG104+'2020'!$FM104+'2020'!$FS104+'2020'!$FY104+'2020'!$GE104+'2020'!$GK104+'2020'!$GQ104 -> 0 | GY104: ='2020'!$O104+'2020'!$GU104-GW104 -> 35 | GZ104: =('2020'!$GY104*'2020'!$H104)/1000 -> 0.239687 | HA104: FALSE
A105: محمود ايمن | B105: الوادى لتصدير الحاصلات الزراعية | C105: حزام ص بيتز 600 كجم - بدون طباعة | D105: 1160 | E105: 960 | F105: 985 | G105: 201513 | H105: 4.9148 | I105: ='2020'!$GY105 -> 282 | J105: =('2020'!$I105*H105)/1000 -> 1.3859736 | K105: 2 | L105: 2020-02-11 | M105: 2020-02-20 | N105: 2020-02-18 | O105: 43 | EA105: 239 | GU105: ='2020'!$Q105+'2020'!$W105+'2020'!$AC105+'2020'!$AI105+'2020'!$AO105+'2020'!$AU105+'2020'!$BA105+'2020'!$BG105+'2020'!$BM105+'2020'!$BS105+'2020'!$BY105+'2020'!$CE105+'2020'!$CK105+'2020'!$CQ105+'2020'!$CW105+'2020'!$DC105+'2020'!$DI105+'2020'!$DO105+'2020'!$DU105+'2020'!$EA105+'2020'!$EG105+'2020'!$EM105+'2020'!$ES105+'2020'!$EY105+'2020'!$FE105+'2020'!$FK105+'2020'!$FQ105+'2020'!$FW105+'2020'!$GC105+'2020'!$GI105+'2020'!$GO105 -> 239 | GW105: ='2020'!$S105+'2020'!$Y105+'2020'!$AE105+'2020'!$AK105+'2020'!$AQ105+'2020'!$AW105+'2020'!$BC105+'2020'!$BI105+'2020'!$BO105+'2020'!$BU105+'2020'!$CA105+'2020'!$CG105+'2020'!$CM105+'2020'!$CS105+'2020'!$CY105+'2020'!$DE105+'2020'!$DK105+'2020'!$DQ105+'2020'!$DW105+'2020'!$EC105+'2020'!$EI105+'2020'!$EO105+'2020'!$EU105+'2020'!$FA105+'2020'!$FG105+'2020'!$FM105+'2020'!$FS105+'2020'!$FY105+'2020'!$GE105+'2020'!$GK105+'2020'!$GQ105 -> 0 | GY105: ='2020'!$O105+'2020'!$GU105-GW105 -> 282 | GZ105: =('2020'!$GY105*'2020'!$H105)/1000 -> 1.3859736 | HA105: FALSE
B106: Total | J106: =SUBTOTAL(109,Table1[الوزن الفعلى]) -> 168.9395614 | K106: . | CR106: =SUBTOTAL(109,Table1[وزن859]) -> 0 | CT106: =SUBTOTAL(109,Table1[وزن1161]) -> 0 | CW106: =SUBTOTAL(109,Table1[كمية864]) -> 0 | CX106: =SUBTOTAL(109,Table1[وزن965]) -> 0 | CZ106: =SUBTOTAL(109,Table1[وزن1267]) -> 0 | DD106: =SUBTOTAL(109,Table1[وزن1071]) -> 0 | DE106: =SUBTOTAL(105,Table1[كمية1272]) -> 0 | DI106: =SUBTOTAL(109,Table1[كمية876]) -> 0 | DK106: =SUBTOTAL(109,Table1[كمية1178]) -> 0 | DO106: =SUBTOTAL(109,Table1[كمية982]) -> 0
